Local authority department which incurred the expenditure,Service Division,Summary of the Purpose of Expenditure,Expense Type,Detailed Expense Type,Date of Transaction,Beneficiary,Merchant Category,Gross Amount,VAT,Net Amount
Regeneration & Economic Development,Economic Development and Housing,Business Growth and Innovation General,Supplies and Services,Equipment and Materials,02-May-2016,ADOBE CREATIVE CLOUD,Other consumables,45.73,7.62,38.11
Regeneration & Economic Development,Economic Development and Housing,Business Growth and Innovation General,Supplies and Services,Newspapers Books and Periodicals,02-May-2016,FASTHOSTS INTERNET,Books-school library,23.88,3.98,19.90
Regeneration & Economic Development,Economic Development and Housing,Business Growth and Innovation General,Supplies and Services,Newspapers Books and Periodicals,02-May-2016,FASTHOSTS INTERNET,Books-school library,59.99,10.00,49.99
Neighbourhood Services,Direct Services,Catering - County Hall Restaurant,Supplies and Services,Provisions,02-May-2016,BRAKE BROS LTD,Catering costs - provisions,251.59,0.00,251.59
Neighbourhood Services,Culture & Sport,Hardwick Park Catering,Supplies and Services,Provisions,02-May-2016,BRAKE BROS LTD,Catering costs - provisions,47.82,7.97,39.85
Neighbourhood Services,Culture & Sport,Hardwick Park Catering,Supplies and Services,Provisions,02-May-2016,BRAKE BROS LTD,Catering costs - provisions,85.58,,85.58
Regeneration & Economic Development,Economic Development and Housing,Sacriston - Terrace 1,Income,Fees and Charges,03-May-2016,HMCOURT-SERVICES.G,Fees-legal,100.00,0.00,100.00
Children and Adult Services,Childrens Services,Bishop Auckland and Barnard Castle Locality,Supplies and Services,Provisions,03-May-2016,TESCO STORES 6329,Catering costs - provisions,31.65,0.00,31.65
Children and Adult Services,Education,Shildon Childcare,Supplies and Services,Provisions,03-May-2016,ASDA HOME SHOPPING,Catering costs - provisions,41.00,0.00,41.00
Neighbourhood Services,Direct Services,Nei. Prot - GRT,Supplies and Services,Services,03-May-2016,HMCOURTS-SERVICE.G,Court Costs,410.00,0.00,410.00
Children and Adult Services,Childrens Services,9 Cedar Drive Aycliffe,Supplies and Services,Provisions,03-May-2016,G BOLAM FOODS,Catering costs - provisions,117.47,0.00,117.47
Neighbourhood Services,Direct Services,Catering - County Hall Restaurant,Supplies and Services,Provisions,03-May-2016,BRAMBLES FOODS LTD,Catering costs - provisions,508.01,0.00,508.01
Neighbourhood Services,Direct Services,Catering - County Hall Restaurant,Supplies and Services,Provisions,03-May-2016,FREEMAN CATERING BUTCH,Catering costs - provisions,76.36,0.00,76.36
Neighbourhood Services,Direct Services,Catering - County Hall Restaurant,Supplies and Services,Provisions,03-May-2016,FREEMAN CATERING BUTCH,Catering costs - provisions,59.56,0.00,59.56
Neighbourhood Services,Direct Services,Catering - County Hall Restaurant,Supplies and Services,Provisions,03-May-2016,FREEMAN CATERING BUTCH,Catering costs - provisions,48.80,0.00,48.80
Neighbourhood Services,Direct Services,Catering - County Hall Restaurant,Supplies and Services,Provisions,03-May-2016,JR HOLLAND FOODSERVICE,Catering costs - provisions,131.94,0.00,131.94
Neighbourhood Services,Direct Services,Catering - County Hall Restaurant,Supplies and Services,Provisions,03-May-2016,JR HOLLAND FOODSERVICE,Catering costs - provisions,13.52,0.00,13.52
Neighbourhood Services,Culture & Sport,Gala Theatre - Catering etc,Supplies and Services,Provisions,03-May-2016,FREEMAN CATERING BUTCH,Catering costs - provisions,17.94,0.00,17.94
Neighbourhood Services,Culture & Sport,Gala Theatre - Catering etc,Supplies and Services,Provisions,03-May-2016,BRAKE BROS LTD,Catering costs - provisions,76.32,12.72,63.60
Neighbourhood Services,Culture & Sport,Gala Theatre - Catering etc,Supplies and Services,Provisions,03-May-2016,BRAKE BROS LTD,Catering costs - provisions,116.38,,116.38
Children and Adult Services,Childrens Services,Durham 0 - 5,Supplies and Services,Provisions,03-May-2016,SAINSBURYS 0776,Catering costs - provisions,21.30,0.00,21.30
Children and Adult Services,Education,Dean Bank Childcare,Supplies and Services,Provisions,03-May-2016,ASDA HOME SHOPPING,Catering costs - provisions,51.88,0.00,51.88
Children and Adult Services,Childrens Services,Secure Management,Supplies and Services,Clothing Uniforms and Laundry,03-May-2016,WWW.FOOTLOCKER.EU,Clothing uniforms and laundry,259.98,43.33,216.65
Children and Adult Services,Childrens Services,Secure Management,Supplies and Services,Clothing Uniforms and Laundry,03-May-2016,WWW.FOOTASYLUM.COM,Clothing uniforms and laundry,104.98,0.00,104.98
Children and Adult Services,Childrens Services,Secure Management,Supplies and Services,Clothing Uniforms and Laundry,03-May-2016,WWW.KITKING.CO.UK,Clothing uniforms and laundry,477.52,0.00,477.52
Children and Adult Services,Childrens Services,Secure Management,Supplies and Services,Clothing Uniforms and Laundry,03-May-2016,NEXT DIRECTORY,Clothing uniforms and laundry,53.99,0.00,53.99
Neighbourhood Services,Direct Services,C&G - North Grounds Maintenance,Supplies and Services,Equipment and Materials,03-May-2016,SPALDINGS LIMITED,Direct materials,165.60,0.00,165.60
Neighbourhood Services,Culture & Sport,Hardwick Park Catering,Supplies and Services,Provisions,03-May-2016,FREEMAN CATERING BUTCH,Catering costs - provisions,40.42,0.00,40.42
Neighbourhood Services,Culture & Sport,Hardwick Park Catering,Supplies and Services,Provisions,03-May-2016,FREEMAN CATERING BUTCH,Catering costs - provisions,27.83,0.00,27.83
Neighbourhood Services,Culture & Sport,Hardwick Park Catering,Supplies and Services,Provisions,03-May-2016,JR HOLLAND FOODSERVICE,Catering costs - provisions,18.82,0.00,18.82
Neighbourhood Services,Culture & Sport,Hardwick Park Catering,Supplies and Services,Provisions,03-May-2016,BRAKE BROS LTD,Catering costs - provisions,-10.04,0.00,-10.04
Resources,I.C.T. Services,Operations - System & Repairs Trading,Supplies and Services,Computers and Communications,03-May-2016,Amazon UK Marketplace,Computer hardware,29.07,0.00,29.07
Neighbourhood Services,Culture & Sport,Gala Theatre Stage School,Supplies and Services,Newspapers Books and Periodicals,03-May-2016,Amazon UK Marketplace,Books-school library,4.33,0.00,4.33
Children and Adult Services,Childrens Services,Durham and Chester Le Street Locality,Supplies and Services,Equipment and Materials,03-May-2016,WILKO.COM,Equipment-purchase and rental,22.00,0.00,22.00
Children and Adult Services,Education,EDC Premises,Premises,Cleaning and Domestic Supplies,03-May-2016,LIDL UK,Cleaning and domestic equipment,14.99,2.50,12.49
Neighbourhood Services,Direct Services,Catering - Green Lane Canteen,Supplies and Services,Provisions,03-May-2016,BRAMBLES FOODS LTD,Catering costs - provisions,76.69,0.00,76.69
Neighbourhood Services,Direct Services,Catering - Green Lane Canteen,Supplies and Services,Provisions,03-May-2016,FREEMAN CATERING BUTCH,Catering costs - provisions,61.11,0.00,61.11
Neighbourhood Services,Direct Services,Catering - Green Lane Canteen,Supplies and Services,Provisions,03-May-2016,FREEMAN CATERING BUTCH,Catering costs - provisions,14.95,0.00,14.95
Neighbourhood Services,Direct Services,Catering - Green Lane Canteen,Supplies and Services,Provisions,03-May-2016,BRAKE BROS LTD,Catering costs - provisions,10.80,1.80,9.00
Neighbourhood Services,Direct Services,Catering - Green Lane Canteen,Supplies and Services,Provisions,03-May-2016,BRAKE BROS LTD,Catering costs - provisions,130.16,,130.16
Children and Adult Services,Childrens Services,Bishop Auckland 0 - 5,Supplies and Services,Provisions,03-May-2016,TESCO STORES 6329,Catering costs - provisions,18.05,0.00,18.05
Regeneration & Economic Development,Economic Development and Housing,Employability - Youth Contract,Supplies and Services,Miscellaneous Expenses,03-May-2016,POST OFFICE COUNTER,Licences,220.00,0.00,220.00
Regeneration & Economic Development,Economic Development and Housing,Employability - Youth Contract,Supplies and Services,Miscellaneous Expenses,03-May-2016,DVLA DRIVER ONLINE,Licences,34.00,0.00,34.00
Resources,Resources Management,Resources Management,Supplies and Services,Provisions,03-May-2016,CO-OP GROUP 010830,Catering costs - provisions,2.00,0.00,2.00
Resources,Legal & Democratic Services,Conveyancing,Supplies and Services,Newspapers Books and Periodicals,03-May-2016,WP-WWW.OYEZFORMSLINK.C,Newspapers books and periodicals,8.42,1.40,7.02
Resources,Legal & Democratic Services,Democratic Representation,Supplies and Services,Grants to Voluntary Organisations,03-May-2016,IMPERIAL LONDON HOTELS,Accommodation assistance,234.00,0.00,234.00
Neighbourhood Services,Direct Services,C&G - North Grounds Maintenance,Supplies and Services,Equipment and Materials,03-May-2016,BESCOL,Other consumables,28.44,4.74,23.70
Neighbourhood Services,Culture & Sport,Bp Auckland Town Hall Cafe,Supplies and Services,Provisions,03-May-2016,BRAMBLES FOODS LTD,Catering costs - provisions,83.62,0.00,83.62
Neighbourhood Services,Direct Services,Catering - Service Direct,Supplies and Services,Provisions,03-May-2016,BRAMBLES FOODS LTD,Catering costs - provisions,75.78,0.00,75.78
Neighbourhood Services,Direct Services,Catering - Service Direct,Supplies and Services,Provisions,03-May-2016,FREEMAN CATERING BUTCH,Catering costs - provisions,71.01,0.00,71.01
Neighbourhood Services,Direct Services,Catering - Service Direct,Supplies and Services,Provisions,03-May-2016,FREEMAN CATERING BUTCH,Catering costs - provisions,42.29,0.00,42.29
Neighbourhood Services,Direct Services,Catering - Service Direct,Supplies and Services,Provisions,03-May-2016,BRAKE BROS LTD,Catering costs - provisions,60.55,0.00,60.55
Neighbourhood Services,Culture & Sport,Positive Futures,Supplies and Services,Provisions,03-May-2016,TESCO STORES 2371,Catering costs - provisions,17.41,0.00,17.41
Children and Adult Services,Childrens Services,Ferryhill 0 - 5,Supplies and Services,Provisions,03-May-2016,ASDA HOME SHOPPING,Catering costs - provisions,40.66,0.00,40.66
Dedicated Schools Grant,Dedicated Schools Grant,Part Sighted-Belmont Comp,Supplies and Services,Equipment and Materials,03-May-2016,Audible Ltd,Misc equipment tools and materials,7.99,1.33,6.66
Neighbourhood Services,Culture & Sport,Woodhouse Close Leisure Complex,Supplies and Services,Provisions,03-May-2016,FREEMAN CATERING BUTCH,Catering costs - provisions,37.56,0.00,37.56
Neighbourhood Services,Culture & Sport,Woodhouse Close Leisure Complex,Supplies and Services,Provisions,03-May-2016,JR HOLLAND FOODSERVICE,Catering costs - provisions,38.95,0.00,38.95
Children and Adult Services,Planning & Service Strategy,SF-Rivergreen Durham,Supplies and Services,Equipment and Materials,03-May-2016,HM PASSPORT OFFICE,Equipment-purchase and rental,78.00,0.00,78.00
Children and Adult Services,Childrens Services,Peterlee and Seaham Locality,Supplies and Services,Clothing Uniforms and Laundry,03-May-2016,ARGOS RETAIL GROUP,Clothing uniforms and laundry,179.99,0.00,179.99
Children and Adult Services,Head of Adults,Intermediate Care Plus - South,Supplies and Services,Postages,03-May-2016,POST OFFICE SHOP,Postages,112.99,0.00,112.99
Resources,Financial Services,SF-Financial Services Team,Supplies and Services,Furniture,03-May-2016,FRANKS FACTORY FLOORIN,Furniture repair and replacement,150.00,0.00,150.00
Children and Adult Services,Childrens Services,Secure Management,Supplies and Services,Clothing Uniforms and Laundry,03-May-2016,FLANNELSFASHION.,Clothing uniforms and laundry,115.99,19.33,96.66
Children and Adult Services,Childrens Services,Secure Management,Supplies and Services,Clothing Uniforms and Laundry,03-May-2016,NEW LOOK INTERNET,Clothing uniforms and laundry,28.98,0.00,28.98
Neighbourhood Services,EnvironmentHealth & Consumer Protection,Works in Default Holding Code,Income,Fees and Charges,04-May-2016,WWW.MONEYCLAIM.GOV,Fees-legal,60.00,0.00,60.00
Children and Adult Services,Childrens Services,Bishop Auckland and Barnard Castle Locality,Supplies and Services,Furniture,04-May-2016,POUNDSTRETCHER 692,Furniture repair and replacement,13.18,0.00,13.18
Children and Adult Services,Childrens Services,Bishop Auckland and Barnard Castle Locality,Supplies and Services,Provisions,04-May-2016,TESCO STORES 6329,Catering costs - provisions,5.50,0.00,5.50
Neighbourhood Services,Direct Services,Green Lane Council Offices Spennymoor,Premises,Energy Costs,04-May-2016,FOREVER-FUELS.COM,Other fuels,"1,806.00",0.00,1806.00
Neighbourhood Services,Direct Services,C&G - South Street Cleansing,Third Party Payments,Rendered by Private Contractors,04-May-2016,BROXAP LTD,Payments to sub-contractors,321.60,53.60,268.00
Neighbourhood Services,Direct Services,Catering - County Hall Restaurant,Supplies and Services,Provisions,04-May-2016,JR HOLLAND FOODSERVICE,Catering costs - provisions,10.54,0.00,10.54
Neighbourhood Services,Direct Services,Catering - County Hall Restaurant,Supplies and Services,Provisions,04-May-2016,JR HOLLAND FOODSERVICE,Catering costs - provisions,6.58,0.00,6.58
Neighbourhood Services,Culture & Sport,Gala Theatre - Catering etc,Supplies and Services,Provisions,04-May-2016,JR HOLLAND FOODSERVICE,Catering costs - provisions,13.89,0.00,13.89
Children and Adult Services,Childrens Services,Framwellgate Moor CU,Supplies and Services,Provisions,04-May-2016,ASDA HOME SHOPPING,Catering costs - provisions,124.84,0.00,124.84
Children and Adult Services,Childrens Services,Framwellgate Moor CU,Supplies and Services,Provisions,04-May-2016,ASDA HOME SHOPPING,Catering costs - provisions,-0.13,0.00,-0.13
Children and Adult Services,Childrens Services,Durham 0 - 5,Supplies and Services,Newspapers Books and Periodicals,04-May-2016,Amazon UK Marketplace,Books-school library,20.11,0.00,20.11
Children and Adult Services,Childrens Services,High Etherley Satelite Home,Supplies and Services,Provisions,04-May-2016,TESCO STORES 6329,Catering costs - provisions,130.83,0.00,130.83
Children and Adult Services,Childrens Services,High Etherley Satelite Home,Supplies and Services,Equipment and Materials,04-May-2016,TESCO STORES 6329,Equipment-purchase and rental,23.00,0.00,23.00
Children and Adult Services,Childrens Services,Secure Management,Supplies and Services,Equipment and Materials,04-May-2016,Amazon EU,Other consumables,27.95,0.00,27.95
Children and Adult Services,Childrens Services,Secure Management,Supplies and Services,Provisions,04-May-2016,TESCO STORES 6329,Catering costs - provisions,79.40,0.00,79.40
Neighbourhood Services,Direct Services,C&G - North Grounds Maintenance,Supplies and Services,Equipment and Materials,04-May-2016,GREENLAY(GRASS MACHINE,Equipment-purchase and rental,19.58,0.00,19.58
Neighbourhood Services,Culture & Sport,Hardwick Park Catering,Supplies and Services,Provisions,04-May-2016,JR HOLLAND FOODSERVICE,Catering costs - provisions,86.75,0.00,86.75
Neighbourhood Services,Culture & Sport,Hardwick Park Catering,Supplies and Services,Provisions,04-May-2016,JR HOLLAND FOODSERVICE,Catering costs - provisions,7.80,0.00,7.80
Neighbourhood Services,Culture & Sport,Hardwick Park Catering,Supplies and Services,Provisions,04-May-2016,BRAKE BROS LTD,Catering costs - provisions,75.60,12.60,63.00
Neighbourhood Services,Culture & Sport,Hardwick Park Catering,Supplies and Services,Provisions,04-May-2016,BRAKE BROS LTD,Catering costs - provisions,163.50,,163.50
Neighbourhood Services,Culture & Sport,Hardwick Park Catering,Supplies and Services,Provisions,04-May-2016,BRAKE BROS LTD,Catering costs - provisions,89.40,14.90,74.50
Neighbourhood Services,Culture & Sport,Hardwick Park Catering,Supplies and Services,Provisions,04-May-2016,BRAKE BROS LTD,Catering costs - provisions,65.85,,65.85
Resources,I.C.T. Services,Operations - System & Repairs Trading,Supplies and Services,Computers and Communications,04-May-2016,www.gedat.com,Computer hardware,65.12,0.00,65.12
Resources,I.C.T. Services,Operations - System & Repairs Trading,Supplies and Services,Computers and Communications,04-May-2016,Amazon UK Marketplace,Computer hardware,49.99,0.00,49.99
Resources,I.C.T. Services,Operations - System & Repairs Trading,Supplies and Services,Computers and Communications,04-May-2016,Amazon UK Marketplace,Computer hardware,19.99,0.00,19.99
Neighbourhood Services,Direct Services,Catering - Green Lane Canteen,Supplies and Services,Provisions,04-May-2016,BRAKE BROS LTD,Catering costs - provisions,54.59,0.00,54.59
Children and Adult Services,Childrens Services,Tow Law CU,Supplies and Services,Provisions,04-May-2016,TESCO STORES 2371,Catering costs - provisions,231.53,0.00,231.53
Children and Adult Services,Childrens Services,Bishop Auckland 0 - 5,Supplies and Services,Miscellaneous Expenses,04-May-2016,W BOYES & CO LTD BISHO,Other expenses,6.88,0.00,6.88
Assistant Chief Executive,Planning & Performance Division,County Records,Supplies and Services,Services,04-May-2016,WWW.SCALPELSBLADES.CO,Medical fees,102.86,0.00,102.86
Neighbourhood Services,Culture & Sport,Killhope Lead Mining Centre - LLC,Supplies and Services,Postages,04-May-2016,WWW.ROYALMAIL.COM,Postages,110.00,0.00,110.00
Resources,Legal & Democratic Services,Democratic Representation,Supplies and Services,Services,04-May-2016,WWW.ICO.GOV.UK,Disclosure & Barring (DBS) Fees,35.00,0.00,35.00
Resources,Legal & Democratic Services,Democratic Representation,Supplies and Services,Subscriptions,04-May-2016,WWW.ICO.GOV.UK,Subscriptions,35.00,0.00,35.00
Resources,Legal & Democratic Services,Democratic Representation,Supplies and Services,Subscriptions,04-May-2016,WWW.ICO.GOV.UK,Subscriptions,35.00,0.00,35.00
Resources,Legal & Democratic Services,Democratic Representation,Supplies and Services,Subscriptions,04-May-2016,WWW.ICO.GOV.UK,Subscriptions,35.00,0.00,35.00
Resources,Legal & Democratic Services,Democratic Representation,Supplies and Services,Services,04-May-2016,WWW.ICO.GOV.UK,Disclosure & Barring (DBS) Fees,35.00,0.00,35.00
Resources,Legal & Democratic Services,Democratic Representation,Supplies and Services,Services,04-May-2016,WWW.ICO.GOV.UK,Disclosure & Barring (DBS) Fees,35.00,0.00,35.00
Children and Adult Services,Head of Adults,Mental Health S28A and Central,Supplies and Services,Grants to Voluntary Organisations,04-May-2016,UNIVERSITY OF BIRMINGH,Accommodation assistance,105.00,0.00,105.00
Children and Adult Services,Childrens Services,Peterlee and Seaham Locality,Supplies and Services,Equipment and Materials,04-May-2016,TESCO - Seller_IST_1_2,Other consumables,150.36,25.06,125.30
Children and Adult Services,Childrens Services,Peterlee and Seaham Locality,Supplies and Services,Equipment and Materials,04-May-2016,TESCO DIRECT,Other consumables,-5.00,-0.83,-4.17
Neighbourhood Services,Culture & Sport,Bp Auckland Town Hall Cafe,Supplies and Services,Provisions,04-May-2016,JR HOLLAND FOODSERVICE,Catering costs - provisions,6.20,0.00,6.20
Neighbourhood Services,Culture & Sport,Bp Auckland Town Hall Cafe,Supplies and Services,Provisions,04-May-2016,BRAKE BROS LTD,Catering costs - provisions,191.58,0.00,191.58
Neighbourhood Services,Culture & Sport,Bp Auckland Town Hall Cafe,Supplies and Services,Provisions,04-May-2016,BRAKE BROS LTD,Catering costs - provisions,22.49,0.00,22.49
Neighbourhood Services,Direct Services,Catering - Service Direct,Supplies and Services,Provisions,04-May-2016,JR HOLLAND FOODSERVICE,Catering costs - provisions,30.21,0.00,30.21
Neighbourhood Services,Direct Services,Catering - Service Direct,Supplies and Services,Provisions,04-May-2016,BRAKE BROS LTD,Catering costs - provisions,120.24,20.04,100.20
Neighbourhood Services,Direct Services,Catering - Service Direct,Supplies and Services,Provisions,04-May-2016,BRAKE BROS LTD,Catering costs - provisions,68.14,,68.14
Children and Adult Services,Childrens Services,Laurel Avenue Childrens Centre,Supplies and Services,Provisions,04-May-2016,TESCO STORES 2371,Catering costs - provisions,27.67,0.00,27.67
Regeneration & Economic Development,Economic Development and Housing,Business Growth and Innovation General,Supplies and Services,Equipment and Materials,04-May-2016,MEETEDGAR.COM STARTER,Other consumables,33.64,0.00,33.64
Resources,I.C.T. Services,Operations - System & Repairs Trading,Supplies and Services,Computers and Communications,05-May-2016,www.gedat.com,Computer hardware,1.79,0.00,1.79
Children and Adult Services,Education,Selby Cottage Childcare Centre,Supplies and Services,Provisions,05-May-2016,TESCO STORES 2278,Catering costs - provisions,1.55,0.00,1.55
Regeneration & Economic Development,Economic Development and Housing,Business Growth and Innovation General,Supplies and Services,Advertising,05-May-2016,ADROLL,Advertising other than for staff,5.27,0.00,5.27
Neighbourhood Services,Direct Services,Catering - County Hall Restaurant,Supplies and Services,Provisions,05-May-2016,JR HOLLAND FOODSERVICE,Catering costs - provisions,129.75,0.00,129.75
Neighbourhood Services,Direct Services,Catering - County Hall Restaurant,Supplies and Services,Provisions,05-May-2016,JR HOLLAND FOODSERVICE,Catering costs - provisions,31.35,0.00,31.35
Neighbourhood Services,Direct Services,Catering - County Hall Restaurant,Supplies and Services,Provisions,05-May-2016,JR HOLLAND FOODSERVICE,Catering costs - provisions,13.16,0.00,13.16
Neighbourhood Services,Direct Services,Catering - County Hall Restaurant,Supplies and Services,Provisions,05-May-2016,BRAKE BROS LTD,Catering costs - provisions,167.65,0.00,167.65
Children and Adult Services,Childrens Services,Secure Management,Supplies and Services,Newspapers Books and Periodicals,05-May-2016,Amazon EU,Books-school library,5.99,0.00,5.99
Children and Adult Services,Childrens Services,Secure Management,Supplies and Services,Miscellaneous Expenses,05-May-2016,Amazon EU,Other expenses,18.31,0.00,18.31
Children and Adult Services,Childrens Services,Secure Management,Supplies and Services,Provisions,05-May-2016,TESCO STORES 6329,Catering costs - provisions,81.63,0.00,81.63
Neighbourhood Services,Culture & Sport,Hardwick Park Catering,Supplies and Services,Provisions,05-May-2016,JR HOLLAND FOODSERVICE,Catering costs - provisions,24.85,0.00,24.85
Neighbourhood Services,Culture & Sport,Hardwick Park Catering,Supplies and Services,Provisions,05-May-2016,JR HOLLAND FOODSERVICE,Catering costs - provisions,4.16,0.00,4.16
Regeneration & Economic Development,Spatial Policy Planning Assets & Environment,North Pennines Core,Supplies and Services,Conference Expenses,05-May-2016,THE STIRK HOUSE HOTEL,Conferencesseminars fees etc,92.00,0.00,92.00
Resources,I.C.T. Services,Operations - System & Repairs Trading,Supplies and Services,Computers and Communications,05-May-2016,PAYPAL BECKETTSMUS,Computer hardware,19.94,0.00,19.94
Neighbourhood Services,Direct Services,Catering - Green Lane Canteen,Supplies and Services,Provisions,05-May-2016,JR HOLLAND FOODSERVICE,Catering costs - provisions,51.96,0.00,51.96
Children and Adult Services,Childrens Services,Coxhoe Satelite Home,Supplies and Services,Provisions,05-May-2016,ALDI,Catering costs - provisions,7.80,1.30,6.50
Children and Adult Services,Childrens Services,Coxhoe Satelite Home,Supplies and Services,Provisions,05-May-2016,ALDI,Catering costs - provisions,71.59,,71.59
Neighbourhood Services,Culture & Sport,Wellbeing4Life,Supplies and Services,Clothing Uniforms and Laundry,05-May-2016,POUNDWORLD,Clothing uniforms and laundry,5.00,0.00,5.00
Children and Adult Services,Childrens Services,TTF-Attachment and Results,Supplies and Services,Furniture,05-May-2016,FRANKS THE FLOORING ST,Furniture repair and replacement,144.00,0.00,144.00
Resources,I.C.T. Services,Administration,Transport,Public Transport,05-May-2016,OYSTER RENEW WEB,Staff travelling,50.00,0.00,50.00
Resources,Legal & Democratic Services,Democratic Representation,Supplies and Services,Subscriptions,05-May-2016,WWW.ICO.GOV.UK,Subscriptions,35.00,0.00,35.00
Neighbourhood Services,Direct Services,Building Services - Business Development & Management,Supplies and Services,Printing Stationery and Gen Off Exps,05-May-2016,CURRYS ONLINE,Stationery,25.98,0.00,25.98
Neighbourhood Services,Direct Services,C&G - North Grounds Maintenance,Supplies and Services,Equipment and Materials,05-May-2016,HARELAW SAWMILL,Equipment-purchase and rental,28.19,4.70,23.49
Regeneration & Economic Development,Transport and Contracted Services,Care Connect All Localities,Supplies and Services,Telephones,05-May-2016,BT BILL PAYMENT 2,Telephones general-all costs,95.82,15.97,79.85
Regeneration & Economic Development,Transport and Contracted Services,Care Connect All Localities,Supplies and Services,Telephones,05-May-2016,BT BILL PAYMENT 2,Telephones general-all costs,7.50,,7.50
Regeneration & Economic Development,Economic Development and Housing,B& B - Temp Accom,Supplies and Services,Grants to Voluntary Organisations,05-May-2016,AYCLIFFE BIZ,Accommodation assistance,35.00,0.00,35.00
Regeneration & Economic Development,Economic Development and Housing,B& B - Temp Accom,Supplies and Services,Grants to Voluntary Organisations,05-May-2016,AYCLIFFE BIZ,Accommodation assistance,30.00,0.00,30.00
Neighbourhood Services,Culture & Sport,Hardwick Hall Country Park,Supplies and Services,Printing Stationery and Gen Off Exps,05-May-2016,FIRSTAID4LESS.CO.UK,Stationery,12.12,2.02,10.10
Neighbourhood Services,Culture & Sport,Woodhouse Close Leisure Complex,Supplies and Services,Provisions,05-May-2016,JR HOLLAND FOODSERVICE,Catering costs - provisions,25.97,0.00,25.97
Neighbourhood Services,Culture & Sport,Woodhouse Close Leisure Complex,Supplies and Services,Provisions,05-May-2016,BRAKE BROS LTD,Catering costs - provisions,36.30,6.05,30.25
Neighbourhood Services,Culture & Sport,Woodhouse Close Leisure Complex,Supplies and Services,Provisions,05-May-2016,BRAKE BROS LTD,Catering costs - provisions,90.59,,90.59
Regeneration & Economic Development,Economic Development and Housing,Employability - Youth Contract,Supplies and Services,Provisions,05-May-2016,CO-OP GROUP 010511,Catering costs - provisions,92.00,0.00,92.00
Children and Adult Services,Planning & Service Strategy,SF-Rivergreen Durham,Transport,Public Transport,05-May-2016,P & O FERRIES LTD,Travel-clients/students/children,443.00,0.00,443.00
Regeneration & Economic Development,Spatial Policy Planning Assets & Environment,North Pennines Core,Supplies and Services,Subscriptions,05-May-2016,SURVEYMONKEY.COM,Subscriptions,26.00,4.33,21.67
Regeneration & Economic Development,Economic Development and Housing,Business Growth and Innovation General,Supplies and Services,Equipment and Materials,06-May-2016,MEETEDGAR.COM STARTER,Other consumables,0.93,0.00,0.93
Regeneration & Economic Development,Economic Development and Housing,Business Growth and Innovation General,Supplies and Services,Advertising,06-May-2016,ADROLL,Advertising other than for staff,0.14,0.00,0.14
Children and Adult Services,Education,Selby Cottage Childcare Centre,Supplies and Services,Clothing Uniforms and Laundry,06-May-2016,THE RANGE,Clothing uniforms and laundry,134.25,0.00,134.25
Children and Adult Services,Childrens Services,Bishop Auckland and Barnard Castle Locality,Supplies and Services,Equipment and Materials,06-May-2016,SCANNING PENS LTD,Equipment-purchase and rental,184.79,0.00,184.79
Neighbourhood Services,Direct Services,C&G - South Grounds Maintenance,Supplies and Services,Equipment and Materials,06-May-2016,SCREWFIX,Equipment-purchase and rental,11.48,1.91,9.57
Neighbourhood Services,Direct Services,Catering - County Hall Restaurant,Supplies and Services,Provisions,06-May-2016,JR HOLLAND FOODSERVICE,Catering costs - provisions,89.51,0.00,89.51
Neighbourhood Services,Direct Services,Catering - County Hall Restaurant,Supplies and Services,Provisions,06-May-2016,JR HOLLAND FOODSERVICE,Catering costs - provisions,50.53,0.00,50.53
Neighbourhood Services,Direct Services,Catering - County Hall Restaurant,Supplies and Services,Provisions,06-May-2016,JR HOLLAND FOODSERVICE,Catering costs - provisions,13.16,0.00,13.16
Neighbourhood Services,Direct Services,Catering - County Hall Restaurant,Supplies and Services,Provisions,06-May-2016,BRAKE BROS LTD,Catering costs - provisions,117.12,19.52,97.60
Neighbourhood Services,Direct Services,Catering - County Hall Restaurant,Supplies and Services,Provisions,06-May-2016,BRAKE BROS LTD,Catering costs - provisions,206.04,,206.04
Neighbourhood Services,Culture & Sport,Gala Theatre - Catering etc,Supplies and Services,Provisions,06-May-2016,JR HOLLAND FOODSERVICE,Catering costs - provisions,42.68,0.00,42.68
Children and Adult Services,Childrens Services,Durham 0 - 5,Supplies and Services,Provisions,06-May-2016,CO-OP GROUP 010460,Catering costs - provisions,9.30,0.00,9.30
Neighbourhood Services,Culture & Sport,Locality 3 Team Management,Supplies and Services,Clothing Uniforms and Laundry,06-May-2016,ARGOS RETAIL GROUP,Clothing uniforms and laundry,233.96,38.99,194.97
Children and Adult Services,Education,Dean Bank Childcare,Supplies and Services,Newspapers Books and Periodicals,06-May-2016,HOME BARGAINS SPENNYMO,Books-school library,17.70,2.95,14.75
Children and Adult Services,Education,Dean Bank Childcare,Supplies and Services,Newspapers Books and Periodicals,06-May-2016,HOME BARGAINS SPENNYMO,Books-school library,0.89,,0.89
Children and Adult Services,Education,Durham Education Business Partnership,Supplies and Services,Equipment and Materials,06-May-2016,"Amazon Svcs Europe,SAR",Other consumables,69.99,0.00,69.99
Children and Adult Services,Childrens Services,Lumley,Supplies and Services,Newspapers Books and Periodicals,06-May-2016,Amazon UK Marketplace,Books-school library,5.49,0.00,5.49
Children and Adult Services,Childrens Services,Lumley,Supplies and Services,Newspapers Books and Periodicals,06-May-2016,Amazon UK Marketplace,Books-school library,8.98,0.00,8.98
Children and Adult Services,Childrens Services,Lumley,Supplies and Services,Newspapers Books and Periodicals,06-May-2016,Amazon UK Marketplace,Books-school library,10.11,0.00,10.11
Children and Adult Services,Childrens Services,Secure Management,Supplies and Services,Provisions,06-May-2016,TESCO STORES 6329,Catering costs - provisions,85.08,0.00,85.08
Neighbourhood Services,Culture & Sport,Hardwick Park Catering,Supplies and Services,Provisions,06-May-2016,JR HOLLAND FOODSERVICE,Catering costs - provisions,7.28,0.00,7.28
Neighbourhood Services,Culture & Sport,Hardwick Park Catering,Supplies and Services,Provisions,06-May-2016,BRAKE BROS LTD,Catering costs - provisions,333.78,55.63,278.15
Neighbourhood Services,Culture & Sport,Hardwick Park Catering,Supplies and Services,Provisions,06-May-2016,BRAKE BROS LTD,Catering costs - provisions,313.62,,313.62
Neighbourhood Services,Culture & Sport,Hardwick Park Catering,Supplies and Services,Provisions,06-May-2016,BRAKE BROS LTD,Catering costs - provisions,394.32,65.72,328.60
Neighbourhood Services,Culture & Sport,Hardwick Park Catering,Supplies and Services,Provisions,06-May-2016,BRAKE BROS LTD,Catering costs - provisions,120.07,,120.07
Children and Adult Services,Childrens Services,Bishop Auckland One Point Hub,Supplies and Services,Provisions,06-May-2016,WM MORRISON 040,Catering costs - provisions,16.00,0.00,16.00
Children and Adult Services,Childrens Services,Consett and Stanley Locality,Supplies and Services,Miscellaneous Expenses,06-May-2016,ROSEBUD CERAMICS,Other expenses,157.50,0.00,157.50
Neighbourhood Services,Direct Services,C&G - South Grounds Maintenance,Transport,Running Costs of Vehicles,06-May-2016,SNOWBALLS (RAILWAY,Vehicle running expenses,223.15,37.19,185.96
Neighbourhood Services,Direct Services,Repairs & Maintenance General,Supplies and Services,Telephones,06-May-2016,Amazon UK Marketplace,Telephones general-all costs,22.01,0.00,22.01
Assistant Chief Executive,Partnerships & Community Engagement Div.,Syrian Vulnerable Persons Scheme,Supplies and Services,Miscellaneous Expenses,06-May-2016,ARGOS RETAIL GROUP,Other expenses,172.71,0.00,172.71
Resources,Financial Services,Assessment,Supplies and Services,Miscellaneous Expenses,06-May-2016,DISCLOSURE SCOT,Licences,25.00,0.00,25.00
Neighbourhood Services,Culture & Sport,Bp Auckland Town Hall Cafe,Supplies and Services,Provisions,06-May-2016,JR HOLLAND FOODSERVICE,Catering costs - provisions,23.34,0.00,23.34
Regeneration & Economic Development,Transport and Contracted Services,Care Connect All Localities,Supplies and Services,Telephones,06-May-2016,BT BILL PAYMENT 2,Telephones general-all costs,83.82,13.97,69.85
Regeneration & Economic Development,Transport and Contracted Services,Care Connect All Localities,Supplies and Services,Telephones,06-May-2016,BT BILL PAYMENT 2,Telephones general-all costs,76.70,12.78,63.92
Regeneration & Economic Development,Transport and Contracted Services,Care Connect All Localities,Supplies and Services,Telephones,06-May-2016,BT BILL PAYMENT 2,Telephones general-all costs,83.82,13.97,69.85
Regeneration & Economic Development,Transport and Contracted Services,Care Connect All Localities,Supplies and Services,Telephones,06-May-2016,BT BILL PAYMENT 2,Telephones general-all costs,108.37,18.06,90.31
Regeneration & Economic Development,Transport and Contracted Services,Care Connect All Localities,Supplies and Services,Telephones,06-May-2016,BT BILL PAYMENT 2,Telephones general-all costs,83.82,13.97,69.85
Regeneration & Economic Development,Transport and Contracted Services,Care Connect All Localities,Supplies and Services,Telephones,06-May-2016,BT BILL PAYMENT 2,Telephones general-all costs,27.94,4.66,23.28
Neighbourhood Services,Direct Services,Catering - Service Direct,Supplies and Services,Provisions,06-May-2016,JR HOLLAND FOODSERVICE,Catering costs - provisions,43.70,0.00,43.70
Neighbourhood Services,Direct Services,Catering - Service Direct,Supplies and Services,Provisions,06-May-2016,JR HOLLAND FOODSERVICE,Catering costs - provisions,9.87,0.00,9.87
Neighbourhood Services,Culture & Sport,Positive Futures,Supplies and Services,Provisions,06-May-2016,W M MORRISONS,Catering costs - provisions,12.80,0.00,12.80
Resources,Financial Services,Purchasing,Supplies and Services,Equipment and Materials,06-May-2016,WWW.INTELLISPHEREGROUP,Other consumables,186.00,31.00,155.00
Neighbourhood Services,Culture & Sport,Woodhouse Close Leisure Complex,Supplies and Services,Provisions,06-May-2016,BRAKE BROS LTD,Catering costs - provisions,85.09,0.00,85.09
Children and Adult Services,Childrens Services,9 Cedar Drive Aycliffe,Supplies and Services,Provisions,07-May-2016,TESCO STORES 2916,Catering costs - provisions,70.97,0.00,70.97
Neighbourhood Services,Culture & Sport,Bp Auckland Town Hall Library,Supplies and Services,Newspapers Books and Periodicals,07-May-2016,Amazon EU,Books-school library,49.96,0.00,49.96
Children and Adult Services,Childrens Services,Secure Management,Supplies and Services,Provisions,07-May-2016,TESCO STORES 6329,Catering costs - provisions,97.32,0.00,97.32
Children and Adult Services,Childrens Services,Secure Education,Employees,Recruitment Instruction and Training,07-May-2016,EVENTBRITE INC,Training-all costs,-22.29,0.00,-22.29
Neighbourhood Services,Culture & Sport,Hardwick Park Catering,Supplies and Services,Provisions,07-May-2016,BRAKE BROS LTD,Catering costs - provisions,-26.35,-4.39,-21.96
Resources,Resources Management,Resources Management,Supplies and Services,Provisions,07-May-2016,CO-OP GROUP 010830,Catering costs - provisions,16.03,0.00,16.03
Regeneration & Economic Development,Economic Development and Housing,Business Growth and Innovation General,Supplies and Services,Advertising,08-May-2016,TWITTER ADVERTISING,Advertising other than for staff,6.41,0.00,6.41
Resources,I.C.T. Services,Applications and Development,Supplies and Services,Computers and Communications,08-May-2016,ISSUU,Computer hardware,288.90,0.00,288.90
Neighbourhood Services,Culture & Sport,Positive Futures,Supplies and Services,Provisions,08-May-2016,W M MORRISONS,Catering costs - provisions,6.45,0.00,6.45
Resources,I.C.T. Services,Applications and Development,Supplies and Services,Computers and Communications,09-May-2016,ISSUU,Computer hardware,7.94,0.00,7.94
Children and Adult Services,Education,Selby Cottage Childcare Centre,Supplies and Services,Provisions,09-May-2016,TESCO STORES 2278,Catering costs - provisions,13.25,0.00,13.25
Children and Adult Services,Childrens Services,Bishop Auckland and Barnard Castle Locality,Supplies and Services,Equipment and Materials,09-May-2016,Amazon Prime,Misc equipment tools and materials,-79.00,0.00,-79.00
Children and Adult Services,Education,Shildon Childcare,Supplies and Services,Equipment and Materials,09-May-2016,Amazon UK Marketplace,Toys,4.95,0.00,4.95
Children and Adult Services,Childrens Services,9 Cedar Drive Aycliffe,Supplies and Services,Provisions,09-May-2016,TESCO STORES 2916,Catering costs - provisions,19.10,0.00,19.10
Regeneration & Economic Development,Economic Development and Housing,Business Growth and Innovation General,Supplies and Services,Newspapers Books and Periodicals,09-May-2016,FASTHOSTS INTERNET,Books-school library,14.38,2.40,11.98
Resources,Financial Services,SF-Financial Services Team,Supplies and Services,Clothing Uniforms and Laundry,09-May-2016,B&M RETAIL,Clothing uniforms and laundry,141.92,23.65,118.27
Neighbourhood Services,Direct Services,Catering - County Hall Restaurant,Supplies and Services,Provisions,09-May-2016,BRAMBLES FOODS LTD,Catering costs - provisions,461.67,0.00,461.67
Neighbourhood Services,Direct Services,Catering - County Hall Restaurant,Supplies and Services,Provisions,09-May-2016,FREEMAN CATERING BUTCH,Catering costs - provisions,91.83,0.00,91.83
Neighbourhood Services,Direct Services,Catering - County Hall Restaurant,Supplies and Services,Provisions,09-May-2016,JR HOLLAND FOODSERVICE,Catering costs - provisions,64.87,0.00,64.87
Neighbourhood Services,Direct Services,Catering - County Hall Restaurant,Supplies and Services,Provisions,09-May-2016,JR HOLLAND FOODSERVICE,Catering costs - provisions,13.52,0.00,13.52
Resources,I.C.T. Services,Domains,Supplies and Services,Subscriptions,09-May-2016,NOMINET UK,Subscriptions,18.00,0.00,18.00
Resources,I.C.T. Services,Domains,Supplies and Services,Subscriptions,09-May-2016,NOMINET UK,Subscriptions,54.00,0.00,54.00
Neighbourhood Services,Culture & Sport,Office Services,Supplies and Services,Newspapers Books and Periodicals,09-May-2016,123-REG.CO.UK,Books-school library,33.55,5.59,27.96
Children and Adult Services,Education,Dean Bank Childcare,Supplies and Services,Provisions,09-May-2016,CO-OP GROUP 010503,Catering costs - provisions,3.72,0.00,3.72
Children and Adult Services,Childrens Services,High Etherley Satelite Home,Supplies and Services,Provisions,09-May-2016,TESCO STORES 6329,Catering costs - provisions,9.65,0.00,9.65
Children and Adult Services,Childrens Services,Lumley,Supplies and Services,Newspapers Books and Periodicals,09-May-2016,Amazon UK Marketplace,Books-school library,4.24,0.00,4.24
Children and Adult Services,Childrens Services,Lumley,Supplies and Services,Newspapers Books and Periodicals,09-May-2016,Amazon UK Marketplace,Books-school library,8.98,0.00,8.98
Children and Adult Services,Childrens Services,Secure Management,Supplies and Services,Clothing Uniforms and Laundry,09-May-2016,WWW.DESIGNERWEAR2U.COM,Clothing uniforms and laundry,-67.50,0.00,-67.50
Neighbourhood Services,Culture & Sport,Hardwick Park Catering,Supplies and Services,Provisions,09-May-2016,FREEMAN CATERING BUTCH,Catering costs - provisions,25.71,0.00,25.71
Neighbourhood Services,Culture & Sport,Hardwick Park Catering,Supplies and Services,Provisions,09-May-2016,FREEMAN CATERING BUTCH,Catering costs - provisions,21.66,0.00,21.66
Neighbourhood Services,Culture & Sport,Hardwick Park Catering,Supplies and Services,Provisions,09-May-2016,JR HOLLAND FOODSERVICE,Catering costs - provisions,17.39,0.00,17.39
Neighbourhood Services,Culture & Sport,Hardwick Park Catering,Supplies and Services,Provisions,09-May-2016,BRAKE BROS LTD,Catering costs - provisions,166.38,27.73,138.65
Neighbourhood Services,Culture & Sport,Hardwick Park Catering,Supplies and Services,Provisions,09-May-2016,BRAKE BROS LTD,Catering costs - provisions,165.98,,165.98
Neighbourhood Services,Culture & Sport,Hardwick Park Catering,Supplies and Services,Provisions,09-May-2016,BRAKE BROS LTD,Catering costs - provisions,152.10,25.35,126.75
Neighbourhood Services,Culture & Sport,Hardwick Park Catering,Supplies and Services,Provisions,09-May-2016,BRAKE BROS LTD,Catering costs - provisions,69.90,,69.90
Neighbourhood Services,Culture & Sport,Gala Theatre Stage School,Supplies and Services,Newspapers Books and Periodicals,09-May-2016,Amazon UK Marketplace,Books-school library,6.98,0.00,6.98
Neighbourhood Services,Culture & Sport,Gala Theatre Stage School,Supplies and Services,Newspapers Books and Periodicals,09-May-2016,Amazon UK Marketplace,Books-school library,4.20,0.00,4.20
Neighbourhood Services,Culture & Sport,Gala Theatre Stage School,Supplies and Services,Newspapers Books and Periodicals,09-May-2016,Amazon UK Marketplace,Books-school library,19.50,0.00,19.50
Neighbourhood Services,Culture & Sport,Gala Theatre Stage School,Supplies and Services,Newspapers Books and Periodicals,09-May-2016,Amazon UK Marketplace,Books-school library,12.63,0.00,12.63
Neighbourhood Services,Culture & Sport,Gala Theatre Stage School,Supplies and Services,Clothing Uniforms and Laundry,09-May-2016,INTERNATIONAL DANCE,Clothing uniforms and laundry,143.70,23.95,119.75
Neighbourhood Services,Culture & Sport,Gala Theatre Stage School,Supplies and Services,Clothing Uniforms and Laundry,09-May-2016,INTERNATIONAL DANCE,Clothing uniforms and laundry,34.65,,34.65
Neighbourhood Services,Culture & Sport,Gala Theatre Stage School,Supplies and Services,Newspapers Books and Periodicals,09-May-2016,Amazon UK Marketplace,Books-school library,13.80,0.00,13.80
Neighbourhood Services,Culture & Sport,Gala Theatre Stage School,Supplies and Services,Newspapers Books and Periodicals,09-May-2016,Amazon UK Marketplace,Books-school library,13.99,0.00,13.99
Neighbourhood Services,Direct Services,Catering - Green Lane Canteen,Supplies and Services,Provisions,09-May-2016,BRAMBLES FOODS LTD,Catering costs - provisions,85.27,0.00,85.27
Neighbourhood Services,Direct Services,Catering - Green Lane Canteen,Supplies and Services,Provisions,09-May-2016,FREEMAN CATERING BUTCH,Catering costs - provisions,41.35,0.00,41.35
Children and Adult Services,Childrens Services,Tow Law CU,Supplies and Services,Provisions,09-May-2016,TESCO STORES 2916,Catering costs - provisions,30.49,0.00,30.49
Neighbourhood Services,Culture & Sport,Wellbeing4Life,Supplies and Services,Provisions,09-May-2016,TESCO STORES 6329,Catering costs - provisions,23.23,0.00,23.23
Regeneration & Economic Development,Spatial Policy Planning Assets & Environment,North Pennines - Cold Blooded & Spineless,Supplies and Services,Equipment and Materials,09-May-2016,WWW.BRUNELMICROSCOPES.,Equipment-purchase and rental,307.60,0.00,307.60
Resources,I.C.T. Services,Administration,Transport,Public Transport,09-May-2016,OYSTER RENEW WEB,Staff travelling,50.00,0.00,50.00
Neighbourhood Services,Direct Services,C&G - North Grounds Maintenance,Supplies and Services,Newspapers Books and Periodicals,09-May-2016,GRALANDS WOODWORK SUPP,Books-school library,12.50,0.00,12.50
Neighbourhood Services,Direct Services,C&G - North Grounds Maintenance,Supplies and Services,Equipment and Materials,09-May-2016,BESCOL,Other consumables,20.74,3.46,17.28
Neighbourhood Services,Culture & Sport,Bp Auckland Town Hall Cafe,Supplies and Services,Provisions,09-May-2016,BRAMBLES FOODS LTD,Catering costs - provisions,61.69,0.00,61.69
Neighbourhood Services,Culture & Sport,Bp Auckland Town Hall Cafe,Supplies and Services,Provisions,09-May-2016,JR HOLLAND FOODSERVICE,Catering costs - provisions,6.24,0.00,6.24
Neighbourhood Services,Direct Services,Catering - Service Direct,Supplies and Services,Provisions,09-May-2016,BRAMBLES FOODS LTD,Catering costs - provisions,33.68,0.00,33.68
Neighbourhood Services,Direct Services,Catering - Service Direct,Supplies and Services,Provisions,09-May-2016,FREEMAN CATERING BUTCH,Catering costs - provisions,66.56,0.00,66.56
Neighbourhood Services,Direct Services,C&G - North Grounds Maintenance,Supplies and Services,Equipment and Materials,09-May-2016,MKM BUILDING SUPPLIES,Equipment-purchase and rental,234.24,39.04,195.20
Neighbourhood Services,Direct Services,C&G - North Grounds Maintenance,Supplies and Services,Equipment and Materials,09-May-2016,GUSTHARTS CHAINSAW CTR,Misc equipment tools and materials,104.97,17.50,87.47
Neighbourhood Services,Culture & Sport,Positive Futures,Supplies and Services,Provisions,09-May-2016,CO-OP GROUP 010490,Catering costs - provisions,8.28,0.00,8.28
Children and Adult Services,Childrens Services,New Lea Childrens Home,Supplies and Services,Newspapers Books and Periodicals,09-May-2016,Amazon UK Marketplace,Books-school library,39.00,0.00,39.00
Children and Adult Services,Childrens Services,New Lea Childrens Home,Supplies and Services,Services,09-May-2016,HMCOURTS-SERVICE.G,Court Costs,15.00,0.00,15.00
Children and Adult Services,Childrens Services,New Lea Childrens Home,Supplies and Services,Services,09-May-2016,HMCOURTS-SERVICE.G,Court Costs,15.00,0.00,15.00
Children and Adult Services,Childrens Services,New Lea Childrens Home,Supplies and Services,Services,09-May-2016,HMCOURTS-SERVICE.G,Court Costs,10.00,0.00,10.00
Neighbourhood Services,Culture & Sport,Woodhouse Close Leisure Complex,Supplies and Services,Provisions,09-May-2016,JR HOLLAND FOODSERVICE,Catering costs - provisions,35.84,0.00,35.84
Neighbourhood Services,Culture & Sport,Woodhouse Close Leisure Complex,Supplies and Services,Provisions,09-May-2016,BRAKE BROS LTD,Catering costs - provisions,74.55,0.00,74.55
Regeneration & Economic Development,Economic Development and Housing,Employability - Youth Contract,Supplies and Services,Equipment and Materials,09-May-2016,SCREWFIX,Equipment-purchase and rental,402.92,0.00,402.92
Children and Adult Services,Planning & Service Strategy,SF-Rivergreen Durham,Supplies and Services,Newspapers Books and Periodicals,09-May-2016,DISNEY MAILORDER,Books-school library,809.24,0.00,809.24
Neighbourhood Services,Direct Services,Nei.Prot - Countywide Anti Social Behaviour,Supplies and Services,Postages,09-May-2016,POST OFFICE SHOP,Postages,3.00,0.50,2.50
Neighbourhood Services,Direct Services,Nei.Prot - Countywide Anti Social Behaviour,Supplies and Services,Postages,09-May-2016,POST OFFICE SHOP,Postages,127.99,,127.99
Children and Adult Services,Planning & Service Strategy,SF-Rivergreen Durham,Supplies and Services,Newspapers Books and Periodicals,10-May-2016,DISNEY MAILORDER,Books-school library,22.25,0.00,22.25
Children and Adult Services,Education,Selby Cottage Childcare Centre,Supplies and Services,Equipment and Materials,10-May-2016,WILKO RETAIL LIMIT,Equipment-purchase and rental,38.65,0.00,38.65
Children and Adult Services,Education,Selby Cottage Childcare Centre,Supplies and Services,Provisions,10-May-2016,TESCO STORES 2278,Catering costs - provisions,14.11,0.00,14.11
Children and Adult Services,Childrens Services,Bishop Auckland and Barnard Castle Locality,Supplies and Services,Provisions,10-May-2016,TESCO STORES 6329,Catering costs - provisions,46.84,0.00,46.84
Neighbourhood Services,Direct Services,C&G - South Street Cleansing,Supplies and Services,Equipment and Materials,10-May-2016,R DEFTY,Direct materials,24.85,0.00,24.85
Neighbourhood Services,Direct Services,C&G - South Street Cleansing,Supplies and Services,Equipment and Materials,10-May-2016,R DEFTY,Direct materials,5.00,0.00,5.00
Neighbourhood Services,Direct Services,Catering - County Hall Restaurant,Supplies and Services,Provisions,10-May-2016,JR HOLLAND FOODSERVICE,Catering costs - provisions,71.89,0.00,71.89
Neighbourhood Services,Direct Services,Catering - County Hall Restaurant,Supplies and Services,Provisions,10-May-2016,JR HOLLAND FOODSERVICE,Catering costs - provisions,6.58,0.00,6.58
Neighbourhood Services,Direct Services,Catering - County Hall Restaurant,Supplies and Services,Provisions,10-May-2016,BRAKE BROS LTD,Catering costs - provisions,747.52,0.00,747.52
Resources,I.C.T. Services,Domains,Supplies and Services,Subscriptions,10-May-2016,WEB NETWORKSOLUTIONS,Subscriptions,1.65,0.00,1.65
Neighbourhood Services,Culture & Sport,Gala Theatre - Catering etc,Supplies and Services,Provisions,10-May-2016,JR HOLLAND FOODSERVICE,Catering costs - provisions,15.60,0.00,15.60
Neighbourhood Services,Culture & Sport,Gala Theatre - Catering etc,Supplies and Services,Provisions,10-May-2016,BRAKE BROS LTD,Catering costs - provisions,201.54,33.59,167.95
Neighbourhood Services,Culture & Sport,Gala Theatre - Catering etc,Supplies and Services,Provisions,10-May-2016,BRAKE BROS LTD,Catering costs - provisions,118.85,,118.85
Neighbourhood Services,Culture & Sport,Gala Theatre - Catering etc,Supplies and Services,Provisions,10-May-2016,BRAKE BROS LTD,Catering costs - provisions,20.95,0.00,20.95
Children and Adult Services,Childrens Services,Framwellgate Moor CU,Supplies and Services,Provisions,10-May-2016,ASDA HOME SHOPPING,Catering costs - provisions,179.64,0.00,179.64
Regeneration & Economic Development,Economic Development and Housing,Employability - Youth Contract,Supplies and Services,Equipment and Materials,10-May-2016,GRO HM PASSPORT OFFICE,Equipment-purchase and rental,9.25,0.00,9.25
Children and Adult Services,Education,Dean Bank Childcare,Supplies and Services,Clothing Uniforms and Laundry,10-May-2016,THE RANGE,Clothing uniforms and laundry,108.51,0.00,108.51
Children and Adult Services,Education,Dean Bank Childcare,Supplies and Services,Newspapers Books and Periodicals,10-May-2016,HOME BARGAINS SPENNYMO,Books-school library,14.82,2.47,12.35
Children and Adult Services,Education,Dean Bank Childcare,Supplies and Services,Newspapers Books and Periodicals,10-May-2016,HOME BARGAINS SPENNYMO,Books-school library,1.59,,1.59
Children and Adult Services,Education,Dean Bank Childcare,Supplies and Services,Provisions,10-May-2016,ASDA SUPERSTORE 4987,Catering costs - provisions,114.64,0.00,114.64
Children and Adult Services,Education,Dean Bank Childcare,Supplies and Services,Clothing Uniforms and Laundry,10-May-2016,B&M RETAIL LTD,Clothing uniforms and laundry,60.32,0.00,60.32
Neighbourhood Services,Culture & Sport,Wharton Park,Supplies and Services,Equipment and Materials,10-May-2016,Amazon UK Marketplace,Other consumables,21.25,0.00,21.25
Regeneration & Economic Development,Economic Development and Housing,Organisational Training & Development,Employees,Recruitment Instruction and Training,10-May-2016,NCS VUE CITB HS&E REV,Training-all costs,390.00,0.00,390.00
Children and Adult Services,Childrens Services,Secure Management,Supplies and Services,Clothing Uniforms and Laundry,10-May-2016,SELECT,Clothing uniforms and laundry,11.98,0.00,11.98
Children and Adult Services,Childrens Services,Secure Management,Supplies and Services,Clothing Uniforms and Laundry,10-May-2016,WWW.FOOTLOCKER.EU,Clothing uniforms and laundry,129.99,21.67,108.32
Children and Adult Services,Childrens Services,Secure Management,Supplies and Services,Clothing Uniforms and Laundry,10-May-2016,WWW.FOOTLOCKER.EU,Clothing uniforms and laundry,89.99,15.00,74.99
Children and Adult Services,Childrens Services,Secure Management,Supplies and Services,Clothing Uniforms and Laundry,10-May-2016,BOOHOO.COM,Clothing uniforms and laundry,46.99,0.00,46.99
Children and Adult Services,Childrens Services,Secure Management,Supplies and Services,Clothing Uniforms and Laundry,10-May-2016,PRETTYLITTLETHING.COM,Clothing uniforms and laundry,18.99,0.00,18.99
Children and Adult Services,Childrens Services,Secure Management,Supplies and Services,Clothing Uniforms and Laundry,10-May-2016,NEXT DIRECTORY,Clothing uniforms and laundry,80.99,0.00,80.99
Neighbourhood Services,Culture & Sport,Hardwick Park Catering,Supplies and Services,Provisions,10-May-2016,JR HOLLAND FOODSERVICE,Catering costs - provisions,81.58,0.00,81.58
Neighbourhood Services,Culture & Sport,Hardwick Park Catering,Supplies and Services,Provisions,10-May-2016,JR HOLLAND FOODSERVICE,Catering costs - provisions,31.74,0.00,31.74
Neighbourhood Services,Culture & Sport,Hardwick Park Catering,Supplies and Services,Provisions,10-May-2016,JR HOLLAND FOODSERVICE,Catering costs - provisions,21.94,0.00,21.94
Neighbourhood Services,Culture & Sport,Hardwick Park Catering,Supplies and Services,Provisions,10-May-2016,JR HOLLAND FOODSERVICE,Catering costs - provisions,16.86,0.00,16.86
Neighbourhood Services,Culture & Sport,Hardwick Park Catering,Supplies and Services,Provisions,10-May-2016,JR HOLLAND FOODSERVICE,Catering costs - provisions,8.37,0.00,8.37
Neighbourhood Services,Culture & Sport,Hardwick Park Catering,Supplies and Services,Provisions,10-May-2016,BRAKE BROS LTD,Catering costs - provisions,663.42,110.57,552.85
Neighbourhood Services,Culture & Sport,Hardwick Park Catering,Supplies and Services,Provisions,10-May-2016,BRAKE BROS LTD,Catering costs - provisions,86.38,,86.38
Neighbourhood Services,Culture & Sport,Gala Theatre Stage School,Supplies and Services,Newspapers Books and Periodicals,10-May-2016,Amazon UK Marketplace,Books-school library,5.45,0.00,5.45
Neighbourhood Services,Culture & Sport,Gala Theatre Stage School,Supplies and Services,Newspapers Books and Periodicals,10-May-2016,Amazon UK Marketplace,Books-school library,2.98,0.00,2.98
Neighbourhood Services,Culture & Sport,Gala Theatre Stage School,Supplies and Services,Miscellaneous Expenses,10-May-2016,UKMAGIC/FANCYDRESS,Other expenses,28.98,4.83,24.15
Neighbourhood Services,Culture & Sport,Gala Theatre Stage School,Supplies and Services,Miscellaneous Expenses,10-May-2016,UKMAGIC/FANCYDRESS,Other expenses,367.08,61.18,305.90
Regeneration & Economic Development,Economic Development and Housing,International Relations,Supplies and Services,Miscellaneous Expenses,10-May-2016,MARKS&SPENCER PLC,International visits,4.00,0.00,4.00
Regeneration & Economic Development,Economic Development and Housing,International Relations,Supplies and Services,Miscellaneous Expenses,10-May-2016,MONSOON/ACCZ LTD,International visits,12.00,0.00,12.00
Regeneration & Economic Development,Economic Development and Housing,International Relations,Supplies and Services,Miscellaneous Expenses,10-May-2016,AU BON ABRI,International visits,612.86,0.00,612.86
Neighbourhood Services,Direct Services,Catering - Green Lane Canteen,Supplies and Services,Provisions,10-May-2016,BRAKE BROS LTD,Catering costs - provisions,37.68,0.00,37.68
Children and Adult Services,Childrens Services,Tow Law CU,Supplies and Services,Provisions,10-May-2016,TESCO STORES 2371,Catering costs - provisions,225.68,0.00,225.68
Children and Adult Services,Childrens Services,Consett and Stanley Locality,Supplies and Services,Provisions,10-May-2016,ASDA SUPERSTORE,Catering costs - provisions,70.00,0.00,70.00
Children and Adult Services,Education,16-19 Education & Training,Supplies and Services,Postages,10-May-2016,WWW.ROYALMAIL.COM,Postages,174.00,0.00,174.00
Children and Adult Services,Childrens Services,TTF-Attachment and Results,Supplies and Services,Equipment and Materials,10-May-2016,ASDA 4387,Other consumables,97.95,0.00,97.95
Resources,Internal Audit and Insurance,Insurance and Risk,Supplies and Services,Services,10-May-2016,DISCLOSURE SCOT,Disclosure & Barring (DBS) Fees,25.00,0.00,25.00
Resources,Financial Services,Assessment,Supplies and Services,Subscriptions,10-May-2016,DISCLOSURE SCOT,Subscriptions,25.00,0.00,25.00
Regeneration & Economic Development,Spatial Policy Planning Assets & Environment,Asset Management,Supplies and Services,Conference Expenses,10-May-2016,EB WILDLIFE IN CONSTR,Conferencesseminars fees etc,11.74,0.00,11.74
Resources,Legal & Democratic Services,Democratic Representation,Supplies and Services,Subscriptions,10-May-2016,WWW.ICO.GOV.UK,Subscriptions,35.00,0.00,35.00
Resources,I.C.T. Services,Administration,Supplies and Services,Subscriptions,10-May-2016,WWW.ICO.GOV.UK,Subscriptions,35.00,0.00,35.00
Resources,Legal & Democratic Services,Democratic Representation,Supplies and Services,Subscriptions,10-May-2016,WWW.ICO.GOV.UK,Subscriptions,35.00,0.00,35.00
Resources,Legal & Democratic Services,Democratic Representation,Supplies and Services,Subscriptions,10-May-2016,WWW.ICO.GOV.UK,Subscriptions,35.00,0.00,35.00
Neighbourhood Services,Direct Services,C&G - North Grounds Maintenance,Supplies and Services,Equipment and Materials,10-May-2016,BESCOL,Other consumables,44.00,7.33,36.67
Neighbourhood Services,Direct Services,Catering - Service Direct,Supplies and Services,Provisions,10-May-2016,BRAKE BROS LTD,Catering costs - provisions,68.25,0.00,68.25
Children and Adult Services,Childrens Services,Ferryhill and Newton Aycliffe Locality,Supplies and Services,Provisions,10-May-2016,TESCO STORES 2916,Catering costs - provisions,100.00,0.00,100.00
Children and Adult Services,Childrens Services,New Lea Childrens Home,Supplies and Services,Newspapers Books and Periodicals,10-May-2016,Amazon UK Marketplace,Books-school library,12.38,0.00,12.38
Children and Adult Services,Childrens Services,Dean Bank Childrens Centre,Supplies and Services,Provisions,10-May-2016,CO-OP GROUP 010518,Catering costs - provisions,23.62,0.00,23.62
Children and Adult Services,Childrens Services,Laurel Avenue Childrens Centre,Supplies and Services,Newspapers Books and Periodicals,10-May-2016,HOME BARGAINS,Books-school library,11.97,2.00,9.97
Children and Adult Services,Planning & Service Strategy,SF-Rivergreen Durham,Transport,Public Transport,10-May-2016,PRINCE BISHOP SHOPPING,Staff travelling,2.10,0.00,2.10
Resources,Corporate Finance,Corporate Procurement,Supplies and Services,Postages,10-May-2016,POST OFFICE SHOP,Postages,3.00,0.50,2.50
Children and Adult Services,Head of Adults,Intermediate Care Plus - Easington,Supplies and Services,Postages,10-May-2016,POST OFFICE SHOP,Postages,92.49,,92.49
Children and Adult Services,Childrens Services,Secure Management,Supplies and Services,Clothing Uniforms and Laundry,10-May-2016,FLANNELSFASHION.,Clothing uniforms and laundry,120.99,0.00,120.99
Children and Adult Services,Childrens Services,Secure Management,Supplies and Services,Clothing Uniforms and Laundry,10-May-2016,NEW LOOK INTERNET,Clothing uniforms and laundry,101.44,0.00,101.44
Children and Adult Services,Childrens Services,Secure Management,Supplies and Services,Clothing Uniforms and Laundry,10-May-2016,WWW.TOPSHOP.COM,Clothing uniforms and laundry,32.00,0.00,32.00
Resources,I.C.T. Services,Domains,Supplies and Services,Subscriptions,11-May-2016,WEB NETWORKSOLUTIONS,Subscriptions,0.05,0.00,0.05
Regeneration & Economic Development,Economic Development and Housing,International Relations,Supplies and Services,Miscellaneous Expenses,11-May-2016,AU BON ABRI,International visits,16.85,0.00,16.85
Neighbourhood Services,Direct Services,C&G - South Street Cleansing,Supplies and Services,Equipment and Materials,11-May-2016,SIMPSON & ALLINSON MER,Equipment-purchase and rental,32.40,5.40,27.00
Neighbourhood Services,Direct Services,C&G - South Grounds Maintenance,Supplies and Services,Equipment and Materials,11-May-2016,MKM PETERLEE,Equipment-purchase and rental,80.58,0.00,80.58
Neighbourhood Services,Direct Services,C&G - South Grounds Maintenance,Supplies and Services,Equipment and Materials,11-May-2016,SCREWFIX,Equipment-purchase and rental,69.98,11.66,58.32
Neighbourhood Services,Direct Services,Catering - County Hall Restaurant,Supplies and Services,Provisions,11-May-2016,JR HOLLAND FOODSERVICE,Catering costs - provisions,162.18,0.00,162.18
Neighbourhood Services,Direct Services,Catering - County Hall Restaurant,Supplies and Services,Provisions,11-May-2016,JR HOLLAND FOODSERVICE,Catering costs - provisions,31.35,0.00,31.35
Neighbourhood Services,Direct Services,Catering - County Hall Restaurant,Supplies and Services,Provisions,11-May-2016,BRAKE BROS LTD,Catering costs - provisions,185.46,30.91,154.55
Neighbourhood Services,Direct Services,Catering - County Hall Restaurant,Supplies and Services,Provisions,11-May-2016,BRAKE BROS LTD,Catering costs - provisions,281.19,,281.19
Neighbourhood Services,Direct Services,Catering - County Hall Restaurant,Supplies and Services,Provisions,11-May-2016,BRAKE BROS LTD,Catering costs - provisions,90.60,0.00,90.60
Neighbourhood Services,Direct Services,Catering - County Hall Restaurant,Supplies and Services,Provisions,11-May-2016,BRAKE BROS LTD,Catering costs - provisions,-10.76,0.00,-10.76
Neighbourhood Services,Culture & Sport,Local Delivery-Libraries,Supplies and Services,Newspapers Books and Periodicals,11-May-2016,Amazon EU,Books-school library,19.98,0.00,19.98
Regeneration & Economic Development,Economic Development and Housing,Employability - Youth Contract,Supplies and Services,Provisions,11-May-2016,ASDA STORES,Catering costs - provisions,30.00,0.00,30.00
Neighbourhood Services,Direct Services,C&G - North Grounds Maintenance,Supplies and Services,Clothing Uniforms and Laundry,11-May-2016,THOMAS OWEN & SONS /N/,Clothing uniforms and laundry,190.15,31.69,158.46
Neighbourhood Services,Culture & Sport,Hardwick Park Catering,Supplies and Services,Provisions,11-May-2016,JR HOLLAND FOODSERVICE,Catering costs - provisions,43.36,0.00,43.36
Neighbourhood Services,Culture & Sport,Hardwick Park Catering,Supplies and Services,Provisions,11-May-2016,BRAKE BROS LTD,Catering costs - provisions,119.82,19.97,99.85
Neighbourhood Services,Culture & Sport,Hardwick Park Catering,Supplies and Services,Provisions,11-May-2016,BRAKE BROS LTD,Catering costs - provisions,141.18,,141.18
Neighbourhood Services,Culture & Sport,Hardwick Park Catering,Supplies and Services,Provisions,11-May-2016,BRAKE BROS LTD,Catering costs - provisions,-26.78,-4.46,-22.32
Resources,I.C.T. Services,Operations - System & Repairs Trading,Supplies and Services,Computers and Communications,11-May-2016,www.gedat.com,Computer hardware,116.76,0.00,116.76
Neighbourhood Services,Culture & Sport,Gala Theatre Stage School,Supplies and Services,Newspapers Books and Periodicals,11-May-2016,Amazon UK Marketplace,Books-school library,76.16,0.00,76.16
Neighbourhood Services,Culture & Sport,Gala Theatre Stage School,Supplies and Services,Newspapers Books and Periodicals,11-May-2016,Amazon UK Marketplace,Books-school library,192.77,0.00,192.77
Neighbourhood Services,Culture & Sport,Gala Theatre Stage School,Supplies and Services,Newspapers Books and Periodicals,11-May-2016,Amazon UK Marketplace,Books-school library,3.85,0.00,3.85
Neighbourhood Services,Culture & Sport,Gala Theatre Stage School,Supplies and Services,Newspapers Books and Periodicals,11-May-2016,Amazon UK Marketplace,Books-school library,23.82,0.00,23.82
Resources,I.C.T. Services,Business Support,Supplies and Services,Equipment and Materials,11-May-2016,SEBO ( UK) LTD,Equipment-purchase and rental,74.88,12.48,62.40
Neighbourhood Services,Direct Services,Catering - Green Lane Canteen,Supplies and Services,Provisions,11-May-2016,JR HOLLAND FOODSERVICE,Catering costs - provisions,28.25,0.00,28.25
Neighbourhood Services,Direct Services,Catering - Green Lane Canteen,Supplies and Services,Provisions,11-May-2016,BRAKE BROS LTD,Catering costs - provisions,105.13,0.00,105.13
Neighbourhood Services,Direct Services,Nei.Prot - Countywide N. Wardens,Supplies and Services,Equipment and Materials,11-May-2016,Amazon UK Marketplace,Other consumables,97.63,0.00,97.63
Children and Adult Services,Childrens Services,Bishop Auckland 0 - 5,Supplies and Services,Provisions,11-May-2016,TESCO STORES 6329,Catering costs - provisions,16.89,0.00,16.89
Children and Adult Services,Childrens Services,Consett and Stanley Locality,Supplies and Services,Furniture,11-May-2016,MAGUIRES,Furniture repair and replacement,150.00,0.00,150.00
Neighbourhood Services,Direct Services,C&G - South Grounds Maintenance,Supplies and Services,Newspapers Books and Periodicals,11-May-2016,C.L.A.S.S,Books-school library,8.60,0.00,8.60
Children and Adult Services,Childrens Services,Coxhoe Satelite Home,Supplies and Services,Furniture,11-May-2016,IKEA,Furniture repair and replacement,43.00,7.17,35.83
Regeneration & Economic Development,Economic Development and Housing,Employability - Youth Contract,Supplies and Services,Miscellaneous Expenses,11-May-2016,DVLA DRIVER ONLINE,Licences,20.00,0.00,20.00
Neighbourhood Services,Direct Services,Fleet - Meadowfield Fleet,Supplies and Services,Equipment and Materials,11-May-2016,QUICKFIT SAFETY BELT S,Direct materials,378.07,0.00,378.07
Children and Adult Services,Childrens Services,Coxhoe Satelite Home,Supplies and Services,Provisions,11-May-2016,ALDI,Catering costs - provisions,12.66,2.11,10.55
Children and Adult Services,Childrens Services,Coxhoe Satelite Home,Supplies and Services,Provisions,11-May-2016,ALDI,Catering costs - provisions,63.10,,63.10
Children and Adult Services,Childrens Services,Coxhoe Satelite Home,Supplies and Services,Equipment and Materials,11-May-2016,B AND Q 1343,Equipment-purchase and rental,10.15,0.00,10.15
Assistant Chief Executive,Policy & Communications Division,Corporate News,Supplies and Services,Subscriptions,11-May-2016,ADOBE CAPTIVATE SUBS,Subscriptions,22.86,0.00,22.86
Resources,Internal Audit and Insurance,Insurance and Risk,Supplies and Services,Services,11-May-2016,DISCLOSURE SCOT,Disclosure & Barring (DBS) Fees,25.00,0.00,25.00
Neighbourhood Services,Culture & Sport,Bp Auckland Town Hall Cafe,Supplies and Services,Provisions,11-May-2016,JR HOLLAND FOODSERVICE,Catering costs - provisions,23.43,0.00,23.43
Neighbourhood Services,Direct Services,Catering - Service Direct,Supplies and Services,Provisions,11-May-2016,JR HOLLAND FOODSERVICE,Catering costs - provisions,28.65,0.00,28.65
Neighbourhood Services,Direct Services,Catering - Service Direct,Supplies and Services,Provisions,11-May-2016,JR HOLLAND FOODSERVICE,Catering costs - provisions,13.45,0.00,13.45
Neighbourhood Services,Direct Services,Catering - Service Direct,Supplies and Services,Provisions,11-May-2016,BRAKE BROS LTD,Catering costs - provisions,52.14,8.69,43.45
Neighbourhood Services,Direct Services,Catering - Service Direct,Supplies and Services,Provisions,11-May-2016,BRAKE BROS LTD,Catering costs - provisions,96.24,,96.24
Neighbourhood Services,Culture & Sport,Positive Futures,Supplies and Services,Provisions,11-May-2016,ASDA STORES LTD,Catering costs - provisions,29.05,0.00,29.05
Neighbourhood Services,Culture & Sport,Woodhouse Close Leisure Complex,Supplies and Services,Provisions,11-May-2016,JR HOLLAND FOODSERVICE,Catering costs - provisions,31.22,0.00,31.22
Children and Adult Services,Planning & Service Strategy,SF-Rivergreen Durham,Supplies and Services,Newspapers Books and Periodicals,11-May-2016,DISNEY MAILORDER,Books-school library,"1,133.20",0.00,1133.20
Regeneration & Economic Development,Economic Development and Housing,Housing Solutions - Core Team,Employees,Recruitment Instruction and Training,11-May-2016,PREMIER INN,Training-all costs,82.00,13.67,68.33
Children and Adult Services,Childrens Services,Secure Management,Supplies and Services,Provisions,11-May-2016,TESCO STORES 6329,Catering costs - provisions,87.85,0.00,87.85
Resources,I.C.T. Services,Operations - System & Repairs Trading,Supplies and Services,Computers and Communications,12-May-2016,www.gedat.com,Computer hardware,3.21,0.00,3.21
Children and Adult Services,Planning & Service Strategy,SF-Rivergreen Durham,Supplies and Services,Newspapers Books and Periodicals,12-May-2016,DISNEY MAILORDER,Books-school library,31.16,0.00,31.16
Children and Adult Services,Education,Selby Cottage Childcare Centre,Supplies and Services,Clothing Uniforms and Laundry,12-May-2016,ARGOS LTD,Clothing uniforms and laundry,31.99,0.00,31.99
Children and Adult Services,Education,Selby Cottage Childcare Centre,Supplies and Services,Clothing Uniforms and Laundry,12-May-2016,POUNDLAND LTD 1330,Clothing uniforms and laundry,58.20,0.00,58.20
Children and Adult Services,Education,Selby Cottage Childcare Centre,Supplies and Services,Provisions,12-May-2016,TESCO STORES 2278,Catering costs - provisions,21.81,0.00,21.81
Children and Adult Services,Education,Selby Cottage Childcare Centre,Supplies and Services,Provisions,12-May-2016,TESCO STORES 2278,Catering costs - provisions,2.05,0.00,2.05
Children and Adult Services,Education,Shildon Childcare,Supplies and Services,Equipment and Materials,12-May-2016,B & M RETAIL,Toys,2.99,0.00,2.99
Regeneration & Economic Development,Economic Development and Housing,Business Growth and Innovation General,Supplies and Services,Advertising,12-May-2016,ADROLL,Advertising other than for staff,16.58,0.00,16.58
Resources,Financial Services,SF-Financial Services Team,Supplies and Services,Furniture,12-May-2016,MAGUIRE TA LTD,Furniture repair and replacement,150.00,0.00,150.00
Neighbourhood Services,Direct Services,Catering - County Hall Restaurant,Supplies and Services,Provisions,12-May-2016,JR HOLLAND FOODSERVICE,Catering costs - provisions,82.61,0.00,82.61
Neighbourhood Services,Direct Services,Catering - County Hall Restaurant,Supplies and Services,Provisions,12-May-2016,JR HOLLAND FOODSERVICE,Catering costs - provisions,13.16,0.00,13.16
Neighbourhood Services,Direct Services,C&G - South Grounds Maintenance,Supplies and Services,Equipment and Materials,12-May-2016,SIMPSON & ALLINSON MER,Equipment-purchase and rental,44.45,7.41,37.04
Neighbourhood Services,Culture & Sport,Gala Theatre - Catering etc,Supplies and Services,Provisions,12-May-2016,JR HOLLAND FOODSERVICE,Catering costs - provisions,54.56,0.00,54.56
Children and Adult Services,Childrens Services,High Etherley Satelite Home,Supplies and Services,Provisions,12-May-2016,TESCO STORES 6329,Catering costs - provisions,195.24,0.00,195.24
Children and Adult Services,Childrens Services,High Etherley Satelite Home,Supplies and Services,Provisions,12-May-2016,TESCO STORES 6329,Catering costs - provisions,10.14,0.00,10.14
Regeneration & Economic Development,Spatial Policy Planning Assets & Environment,North Pennines - Peatscapes,Supplies and Services,Equipment and Materials,12-May-2016,JP PHOTOGRAPHIC LTD,Other consumables,54.54,9.09,45.45
Regeneration & Economic Development,Spatial Policy Planning Assets & Environment,North Pennines - Peatscapes,Supplies and Services,Equipment and Materials,12-May-2016,TRANSPACK LIMITED,Other consumables,20.48,3.41,17.07
Children and Adult Services,Childrens Services,Secure Management,Supplies and Services,Provisions,12-May-2016,TESCO STORES 6329,Catering costs - provisions,80.16,0.00,80.16
Neighbourhood Services,Direct Services,C&G - South Grounds Maintenance,Supplies and Services,Equipment and Materials,12-May-2016,MKM PETERLEE,Equipment-purchase and rental,47.88,7.98,39.90
Neighbourhood Services,Direct Services,C&G - North Grounds Maintenance,Supplies and Services,Newspapers Books and Periodicals,12-May-2016,GRALANDS WOODWORK SUPP,Books-school library,39.48,0.00,39.48
Neighbourhood Services,Direct Services,C&G - North Grounds Maintenance,Supplies and Services,Equipment and Materials,12-May-2016,BESCOL,Other consumables,262.19,43.70,218.49
Neighbourhood Services,Direct Services,C&G - North Grounds Maintenance,Supplies and Services,Equipment and Materials,12-May-2016,BESCOL,Other consumables,119.17,19.86,99.31
Neighbourhood Services,Culture & Sport,Hardwick Park Catering,Supplies and Services,Provisions,12-May-2016,JR HOLLAND FOODSERVICE,Catering costs - provisions,40.42,0.00,40.42
Neighbourhood Services,Culture & Sport,Gala Theatre Stage School,Supplies and Services,Newspapers Books and Periodicals,12-May-2016,Amazon UK Marketplace,Books-school library,175.79,0.00,175.79
Neighbourhood Services,Culture & Sport,Wharton Park,Supplies and Services,Furniture,12-May-2016,QUICKCROP LTD,Furniture repair and replacement,122.95,20.49,102.46
Neighbourhood Services,Culture & Sport,Wharton Park,Supplies and Services,Equipment and Materials,12-May-2016,Amazon UK Marketplace,Other consumables,10.95,0.00,10.95
Neighbourhood Services,Direct Services,C&G - South Grounds Maintenance,Transport,Running Costs of Vehicles,12-May-2016,SNOWBALLS (RAILWAY,Vehicle running expenses,200.94,33.49,167.45
Neighbourhood Services,Direct Services,C&G - South Grounds Maintenance,Transport,Running Costs of Vehicles,12-May-2016,SNOWBALLS (RAILWAY,Vehicle running expenses,0.03,,0.03
Children and Adult Services,Childrens Services,Coxhoe Satelite Home,Supplies and Services,Provisions,12-May-2016,ASDA STORES LTD,Catering costs - provisions,2.67,0.00,2.67
Children and Adult Services,Childrens Services,Coxhoe Satelite Home,Supplies and Services,Equipment and Materials,12-May-2016,HMV RETAIL LTD,Equipment-purchase and rental,8.03,0.00,8.03
Children and Adult Services,Childrens Services,Coxhoe Satelite Home,Supplies and Services,Clothing Uniforms and Laundry,12-May-2016,B&M RETAIL LTD,Clothing uniforms and laundry,6.95,0.00,6.95
Children and Adult Services,Childrens Services,Coxhoe Satelite Home,Supplies and Services,Subsistence,12-May-2016,MCDONALDS,Subsistence,14.04,2.34,11.70
Children and Adult Services,Childrens Services,Coxhoe Satelite Home,Supplies and Services,Equipment and Materials,12-May-2016,SPORTSDIRECT.COM,Equipment-purchase and rental,45.99,0.00,45.99
Children and Adult Services,Childrens Services,Consett 5 - 19,Supplies and Services,Equipment and Materials,12-May-2016,Amazon UK Marketplace,ICT supplies etc,11.98,0.00,11.98
Resources,Corporate Finance,Occupational Health Service,Supplies and Services,Conference Expenses,12-May-2016,HEALTH&SAFETY LAB,Conferencesseminars fees etc,174.00,0.00,174.00
Resources,I.C.T. Services,Technical Services,Supplies and Services,Newspapers Books and Periodicals,12-May-2016,Amazon EU,Newspapers books and periodicals,17.99,0.00,17.99
Children and Adult Services,Childrens Services,Peterlee and Seaham Locality,Supplies and Services,Clothing Uniforms and Laundry,12-May-2016,ARGOS RETAIL GROUP,Clothing uniforms and laundry,14.99,0.00,14.99
Children and Adult Services,Childrens Services,Peterlee and Seaham Locality,Supplies and Services,Provisions,12-May-2016,ASDA 4387,Catering costs - provisions,109.46,18.24,91.22
Children and Adult Services,Childrens Services,CDYOS - Support,Transport,Public Transport,12-May-2016,GO NORTH EAST - V/T,Staff travelling,10.00,0.00,10.00
Children and Adult Services,Childrens Services,Durham and Chester Le Street Locality,Supplies and Services,Newspapers Books and Periodicals,12-May-2016,Amazon UK Marketplace,Books-school library,8.80,0.00,8.80
Children and Adult Services,Childrens Services,Durham and Chester Le Street Locality,Supplies and Services,Newspapers Books and Periodicals,12-May-2016,Amazon UK Marketplace,Books-school library,4.98,0.00,4.98
Children and Adult Services,Childrens Services,Durham and Chester Le Street Locality,Supplies and Services,Newspapers Books and Periodicals,12-May-2016,Amazon UK Marketplace,Books-school library,34.97,0.00,34.97
Children and Adult Services,Childrens Services,Durham and Chester Le Street Locality,Supplies and Services,Newspapers Books and Periodicals,12-May-2016,Amazon UK Marketplace,Books-school library,2.44,0.00,2.44
Children and Adult Services,Childrens Services,Durham and Chester Le Street Locality,Supplies and Services,Newspapers Books and Periodicals,12-May-2016,Amazon UK Marketplace,Books-school library,23.00,0.00,23.00
Children and Adult Services,Childrens Services,Barnard Castle 0 - 5,Supplies and Services,Furniture,12-May-2016,Amazon EU,Furniture repair and replacement,64.99,0.00,64.99
Neighbourhood Services,Technical Services,Training and Development,Employees,Recruitment Instruction and Training,12-May-2016,THE CITY AND GUILDS OF,Training-all costs,44.00,0.00,44.00
Children and Adult Services,Childrens Services,Dean Bank Childrens Centre,Supplies and Services,Provisions,12-May-2016,CO-OP GROUP 010518,Catering costs - provisions,7.77,0.00,7.77
Neighbourhood Services,Culture & Sport,Woodhouse Close Leisure Complex,Supplies and Services,Provisions,12-May-2016,BRAKE BROS LTD,Catering costs - provisions,160.26,26.71,133.55
Neighbourhood Services,Culture & Sport,Woodhouse Close Leisure Complex,Supplies and Services,Provisions,12-May-2016,BRAKE BROS LTD,Catering costs - provisions,178.95,,178.95
Regeneration & Economic Development,Economic Development and Housing,VCD - Marketing & Information,Supplies and Services,Advertising,12-May-2016,GOOGLE ADWS9716261465,Advertising other than for staff,"1,500.00",0.00,1500.00
Children and Adult Services,Planning & Service Strategy,SF-Rivergreen Durham,Transport,Public Transport,12-May-2016,EUROTUNNEL PRESALE,Staff travelling,527.00,0.00,527.00
Children and Adult Services,Planning & Service Strategy,SF-Rivergreen Durham,Transport,Public Transport,12-May-2016,EUROTUNNEL PRESALE,Staff travelling,527.00,0.00,527.00
Children and Adult Services,Head of Adults,OP/PD Durham & CLS,Supplies and Services,Postages,12-May-2016,POST OFFICE SHOP,Postages,3.00,0.50,2.50
Children and Adult Services,Head of Adults,OP/PD Durham & CLS,Supplies and Services,Postages,12-May-2016,POST OFFICE SHOP,Postages,54.99,,54.99
Children and Adult Services,Childrens Services,Peterlee and Seaham Locality,Supplies and Services,Clothing Uniforms and Laundry,12-May-2016,ELC-INTERNET,Clothing uniforms and laundry,249.95,41.66,208.29
Regeneration & Economic Development,Economic Development and Housing,Business Growth and Innovation General,Supplies and Services,Advertising,13-May-2016,ADROLL,Advertising other than for staff,0.46,0.00,0.46
Children and Adult Services,Childrens Services,Durham and Chester Le Street Locality,Supplies and Services,Newspapers Books and Periodicals,13-May-2016,Amazon UK Marketplace,Books-school library,3.98,0.00,3.98
Children and Adult Services,Education,Selby Cottage Childcare Centre,Supplies and Services,Provisions,13-May-2016,ASDA HOME SHOPPING,Catering costs - provisions,123.98,0.00,123.98
Children and Adult Services,Education,Selby Cottage Childcare Centre,Supplies and Services,Provisions,13-May-2016,ASDA HOME SHOPPING,Catering costs - provisions,-1.10,0.00,-1.10
Children and Adult Services,Childrens Services,9 Cedar Drive Aycliffe,Employees,Recruitment Instruction and Training,13-May-2016,PARENTPAY.COM,Training-all costs,30.00,0.00,30.00
Neighbourhood Services,Direct Services,Catering - General,Supplies and Services,Provisions,13-May-2016,SAINSBURYS LOC (4320),Catering costs - provisions,9.85,0.00,9.85
Children and Adult Services,Childrens Services,Secure Management,Supplies and Services,Provisions,13-May-2016,TESCO STORES 6329,Catering costs - provisions,83.68,0.00,83.68
Neighbourhood Services,Culture & Sport,Hardwick Park Catering,Supplies and Services,Provisions,13-May-2016,BRAKE BROS LTD,Catering costs - provisions,189.06,31.51,157.55
Neighbourhood Services,Culture & Sport,Hardwick Park Catering,Supplies and Services,Provisions,13-May-2016,BRAKE BROS LTD,Catering costs - provisions,264.94,,264.94
Neighbourhood Services,Culture & Sport,Hardwick Park Catering,Supplies and Services,Provisions,13-May-2016,BRAKE BROS LTD,Catering costs - provisions,142.80,23.80,119.00
Neighbourhood Services,Culture & Sport,Hardwick Park Catering,Supplies and Services,Provisions,13-May-2016,BRAKE BROS LTD,Catering costs - provisions,41.32,,41.32
Children and Adult Services,Childrens Services,Coxhoe Satelite Home,Supplies and Services,Provisions,13-May-2016,TESCO STORES 2371,Catering costs - provisions,5.00,0.00,5.00
Regeneration & Economic Development,Economic Development and Housing,Employability - Youth Contract,Transport,Contract Hire,13-May-2016,GO NORTH EAST - CLS,Pupils-transport to play fields etc,18.40,0.00,18.40
Regeneration & Economic Development,Economic Development and Housing,Employability - Youth Contract,Supplies and Services,Clothing Uniforms and Laundry,13-May-2016,SAINSBURYS SACAT 0776,Clothing uniforms and laundry,36.05,0.00,36.05
Regeneration & Economic Development,Economic Development and Housing,Employability - Youth Contract,Transport,Contract Hire,13-May-2016,WWW.SIMPLYGO.COM,Pupils-transport to play fields etc,10.38,0.00,10.38
Regeneration & Economic Development,Economic Development and Housing,Employability - Youth Contract,Supplies and Services,Clothing Uniforms and Laundry,13-May-2016,SHOE ZONE,Clothing uniforms and laundry,9.99,0.00,9.99
Children and Adult Services,Public Health,Public Health Team,Employees,Recruitment Instruction and Training,13-May-2016,FACULTY OF PUBLIC HEAL,Training-all costs,115.02,19.17,95.85
Children and Adult Services,Public Health,Public Health Team,Employees,Recruitment Instruction and Training,13-May-2016,FACULTY OF PUBLIC HEAL,Training-all costs,354.98,,354.98
Resources,I.C.T. Services,Administration,Supplies and Services,Telephones,13-May-2016,Amazon UK Marketplace,Telephones general-all costs,3.80,0.00,3.80
Neighbourhood Services,Technical Services,Highways Services - Management and Administration,Supplies and Services,Telephones,13-May-2016,Amazon UK Marketplace,Telephones general-all costs,132.52,0.00,132.52
Neighbourhood Services,Direct Services,C&G - North Grounds Maintenance,Supplies and Services,Newspapers Books and Periodicals,13-May-2016,GRALANDS WOODWORK SUPP,Books-school library,197.78,0.00,197.78
Children and Adult Services,Childrens Services,Durham and Chester Le Street Locality,Supplies and Services,Newspapers Books and Periodicals,13-May-2016,Amazon UK Marketplace,Books-school library,4.98,0.00,4.98
Neighbourhood Services,Direct Services,C&G - North Grounds Maintenance,Supplies and Services,Equipment and Materials,13-May-2016,SCREWFIX,Equipment-purchase and rental,159.53,26.59,132.94
Neighbourhood Services,Technical Services,Training and Development,Supplies and Services,Equipment and Materials,13-May-2016,DSA THEORY TEST,Equipment-purchase and rental,81.00,0.00,81.00
Dedicated Schools Grant,Dedicated Schools Grant,Part Sighted-Belmont Comp,Supplies and Services,Equipment and Materials,13-May-2016,Kindle Unlimited,Equipment-purchase and rental,7.99,0.00,7.99
Neighbourhood Services,Culture & Sport,Woodhouse Close Leisure Complex,Supplies and Services,Provisions,13-May-2016,BRAKE BROS LTD,Catering costs - provisions,141.47,0.00,141.47
Resources,Financial Services,Finance - Post Entry Training,Employees,Recruitment Instruction and Training,13-May-2016,WWW.CIPS.ORG,Training-all costs,127.50,0.00,127.50
Neighbourhood Services,Direct Services,Catering - County Hall Restaurant,Supplies and Services,Provisions,13-May-2016,JR HOLLAND FOODSERVICE,Catering costs - provisions,123.13,0.00,123.13
Neighbourhood Services,Direct Services,Catering - County Hall Restaurant,Supplies and Services,Provisions,13-May-2016,JR HOLLAND FOODSERVICE,Catering costs - provisions,6.24,0.00,6.24
Neighbourhood Services,Culture & Sport,Hardwick Park Catering,Supplies and Services,Provisions,13-May-2016,JR HOLLAND FOODSERVICE,Catering costs - provisions,13.40,0.00,13.40
Neighbourhood Services,Culture & Sport,Hardwick Park Catering,Supplies and Services,Provisions,13-May-2016,JR HOLLAND FOODSERVICE,Catering costs - provisions,10.61,0.00,10.61
Neighbourhood Services,Direct Services,Catering - Green Lane Canteen,Supplies and Services,Provisions,13-May-2016,JR HOLLAND FOODSERVICE,Catering costs - provisions,57.28,0.00,57.28
Neighbourhood Services,Culture & Sport,Bp Auckland Town Hall Cafe,Supplies and Services,Provisions,13-May-2016,JR HOLLAND FOODSERVICE,Catering costs - provisions,13.97,0.00,13.97
Neighbourhood Services,Direct Services,Catering - Service Direct,Supplies and Services,Provisions,13-May-2016,JR HOLLAND FOODSERVICE,Catering costs - provisions,24.47,0.00,24.47
Neighbourhood Services,Direct Services,Catering - Service Direct,Supplies and Services,Provisions,13-May-2016,JR HOLLAND FOODSERVICE,Catering costs - provisions,9.87,0.00,9.87
Regeneration & Economic Development,Economic Development and Housing,Business Growth and Innovation General,Supplies and Services,Advertising,14-May-2016,TWITTER ADVERTISING,Advertising other than for staff,55.69,0.00,55.69
Regeneration & Economic Development,Economic Development and Housing,Business Growth and Innovation General,Supplies and Services,Computers and Communications,14-May-2016,WATCHFULPAYPAL,Computer hardware,13.86,0.00,13.86
Children and Adult Services,Childrens Services,Secure Management,Supplies and Services,Provisions,14-May-2016,TESCO STORES 6329,Catering costs - provisions,105.14,0.00,105.14
Children and Adult Services,Childrens Services,Ferryhill 0 - 5,Supplies and Services,Equipment and Materials,14-May-2016,FLAME HOMEWARE LTD,Other consumables,10.50,0.00,10.50
Resources,Financial Services,Purchasing,Supplies and Services,Newspapers Books and Periodicals,14-May-2016,Amazon UK Marketplace,Books-school library,12.49,0.00,12.49
Regeneration & Economic Development,Economic Development and Housing,Business Growth and Innovation General,Supplies and Services,Newspapers Books and Periodicals,15-May-2016,FASTHOSTS INTERNET,Books-school library,14.38,2.40,11.98
Children and Adult Services,Childrens Services,High Etherley Satelite Home,Supplies and Services,Provisions,15-May-2016,SPAR - GEM WEST AUCKLA,Catering costs - provisions,6.02,0.00,6.02
Children and Adult Services,Childrens Services,High Etherley Satelite Home,Supplies and Services,Furniture,15-May-2016,ASDA STORES,Curtains and carpets,20.00,0.00,20.00
Children and Adult Services,Childrens Services,High Etherley Satelite Home,Supplies and Services,Provisions,15-May-2016,ASDA STORES,Catering costs - provisions,6.98,0.00,6.98
Children and Adult Services,Childrens Services,High Etherley Satelite Home,Supplies and Services,Miscellaneous Expenses,15-May-2016,SHOWCASE CINEMA,Training-other activities,18.60,0.00,18.60
Resources,Resources Management,Resources Management,Supplies and Services,Provisions,15-May-2016,CO-OP GROUP 310016,Catering costs - provisions,2.00,0.00,2.00
Regeneration & Economic Development,Economic Development and Housing,Business Growth and Innovation General,Supplies and Services,Computers and Communications,16-May-2016,WATCHFULPAYPAL,Computer hardware,0.38,0.00,0.38
Children and Adult Services,Education,Shildon Childcare,Supplies and Services,Provisions,16-May-2016,ASDA HOME SHOPPING,Catering costs - provisions,56.93,0.00,56.93
Regeneration & Economic Development,Economic Development and Housing,Business Growth and Innovation General,Supplies and Services,Newspapers Books and Periodicals,16-May-2016,Amazon EU,Books-school library,45.00,0.00,45.00
Regeneration & Economic Development,Economic Development and Housing,Business Growth and Innovation General,Supplies and Services,Advertising,16-May-2016,GUMTREE COM,Advertising other than for staff,54.99,9.17,45.82
Neighbourhood Services,Direct Services,Catering - County Hall Restaurant,Supplies and Services,Provisions,16-May-2016,BRAMBLES FOODS LTD,Catering costs - provisions,545.50,0.00,545.50
Neighbourhood Services,Direct Services,Catering - County Hall Restaurant,Supplies and Services,Provisions,16-May-2016,FREEMAN CATERING BUTCH,Catering costs - provisions,96.80,0.00,96.80
Neighbourhood Services,Direct Services,Catering - County Hall Restaurant,Supplies and Services,Provisions,16-May-2016,BRAKE BROS LTD,Catering costs - provisions,244.75,0.00,244.75
Neighbourhood Services,Culture & Sport,Gala Theatre - Catering etc,Supplies and Services,Provisions,16-May-2016,FREEMAN CATERING BUTCH,Catering costs - provisions,67.61,0.00,67.61
Children and Adult Services,Education,Dean Bank Childcare,Supplies and Services,Provisions,16-May-2016,ASDA SUPERSTORE 4987,Catering costs - provisions,47.54,0.00,47.54
Neighbourhood Services,Culture & Sport,Hardwick Park Catering,Supplies and Services,Provisions,16-May-2016,FREEMAN CATERING BUTCH,Catering costs - provisions,43.01,0.00,43.01
Neighbourhood Services,Culture & Sport,Hardwick Park Catering,Supplies and Services,Provisions,16-May-2016,FREEMAN CATERING BUTCH,Catering costs - provisions,37.70,0.00,37.70
Neighbourhood Services,Culture & Sport,Hardwick Park Catering,Supplies and Services,Provisions,16-May-2016,FREEMAN CATERING BUTCH,Catering costs - provisions,31.39,0.00,31.39
Neighbourhood Services,Culture & Sport,Hardwick Park Catering,Supplies and Services,Provisions,16-May-2016,BRAKE BROS LTD,Catering costs - provisions,202.20,33.70,168.50
Neighbourhood Services,Culture & Sport,Hardwick Park Catering,Supplies and Services,Provisions,16-May-2016,BRAKE BROS LTD,Catering costs - provisions,52.26,,52.26
Neighbourhood Services,Culture & Sport,Hardwick Park Catering,Supplies and Services,Provisions,16-May-2016,BRAKE BROS LTD,Catering costs - provisions,126.66,21.11,105.55
Neighbourhood Services,Culture & Sport,Hardwick Park Catering,Supplies and Services,Provisions,16-May-2016,BRAKE BROS LTD,Catering costs - provisions,76.71,,76.71
Neighbourhood Services,Direct Services,Catering - Green Lane Canteen,Supplies and Services,Provisions,16-May-2016,BRAMBLES FOODS LTD,Catering costs - provisions,103.30,0.00,103.30
Neighbourhood Services,Direct Services,Catering - Green Lane Canteen,Supplies and Services,Provisions,16-May-2016,FREEMAN CATERING BUTCH,Catering costs - provisions,49.48,0.00,49.48
Children and Adult Services,Education,Curric and Professional Development,Employees,Recruitment Instruction and Training,16-May-2016,WWW.HARPERCOLLINS.CO.U,Training-all costs,50.00,0.00,50.00
Children and Adult Services,Childrens Services,Secure Management,Supplies and Services,Miscellaneous Expenses,16-May-2016,ACTIVITYBOOKERCOM,Miscellaneous-special facilities,104.97,0.00,104.97
Children and Adult Services,Childrens Services,Tow Law CU,Supplies and Services,Newspapers Books and Periodicals,16-May-2016,HOME BARGAINS,Books-school library,5.94,0.99,4.95
Children and Adult Services,Childrens Services,Bishop Auckland 0 - 5,Supplies and Services,Provisions,16-May-2016,WM MORRISON 040,Catering costs - provisions,18.59,0.00,18.59
Regeneration & Economic Development,Economic Development and Housing,Employability - Youth Contract,Transport,Contract Hire,16-May-2016,TRAINLINE,Pupils-transport to play fields etc,6.17,0.00,6.17
Resources,Financial Services,Collections,Supplies and Services,Services,16-May-2016,HMCOURTS-SERVICE.G,Court Costs,"1,145.00",0.00,1145.00
Neighbourhood Services,Culture & Sport,Bp Auckland Town Hall Cafe,Supplies and Services,Provisions,16-May-2016,BRAMBLES FOODS LTD,Catering costs - provisions,104.45,0.00,104.45
Neighbourhood Services,Culture & Sport,Bp Auckland Town Hall Cafe,Supplies and Services,Provisions,16-May-2016,BRAKE BROS LTD,Catering costs - provisions,70.80,11.80,59.00
Neighbourhood Services,Culture & Sport,Bp Auckland Town Hall Cafe,Supplies and Services,Provisions,16-May-2016,BRAKE BROS LTD,Catering costs - provisions,33.96,,33.96
Neighbourhood Services,Culture & Sport,Bp Auckland Town Hall Cafe,Supplies and Services,Provisions,16-May-2016,BRAKE BROS LTD,Catering costs - provisions,22.44,3.74,18.70
Neighbourhood Services,Culture & Sport,Bp Auckland Town Hall Cafe,Supplies and Services,Provisions,16-May-2016,BRAKE BROS LTD,Catering costs - provisions,60.95,,60.95
Neighbourhood Services,Direct Services,Catering - Service Direct,Supplies and Services,Provisions,16-May-2016,BRAMBLES FOODS LTD,Catering costs - provisions,75.78,0.00,75.78
Neighbourhood Services,Direct Services,Catering - Service Direct,Supplies and Services,Provisions,16-May-2016,FREEMAN CATERING BUTCH,Catering costs - provisions,55.66,0.00,55.66
Neighbourhood Services,Direct Services,Catering - Service Direct,Supplies and Services,Provisions,16-May-2016,FREEMAN CATERING BUTCH,Catering costs - provisions,54.73,0.00,54.73
Neighbourhood Services,Culture & Sport,Woodhouse Close Leisure Complex,Supplies and Services,Provisions,16-May-2016,FREEMAN CATERING BUTCH,Catering costs - provisions,62.60,0.00,62.60
Neighbourhood Services,Culture & Sport,Woodhouse Close Leisure Complex,Supplies and Services,Provisions,16-May-2016,BRAKE BROS LTD,Catering costs - provisions,84.66,0.00,84.66
Neighbourhood Services,Culture & Sport,Locality 2 Team Management,Supplies and Services,Equipment and Materials,16-May-2016,HOMEPLAN DIY LIMITED,Other consumables,9.80,0.00,9.80
Children and Adult Services,Childrens Services,Peterlee and Seaham Locality,Supplies and Services,Furniture,16-May-2016,THE AUTHENTIC BLIND CO,Furniture repair and replacement,120.00,0.00,120.00
Children and Adult Services,Education,Inspection-HQ,Employees,Recruitment Instruction and Training,16-May-2016,PREMIER INN,Training-all costs,95.99,0.00,95.99
Regeneration & Economic Development,Spatial Policy Planning Assets & Environment,North Pennines - Peatscapes,Transport,Public Transport,16-May-2016,ECML DURHAM PARKING,Staff travelling,12.00,0.00,12.00
Children and Adult Services,Childrens Services,Bishop Auckland and Barnard Castle Locality,Supplies and Services,Newspapers Books and Periodicals,17-May-2016,Amazon UK Marketplace,Books-school library,8.99,0.00,8.99
Children and Adult Services,Childrens Services,Bishop Auckland and Barnard Castle Locality,Supplies and Services,Provisions,17-May-2016,TESCO STORES 6329,Catering costs - provisions,46.69,0.00,46.69
Children and Adult Services,Childrens Services,Bishop Auckland and Barnard Castle Locality,Supplies and Services,Provisions,17-May-2016,TESCO STORES 6329,Catering costs - provisions,25.07,0.00,25.07
Children and Adult Services,Childrens Services,Bishop Auckland and Barnard Castle Locality,Supplies and Services,Provisions,17-May-2016,TESCO STORES 6329,Catering costs - provisions,1.74,0.00,1.74
Children and Adult Services,Childrens Services,Bishop Auckland and Barnard Castle Locality,Supplies and Services,Furniture,17-May-2016,EDS BEDS LTD,Furniture repair and replacement,129.00,0.00,129.00
Children and Adult Services,Childrens Services,Bishop Auckland and Barnard Castle Locality,Supplies and Services,Equipment and Materials,17-May-2016,TESCO - Tescopay,Other consumables,125.00,0.00,125.00
Neighbourhood Services,Direct Services,C&G - South Street Cleansing,Supplies and Services,Equipment and Materials,17-May-2016,R DEFTY,Direct materials,24.30,0.00,24.30
Regeneration & Economic Development,Economic Development and Housing,Business Growth and Innovation General,Supplies and Services,Equipment and Materials,17-May-2016,PatentInspirationEU,Misc equipment tools and materials,77.91,0.00,77.91
Neighbourhood Services,Direct Services,Catering - County Hall Restaurant,Supplies and Services,Provisions,17-May-2016,JR HOLLAND FOODSERVICE,Catering costs - provisions,108.27,0.00,108.27
Neighbourhood Services,Direct Services,Catering - County Hall Restaurant,Supplies and Services,Provisions,17-May-2016,JR HOLLAND FOODSERVICE,Catering costs - provisions,64.24,0.00,64.24
Neighbourhood Services,Direct Services,Catering - County Hall Restaurant,Supplies and Services,Provisions,17-May-2016,JR HOLLAND FOODSERVICE,Catering costs - provisions,32.90,0.00,32.90
Neighbourhood Services,Direct Services,Catering - County Hall Restaurant,Supplies and Services,Provisions,17-May-2016,JR HOLLAND FOODSERVICE,Catering costs - provisions,13.52,0.00,13.52
Neighbourhood Services,Direct Services,Catering - County Hall Restaurant,Supplies and Services,Provisions,17-May-2016,JR HOLLAND FOODSERVICE,Catering costs - provisions,6.58,0.00,6.58
Neighbourhood Services,Culture & Sport,Gala Theatre - Catering etc,Supplies and Services,Provisions,17-May-2016,JR HOLLAND FOODSERVICE,Catering costs - provisions,43.06,0.00,43.06
Neighbourhood Services,Culture & Sport,Gala Theatre - Catering etc,Supplies and Services,Provisions,17-May-2016,BRAKE BROS LTD,Catering costs - provisions,89.22,14.87,74.35
Neighbourhood Services,Culture & Sport,Gala Theatre - Catering etc,Supplies and Services,Provisions,17-May-2016,BRAKE BROS LTD,Catering costs - provisions,46.47,,46.47
Children and Adult Services,Childrens Services,Framwellgate Moor CU,Supplies and Services,Provisions,17-May-2016,ASDA HOME SHOPPING,Catering costs - provisions,175.86,0.00,175.86
Neighbourhood Services,Culture & Sport,Locality 3 Team Management,Supplies and Services,Provisions,17-May-2016,TESCO STORES 2278,Catering costs - provisions,8.81,1.47,7.34
Children and Adult Services,Childrens Services,Secure Management,Supplies and Services,Clothing Uniforms and Laundry,17-May-2016,MAINLINE MENSWEAR,Clothing uniforms and laundry,49.95,0.00,49.95
Children and Adult Services,Childrens Services,Secure Management,Supplies and Services,Clothing Uniforms and Laundry,17-May-2016,NEW LOOK INTERNET,Clothing uniforms and laundry,79.93,0.00,79.93
Neighbourhood Services,Direct Services,C&G - South Grounds Maintenance,Supplies and Services,Equipment and Materials,17-May-2016,FRED WILLIAMSON,Other consumables,72.91,12.15,60.76
Neighbourhood Services,Direct Services,C&G - North Grounds Maintenance,Supplies and Services,Equipment and Materials,17-May-2016,BESCOL,Other consumables,174.24,29.04,145.20
Neighbourhood Services,Culture & Sport,Hardwick Park Catering,Supplies and Services,Provisions,17-May-2016,JR HOLLAND FOODSERVICE,Catering costs - provisions,46.09,0.00,46.09
Neighbourhood Services,Culture & Sport,Hardwick Park Catering,Supplies and Services,Provisions,17-May-2016,JR HOLLAND FOODSERVICE,Catering costs - provisions,21.50,0.00,21.50
Neighbourhood Services,Culture & Sport,Hardwick Park Catering,Supplies and Services,Provisions,17-May-2016,JR HOLLAND FOODSERVICE,Catering costs - provisions,19.51,0.00,19.51
Neighbourhood Services,Culture & Sport,Hardwick Park Catering,Supplies and Services,Provisions,17-May-2016,JR HOLLAND FOODSERVICE,Catering costs - provisions,18.19,0.00,18.19
Neighbourhood Services,Culture & Sport,Hardwick Park Catering,Supplies and Services,Provisions,17-May-2016,JR HOLLAND FOODSERVICE,Catering costs - provisions,3.12,0.00,3.12
Neighbourhood Services,Culture & Sport,Hardwick Park Catering,Supplies and Services,Provisions,17-May-2016,BRAKE BROS LTD,Catering costs - provisions,-15.15,0.00,-15.15
Regeneration & Economic Development,Economic Development and Housing,International Relations,Supplies and Services,Miscellaneous Expenses,17-May-2016,STARBUCKS T1 AS,International visits,8.50,0.00,8.50
Neighbourhood Services,Direct Services,Catering - Green Lane Canteen,Supplies and Services,Provisions,17-May-2016,BRAKE BROS LTD,Catering costs - provisions,19.02,3.17,15.85
Neighbourhood Services,Direct Services,Catering - Green Lane Canteen,Supplies and Services,Provisions,17-May-2016,BRAKE BROS LTD,Catering costs - provisions,87.20,,87.20
Children and Adult Services,Childrens Services,Bishop Auckland 0 - 5,Supplies and Services,Equipment and Materials,17-May-2016,Amazon UK Marketplace,Other consumables,4.18,0.00,4.18
Children and Adult Services,Childrens Services,Bishop Auckland 0 - 5,Supplies and Services,Clothing Uniforms and Laundry,17-May-2016,W BOYES & CO LTD BISHO,Clothing uniforms and laundry,7.49,0.00,7.49
Children and Adult Services,Childrens Services,West Rainton Satelite Home,Supplies and Services,Equipment and Materials,17-May-2016,WWW.TIGERBOX.CO.UK,Direct materials,229.99,0.00,229.99
Children and Adult Services,Childrens Services,Coxhoe Satelite Home,Supplies and Services,Provisions,17-May-2016,ALDI,Catering costs - provisions,7.50,1.25,6.25
Children and Adult Services,Childrens Services,Coxhoe Satelite Home,Supplies and Services,Provisions,17-May-2016,ALDI,Catering costs - provisions,92.94,,92.94
Children and Adult Services,Childrens Services,TTF-Attachment and Results,Supplies and Services,Furniture,17-May-2016,FRANKS THE FLOORING ST,Furniture repair and replacement,149.00,24.83,124.17
Children and Adult Services,Childrens Services,TTF-Attachment and Results,Supplies and Services,Furniture,17-May-2016,WILKO.COM,Furniture repair and replacement,44.00,0.00,44.00
Children and Adult Services,Childrens Services,TTF-Attachment and Results,Supplies and Services,Equipment and Materials,17-May-2016,TESCO - Safetots Limit,Other consumables,34.94,0.00,34.94
Children and Adult Services,Childrens Services,TTF-Attachment and Results,Supplies and Services,Equipment and Materials,17-May-2016,TESCO DIRECT,Other consumables,67.88,0.00,67.88
Children and Adult Services,Childrens Services,TTF-Attachment and Results,Supplies and Services,Equipment and Materials,17-May-2016,TESCO DIRECT,Other consumables,30.00,0.00,30.00
Children and Adult Services,Childrens Services,TTF-Attachment and Results,Supplies and Services,Equipment and Materials,17-May-2016,TESCO-Seller_IST_1_240,Other consumables,17.99,0.00,17.99
Neighbourhood Services,Direct Services,R&R - South Refuse Collection,Supplies and Services,Telephones,17-May-2016,Amazon UK Marketplace,Telephones general-all costs,59.40,0.00,59.40
Resources,I.C.T. Services,Head of Service,Supplies and Services,Conference Expenses,17-May-2016,EB THINKING DIGITAL N,Conferencesseminars fees etc,150.01,25.00,125.01
Neighbourhood Services,Direct Services,C&G - North Grounds Maintenance,Supplies and Services,Provisions,17-May-2016,J VAN VLIET GATESHEAD,Catering costs - provisions,71.40,11.90,59.50
Neighbourhood Services,Direct Services,C&G - North Grounds Maintenance,Supplies and Services,Equipment and Materials,17-May-2016,NEW ROW FARM NURSERIES,Misc equipment tools and materials,493.88,82.31,411.57
Neighbourhood Services,Direct Services,C&G - North Grounds Maintenance,Supplies and Services,Equipment and Materials,17-May-2016,NEW ROW FARM NURSERIES,Misc equipment tools and materials,493.87,0.00,493.87
Neighbourhood Services,Direct Services,C&G - North Grounds Maintenance,Supplies and Services,Equipment and Materials,17-May-2016,BESCOL,Other consumables,53.06,8.84,44.22
Children and Adult Services,Childrens Services,Peterlee and Seaham Locality,Supplies and Services,Equipment and Materials,17-May-2016,TESCO DIRECT,Other consumables,127.95,21.33,106.62
Regeneration & Economic Development,Transport and Contracted Services,Care Connect All Localities,Supplies and Services,Telephones,17-May-2016,BT BILL PAYMENT 2,Telephones general-all costs,83.82,13.97,69.85
Neighbourhood Services,Direct Services,Catering - Service Direct,Supplies and Services,Provisions,17-May-2016,JR HOLLAND FOODSERVICE,Catering costs - provisions,16.36,0.00,16.36
Neighbourhood Services,Direct Services,Catering - Service Direct,Supplies and Services,Provisions,17-May-2016,BRAKE BROS LTD,Catering costs - provisions,57.74,0.00,57.74
Children and Adult Services,Childrens Services,Ferryhill and Newton Aycliffe Locality,Supplies and Services,Miscellaneous Expenses,17-May-2016,WWW.AERIALEXTREME.CO.U,Recreational exps outings parties,365.40,60.90,304.50
Children and Adult Services,Childrens Services,New Lea Childrens Home,Supplies and Services,Furniture,17-May-2016,IKEA ONLINE,Furniture repair and replacement,340.00,0.00,340.00
Children and Adult Services,Childrens Services,Ferryhill 0 - 5,Supplies and Services,Provisions,17-May-2016,CO-OP GROUP 010518,Catering costs - provisions,24.03,0.00,24.03
Resources,Financial Services,Purchasing,Supplies and Services,Miscellaneous Expenses,17-May-2016,ESC EUROPE,Other expenses,115.08,0.00,115.08
Neighbourhood Services,Culture & Sport,Woodhouse Close Leisure Complex,Supplies and Services,Provisions,17-May-2016,JR HOLLAND FOODSERVICE,Catering costs - provisions,70.90,0.00,70.90
Resources,I.C.T. Services,Operations - System & Repairs Team,Employees,Recruitment Instruction and Training,17-May-2016,ELECTRICAL CONTRACTORS,Training-all costs,240.00,40.00,200.00
Resources,I.C.T. Services,Operations - System & Repairs Team,Third Party Payments,Rendered by Private Contractors,17-May-2016,ELECTRICAL CONTRACTORS,Payments to sub-contractors,-48.00,0.00,-48.00
Regeneration & Economic Development,Economic Development and Housing,Employability - Youth Contract,Supplies and Services,Provisions,17-May-2016,ASDA SUPERSTORE 4987,Catering costs - provisions,25.00,0.00,25.00
Regeneration & Economic Development,Economic Development and Housing,Business Growth and Innovation General,Supplies and Services,Equipment and Materials,18-May-2016,PatentInspirationEU,Misc equipment tools and materials,2.14,0.00,2.14
Children and Adult Services,Childrens Services,Secure Management,Supplies and Services,Equipment and Materials,18-May-2016,SCREWFIX DIRECT,Materials,80.92,13.49,67.43
Neighbourhood Services,Direct Services,Catering - County Hall Restaurant,Supplies and Services,Provisions,18-May-2016,JR HOLLAND FOODSERVICE,Catering costs - provisions,224.40,0.00,224.40
Neighbourhood Services,Direct Services,Catering - County Hall Restaurant,Supplies and Services,Provisions,18-May-2016,JR HOLLAND FOODSERVICE,Catering costs - provisions,31.35,0.00,31.35
Neighbourhood Services,Direct Services,Catering - County Hall Restaurant,Supplies and Services,Provisions,18-May-2016,JR HOLLAND FOODSERVICE,Catering costs - provisions,7.19,0.00,7.19
Neighbourhood Services,Direct Services,Catering - County Hall Restaurant,Supplies and Services,Provisions,18-May-2016,BRAKE BROS LTD,Catering costs - provisions,303.06,50.51,252.55
Neighbourhood Services,Direct Services,Catering - County Hall Restaurant,Supplies and Services,Provisions,18-May-2016,BRAKE BROS LTD,Catering costs - provisions,208.33,,208.33
Neighbourhood Services,Direct Services,Catering - County Hall Restaurant,Supplies and Services,Provisions,18-May-2016,BRAKE BROS LTD,Catering costs - provisions,465.99,0.00,465.99
Neighbourhood Services,Direct Services,Catering - County Hall Restaurant,Supplies and Services,Provisions,18-May-2016,BRAKE BROS LTD,Catering costs - provisions,-9.96,0.00,-9.96
Neighbourhood Services,Culture & Sport,Gala Theatre - Catering etc,Supplies and Services,Provisions,18-May-2016,BRAKE BROS LTD,Catering costs - provisions,44.49,0.00,44.49
Neighbourhood Services,Direct Services,Catering - General,Supplies and Services,Newspapers Books and Periodicals,18-May-2016,HOME BARGAINS,Books-school library,12.85,2.14,10.71
Children and Adult Services,Childrens Services,Secure Management,Supplies and Services,Provisions,18-May-2016,TESCO STORES 6329,Catering costs - provisions,82.96,0.00,82.96
Neighbourhood Services,Direct Services,C&G - North Grounds Maintenance,Supplies and Services,Equipment and Materials,18-May-2016,HARELAW SAWMILL,Equipment-purchase and rental,161.92,26.99,134.93
Neighbourhood Services,Direct Services,C&G - North Grounds Maintenance,Supplies and Services,Equipment and Materials,18-May-2016,HARELAW SAWMILL,Equipment-purchase and rental,406.40,67.73,338.67
Neighbourhood Services,Culture & Sport,Hardwick Park Catering,Supplies and Services,Provisions,18-May-2016,JR HOLLAND FOODSERVICE,Catering costs - provisions,46.58,0.00,46.58
Neighbourhood Services,Culture & Sport,Hardwick Park Catering,Supplies and Services,Provisions,18-May-2016,BRAKE BROS LTD,Catering costs - provisions,138.54,23.09,115.45
Neighbourhood Services,Culture & Sport,Hardwick Park Catering,Supplies and Services,Provisions,18-May-2016,BRAKE BROS LTD,Catering costs - provisions,288.23,,288.23
Neighbourhood Services,Culture & Sport,Hardwick Park Catering,Supplies and Services,Provisions,18-May-2016,BRAKE BROS LTD,Catering costs - provisions,185.28,30.88,154.40
Neighbourhood Services,Culture & Sport,Hardwick Park Catering,Supplies and Services,Provisions,18-May-2016,BRAKE BROS LTD,Catering costs - provisions,202.25,,202.25
Neighbourhood Services,Culture & Sport,Gala Theatre Stage School,Supplies and Services,Clothing Uniforms and Laundry,18-May-2016,INTERNATIONAL DANCE,Clothing uniforms and laundry,3.54,0.59,2.95
Neighbourhood Services,Culture & Sport,Gala Theatre Stage School,Supplies and Services,Clothing Uniforms and Laundry,18-May-2016,INTERNATIONAL DANCE,Clothing uniforms and laundry,13.50,,13.50
Neighbourhood Services,Culture & Sport,Gala Theatre Stage School,Supplies and Services,Newspapers Books and Periodicals,18-May-2016,Amazon UK Marketplace,Books-school library,14.98,0.00,14.98
Neighbourhood Services,Culture & Sport,Gala Theatre Stage School,Supplies and Services,Clothing Uniforms and Laundry,18-May-2016,QTAG,Clothing uniforms and laundry,21.32,0.00,21.32
Children and Adult Services,Education,EDC Premises,Supplies and Services,Equipment and Materials,18-May-2016,WILKO DURHAM 426,Equipment-purchase and rental,6.95,0.00,6.95
Neighbourhood Services,Direct Services,Catering - Green Lane Canteen,Supplies and Services,Provisions,18-May-2016,JR HOLLAND FOODSERVICE,Catering costs - provisions,40.62,0.00,40.62
Neighbourhood Services,Direct Services,Catering - Green Lane Canteen,Supplies and Services,Provisions,18-May-2016,BRAKE BROS LTD,Catering costs - provisions,75.63,0.00,75.63
Children and Adult Services,Childrens Services,Tow Law CU,Supplies and Services,Provisions,18-May-2016,TESCO STORES 2371,Catering costs - provisions,244.64,0.00,244.64
Children and Adult Services,Childrens Services,Bishop Auckland 0 - 5,Supplies and Services,Provisions,18-May-2016,WM MORRISON 040,Catering costs - provisions,11.13,0.00,11.13
Neighbourhood Services,Culture & Sport,Woodhouse Close Leisure Complex,Supplies and Services,Equipment and Materials,18-May-2016,Amazon UK Marketplace,Other consumables,24.93,0.00,24.93
Neighbourhood Services,Culture & Sport,Wharton Park,Supplies and Services,Equipment and Materials,18-May-2016,Amazon UK Marketplace,Equipment-purchase and rental,4.40,0.00,4.40
Neighbourhood Services,Direct Services,C&G - South Grounds Maintenance,Supplies and Services,Equipment and Materials,18-May-2016,MAXWELLS D I Y,Other consumables,7.98,1.33,6.65
Regeneration & Economic Development,Economic Development and Housing,Employability - Youth Contract,Supplies and Services,Miscellaneous Expenses,18-May-2016,POST OFFICE COUNTER,Licences,220.00,0.00,220.00
Regeneration & Economic Development,Economic Development and Housing,Employability - Youth Contract,Transport,Contract Hire,18-May-2016,TRAINLINE,Pupils-transport to play fields etc,16.98,0.00,16.98
Neighbourhood Services,EnvironmentHealth & Consumer Protection,Environment Protection,Supplies and Services,Conference Expenses,18-May-2016,CIEH,Conferencesseminars fees etc,192.00,0.00,192.00
Resources,Legal & Democratic Services,EU Referendum,Supplies and Services,Advertising,18-May-2016,FACEBOOK 4Q9ZZ8A4B2,Advertising other than for staff,200.77,0.00,200.77
Children and Adult Services,Head of Adults,Safeguarding Adults and Pract. Dev.,Supplies and Services,Services,18-May-2016,DISCLOSURE SCOT,Disclosure & Barring (DBS) Fees,25.00,0.00,25.00
Neighbourhood Services,Direct Services,C&G - North Grounds Maintenance,Supplies and Services,Equipment and Materials,18-May-2016,BESCOL,Other consumables,11.52,1.92,9.60
Neighbourhood Services,Direct Services,C&G - North Grounds Maintenance,Supplies and Services,Printing Stationery and Gen Off Exps,18-May-2016,NATIONWIDE RETAIL SYST,Stationery,84.00,14.00,70.00
Children and Adult Services,Childrens Services,Peterlee and Seaham Locality,Supplies and Services,Furniture,18-May-2016,EDS BEDS LTD,Furniture repair and replacement,130.00,21.67,108.33
Neighbourhood Services,Culture & Sport,Bp Auckland Town Hall Cafe,Supplies and Services,Provisions,18-May-2016,JR HOLLAND FOODSERVICE,Catering costs - provisions,27.45,0.00,27.45
Regeneration & Economic Development,Transport and Contracted Services,Care Connect All Localities,Supplies and Services,Telephones,18-May-2016,BT BILL PAYMENT 2,Telephones general-all costs,123.80,20.63,103.17
Regeneration & Economic Development,Transport and Contracted Services,Care Connect All Localities,Supplies and Services,Telephones,18-May-2016,BT BILL PAYMENT 2,Telephones general-all costs,123.80,20.63,103.17
Neighbourhood Services,Direct Services,Catering - Service Direct,Supplies and Services,Provisions,18-May-2016,JR HOLLAND FOODSERVICE,Catering costs - provisions,31.26,0.00,31.26
Neighbourhood Services,Direct Services,Catering - Service Direct,Supplies and Services,Provisions,18-May-2016,JR HOLLAND FOODSERVICE,Catering costs - provisions,6.87,0.00,6.87
Neighbourhood Services,Direct Services,Catering - Service Direct,Supplies and Services,Provisions,18-May-2016,BRAKE BROS LTD,Catering costs - provisions,175.50,29.25,146.25
Neighbourhood Services,Direct Services,Catering - Service Direct,Supplies and Services,Provisions,18-May-2016,BRAKE BROS LTD,Catering costs - provisions,84.27,,84.27
Neighbourhood Services,Direct Services,Catering - Service Direct,Supplies and Services,Provisions,18-May-2016,JR HOLLAND FOODSERVICE,Catering costs - provisions,-6.82,0.00,-6.82
Neighbourhood Services,Culture & Sport,Positive Futures,Supplies and Services,Provisions,18-May-2016,ASDA STORES LTD,Catering costs - provisions,40.72,0.00,40.72
Children and Adult Services,Childrens Services,Bishop Auckland 0 - 5,Supplies and Services,Equipment and Materials,18-May-2016,WILKO RETAIL LIMIT,Other consumables,101.24,0.00,101.24
Children and Adult Services,Childrens Services,Bishop Auckland 0 - 5,Supplies and Services,Equipment and Materials,18-May-2016,ASDA STORES,Other consumables,94.86,0.00,94.86
Children and Adult Services,Childrens Services,Laurel Avenue Childrens Centre,Supplies and Services,Newspapers Books and Periodicals,18-May-2016,HOME BARGAINS,Books-school library,7.44,1.24,6.20
Children and Adult Services,Childrens Services,Laurel Avenue Childrens Centre,Supplies and Services,Newspapers Books and Periodicals,18-May-2016,HOME BARGAINS,Books-school library,1.99,,1.99
Children and Adult Services,Childrens Services,Laurel Avenue Childrens Centre,Supplies and Services,Provisions,18-May-2016,TESCO STORES 2371,Catering costs - provisions,20.86,0.00,20.86
Neighbourhood Services,Culture & Sport,Woodhouse Close Leisure Complex,Supplies and Services,Provisions,18-May-2016,JR HOLLAND FOODSERVICE,Catering costs - provisions,30.52,0.00,30.52
Neighbourhood Services,Culture & Sport,Locality 2 Team Management,Supplies and Services,Equipment and Materials,18-May-2016,WILKO RETAIL LIMIT,Equipment-purchase and rental,22.50,0.00,22.50
Neighbourhood Services,Direct Services,Civic Centre Crook,Supplies and Services,Miscellaneous Expenses,18-May-2016,TVLICENSING.CO.UK,Licences,145.50,0.00,145.50
Neighbourhood Services,Projects and Business services,Business Support,Supplies and Services,Miscellaneous Expenses,18-May-2016,TVLICENSING.CO.UK,Licences,145.50,0.00,145.50
Regeneration & Economic Development,Transport and Contracted Services,Care Connect All Localities,Supplies and Services,Equipment and Materials,19-May-2016,Amazon UK Marketplace,ICT supplies etc,8.99,0.00,8.99
Children and Adult Services,Education,Selby Cottage Childcare Centre,Supplies and Services,Provisions,19-May-2016,TESCO STORES 2278,Catering costs - provisions,17.70,0.00,17.70
Neighbourhood Services,Direct Services,C&G - South Street Cleansing,Supplies and Services,Newspapers Books and Periodicals,19-May-2016,C.L.A.S.S,Books-school library,34.20,5.70,28.50
Regeneration & Economic Development,Economic Development and Housing,Business Growth and Innovation General,Supplies and Services,Advertising,19-May-2016,ADROLL,Advertising other than for staff,17.02,0.00,17.02
Neighbourhood Services,Direct Services,Catering - County Hall Restaurant,Supplies and Services,Provisions,19-May-2016,JR HOLLAND FOODSERVICE,Catering costs - provisions,54.57,0.00,54.57
Neighbourhood Services,Direct Services,Catering - County Hall Restaurant,Supplies and Services,Provisions,19-May-2016,JR HOLLAND FOODSERVICE,Catering costs - provisions,38.48,0.00,38.48
Neighbourhood Services,Direct Services,Catering - County Hall Restaurant,Supplies and Services,Provisions,19-May-2016,JR HOLLAND FOODSERVICE,Catering costs - provisions,13.16,0.00,13.16
Children and Adult Services,Childrens Services,Ferryhill 5 - 19,Supplies and Services,Furniture,19-May-2016,ARGOS RETAIL GROUP,Furniture repair and replacement,156.94,0.00,156.94
Children and Adult Services,Childrens Services,Ferryhill 5 - 19,Supplies and Services,Miscellaneous Expenses,19-May-2016,ARGOS RETAIL GROUP,Other expenses,21.86,0.00,21.86
Neighbourhood Services,Culture & Sport,Gala Theatre - Catering etc,Supplies and Services,Provisions,19-May-2016,JR HOLLAND FOODSERVICE,Catering costs - provisions,38.52,0.00,38.52
Neighbourhood Services,Culture & Sport,Gala Theatre - Catering etc,Supplies and Services,Provisions,19-May-2016,JR HOLLAND FOODSERVICE,Catering costs - provisions,-3.50,0.00,-3.50
Children and Adult Services,Childrens Services,Durham 0 - 5,Supplies and Services,Newspapers Books and Periodicals,19-May-2016,GIFT PEOPLE,Books-school library,10.00,0.00,10.00
Children and Adult Services,Childrens Services,Durham 0 - 5,Supplies and Services,Newspapers Books and Periodicals,19-May-2016,Amazon UK Marketplace,Books-school library,29.95,0.00,29.95
Children and Adult Services,Childrens Services,LAC & Permanence Team 1 Aycliffe,Supplies and Services,Equipment and Materials,19-May-2016,DURHAM COUNTY COUNCIL,Equipment-purchase and rental,12.00,0.00,12.00
Neighbourhood Services,Culture & Sport,Local Delivery-Libraries,Supplies and Services,Newspapers Books and Periodicals,19-May-2016,Amazon EU,Books-school library,11.98,0.00,11.98
Children and Adult Services,Childrens Services,High Etherley Satelite Home,Supplies and Services,Services,19-May-2016,HMCOURTS-SERVICE.G,Court Costs,26.00,0.00,26.00
Children and Adult Services,Childrens Services,High Etherley Satelite Home,Supplies and Services,Provisions,19-May-2016,TESCO STORES 6329,Catering costs - provisions,11.85,0.00,11.85
Children and Adult Services,Childrens Services,Secure Education,Supplies and Services,Miscellaneous Expenses,19-May-2016,Amazon EU,Other expenses,14.66,0.00,14.66
Children and Adult Services,Childrens Services,Secure Management,Supplies and Services,Clothing Uniforms and Laundry,19-May-2016,JD SPORTS INTERNET,Clothing uniforms and laundry,27.99,0.00,27.99
Children and Adult Services,Childrens Services,Barnard,Supplies and Services,Furniture,19-May-2016,ASDA 4387,Curtains and carpets,30.95,0.00,30.95
Children and Adult Services,Childrens Services,Secure Management,Supplies and Services,Provisions,19-May-2016,TESCO STORES 6329,Catering costs - provisions,155.56,0.00,155.56
Neighbourhood Services,Culture & Sport,Hardwick Park Catering,Supplies and Services,Provisions,19-May-2016,JR HOLLAND FOODSERVICE,Catering costs - provisions,52.73,0.00,52.73
Neighbourhood Services,Culture & Sport,Hardwick Park Catering,Supplies and Services,Provisions,19-May-2016,JR HOLLAND FOODSERVICE,Catering costs - provisions,9.30,0.00,9.30
Neighbourhood Services,Culture & Sport,Gala Theatre Stage School,Supplies and Services,Newspapers Books and Periodicals,19-May-2016,Amazon UK Marketplace,Books-school library,6.95,0.00,6.95
Neighbourhood Services,Culture & Sport,Gala Theatre Stage School,Supplies and Services,Newspapers Books and Periodicals,19-May-2016,Amazon UK Marketplace,Books-school library,15.98,0.00,15.98
Neighbourhood Services,Culture & Sport,Gala Theatre Stage School,Supplies and Services,Newspapers Books and Periodicals,19-May-2016,Amazon EU,Books-school library,14.89,0.00,14.89
Neighbourhood Services,Culture & Sport,Gala Theatre Stage School,Supplies and Services,Provisions,19-May-2016,ASDA 4387,Catering costs - provisions,17.95,0.00,17.95
Children and Adult Services,Education,EDC Premises,Supplies and Services,Miscellaneous Expenses,19-May-2016,HOMEBASE LTD 822,Other expenses,23.38,0.00,23.38
Children and Adult Services,Childrens Services,Consett and Stanley Locality,Supplies and Services,Provisions,19-May-2016,ASDA 4387,Catering costs - provisions,143.50,23.92,119.58
Neighbourhood Services,Culture & Sport,Wharton Park,Supplies and Services,Equipment and Materials,19-May-2016,Amazon UK Marketplace,Equipment-purchase and rental,4.84,0.00,4.84
Neighbourhood Services,Direct Services,C&G - South Grounds Maintenance,Supplies and Services,Equipment and Materials,19-May-2016,J T DOVE LTD,Equipment-purchase and rental,18.90,3.15,15.75
Regeneration & Economic Development,Economic Development and Housing,Business Services General,Transport,Public Transport,19-May-2016,AUCKLAND CASTLE,Staff travelling,0.60,0.00,0.60
Resources,Legal & Democratic Services,EU Referendum,Supplies and Services,Advertising,19-May-2016,FACEBOOK Y5JTL864B2,Advertising other than for staff,399.61,0.00,399.61
Resources,Legal & Democratic Services,EU Referendum,Supplies and Services,Advertising,19-May-2016,FACEBOOK Z5JTL864B2,Advertising other than for staff,1.59,0.00,1.59
Resources,Legal & Democratic Services,Coroner County Durham & Darlington,Supplies and Services,Postages,19-May-2016,WWW.ROYALMAIL.COM,Postages,320.00,0.00,320.00
Resources,Legal & Democratic Services,Coroner County Durham & Darlington,Supplies and Services,Postages,19-May-2016,WWW.ROYALMAIL.COM,Postages,320.00,0.00,320.00
Children and Adult Services,Head of Adults,Reablement South,Supplies and Services,Postages,19-May-2016,WWW.ROYALMAIL.COM,Postages,304.00,0.00,304.00
Neighbourhood Services,Culture & Sport,Killhope Lead Mining Centre - LLC,Supplies and Services,Postages,19-May-2016,WWW.ROYALMAIL.COM,Postages,225.00,0.00,225.00
Children and Adult Services,Head of Adults,Newton Aycliffe Pathways,Supplies and Services,Printing Stationery and Gen Off Exps,19-May-2016,WWW.LAMPCO.CO.UK,Stationery,15.46,2.58,12.88
Resources,Legal & Democratic Services,Democratic Representation,Supplies and Services,Subscriptions,19-May-2016,WWW.ICO.GOV.UK,Subscriptions,35.00,0.00,35.00
Resources,Legal & Democratic Services,Democratic Representation,Supplies and Services,Subscriptions,19-May-2016,WWW.ICO.GOV.UK,Subscriptions,35.00,0.00,35.00
Dedicated Schools Grant,Dedicated Schools Grant,Part Sighted-Belmont Comp,Supplies and Services,Grants to Voluntary Organisations,19-May-2016,IMPERIAL LONDON HOTELS,Accommodation assistance,127.00,0.00,127.00
Children and Adult Services,Childrens Services,Peterlee and Seaham Locality,Supplies and Services,Provisions,19-May-2016,ASDA 4387,Catering costs - provisions,147.94,24.66,123.28
Regeneration & Economic Development,Transport and Contracted Services,Care Connect All Localities,Supplies and Services,Telephones,19-May-2016,BT BILL PAYMENT 2,Telephones general-all costs,-28.87,0.00,-28.87
Children and Adult Services,Childrens Services,Durham and Chester Le Street Locality,Supplies and Services,Provisions,19-May-2016,ICELAND,Catering costs - provisions,10.00,0.00,10.00
Neighbourhood Services,Direct Services,C&G - North Grounds Maintenance,Supplies and Services,Equipment and Materials,19-May-2016,FRED WILLIAMSON,Other consumables,77.68,12.95,64.73
Neighbourhood Services,Culture & Sport,Positive Futures,Supplies and Services,Provisions,19-May-2016,ASDA SUPERSTORE,Catering costs - provisions,6.65,0.00,6.65
Children and Adult Services,Childrens Services,Ferryhill 0 - 5,Supplies and Services,Provisions,19-May-2016,MARKS&SPENCER PLC SACA,Catering costs - provisions,9.05,0.00,9.05
Children and Adult Services,Childrens Services,Dean Bank Childrens Centre,Supplies and Services,Provisions,19-May-2016,CO-OP GROUP 010518,Catering costs - provisions,4.34,0.00,4.34
Neighbourhood Services,Culture & Sport,Wharton Park,Supplies and Services,Printing Stationery and Gen Off Exps,19-May-2016,VALUE PRODUCTS LTD,Stationery,32.40,5.40,27.00
Neighbourhood Services,Culture & Sport,Woodhouse Close Leisure Complex,Supplies and Services,Provisions,19-May-2016,BRAKE BROS LTD,Catering costs - provisions,34.44,5.74,28.70
Neighbourhood Services,Culture & Sport,Woodhouse Close Leisure Complex,Supplies and Services,Provisions,19-May-2016,BRAKE BROS LTD,Catering costs - provisions,84.15,,84.15
Assistant Chief Executive,Policy & Communications Division,Corporate Policy,Supplies and Services,Equipment and Materials,19-May-2016,WILKO DURHAM 426,Equipment-purchase and rental,27.00,0.00,27.00
Children and Adult Services,Childrens Services,Barnard,Supplies and Services,Furniture,19-May-2016,NEXT DIRECTORY,Curtains and carpets,73.99,0.00,73.99
Regeneration & Economic Development,Economic Development and Housing,Business Growth and Innovation General,Supplies and Services,Advertising,20-May-2016,ADROLL,Advertising other than for staff,0.47,0.00,0.47
Children and Adult Services,Education,Selby Cottage Childcare Centre,Supplies and Services,Provisions,20-May-2016,ASDA HOME SHOPPING,Catering costs - provisions,5.00,0.00,5.00
Neighbourhood Services,Direct Services,C&G - South Street Cleansing,Supplies and Services,Equipment and Materials,20-May-2016,SIMPSON & ALLINSON MER,Equipment-purchase and rental,12.14,0.00,12.14
Regeneration & Economic Development,Economic Development and Housing,Business Growth and Innovation General,Supplies and Services,Advertising,20-May-2016,TWITTER ADVERTISING,Advertising other than for staff,50.74,0.00,50.74
Regeneration & Economic Development,Economic Development and Housing,Business Growth and Innovation General,Supplies and Services,Conference Expenses,20-May-2016,IMAGO,Conferencesseminars fees etc,78.00,13.00,65.00
Regeneration & Economic Development,Economic Development and Housing,Syrian Refugee Humanitarian Support,Supplies and Services,Newspapers Books and Periodicals,20-May-2016,Amazon EU,Newspapers books and periodicals,22.31,0.00,22.31
Neighbourhood Services,Direct Services,Catering - County Hall Restaurant,Supplies and Services,Provisions,20-May-2016,JR HOLLAND FOODSERVICE,Catering costs - provisions,114.08,0.00,114.08
Neighbourhood Services,Direct Services,Catering - County Hall Restaurant,Supplies and Services,Provisions,20-May-2016,JR HOLLAND FOODSERVICE,Catering costs - provisions,13.16,0.00,13.16
Neighbourhood Services,Direct Services,Catering - County Hall Restaurant,Supplies and Services,Provisions,20-May-2016,BRAKE BROS LTD,Catering costs - provisions,163.21,0.00,163.21
Regeneration & Economic Development,Spatial Policy Planning Assets & Environment,North Pennines - Bowlees,Supplies and Services,Miscellaneous Expenses,20-May-2016,HIGH PENNINE ANIMAL FE,Other expenses,5.52,0.92,4.60
Regeneration & Economic Development,Spatial Policy Planning Assets & Environment,North Pennines - Bowlees,Supplies and Services,Miscellaneous Expenses,20-May-2016,HIGH PENNINE ANIMAL FE,Other expenses,84.48,,84.48
Children and Adult Services,Childrens Services,Durham 0 - 5,Supplies and Services,Newspapers Books and Periodicals,20-May-2016,Amazon UK Marketplace,Books-school library,13.25,0.00,13.25
Children and Adult Services,Childrens Services,Durham 0 - 5,Supplies and Services,Newspapers Books and Periodicals,20-May-2016,Amazon UK Marketplace,Books-school library,8.00,0.00,8.00
Children and Adult Services,Childrens Services,Durham 0 - 5,Supplies and Services,Newspapers Books and Periodicals,20-May-2016,Amazon UK Marketplace,Books-school library,1.89,0.00,1.89
Neighbourhood Services,Culture & Sport,Office Services,Supplies and Services,Computers and Communications,20-May-2016,CREATESEND/COM,Computer software,288.00,0.00,288.00
Children and Adult Services,Childrens Services,High Etherley Satelite Home,Supplies and Services,Provisions,20-May-2016,TESCO STORES 6329,Catering costs - provisions,210.07,0.00,210.07
Children and Adult Services,Childrens Services,Secure Education,Supplies and Services,Equipment and Materials,20-May-2016,Amazon UK Marketplace,Equipment-purchase and rental,54.47,0.00,54.47
Children and Adult Services,Childrens Services,Secure Education,Supplies and Services,Miscellaneous Expenses,20-May-2016,Amazon UK Marketplace,Other expenses,6.99,0.00,6.99
Children and Adult Services,Childrens Services,Barnard,Supplies and Services,Miscellaneous Expenses,20-May-2016,Amazon UK Marketplace,Other expenses,8.98,0.00,8.98
Children and Adult Services,Childrens Services,Secure Management,Supplies and Services,Provisions,20-May-2016,TESCO STORES 6329,Catering costs - provisions,83.71,0.00,83.71
Neighbourhood Services,Culture & Sport,Hardwick Park Catering,Supplies and Services,Provisions,20-May-2016,JR HOLLAND FOODSERVICE,Catering costs - provisions,33.74,0.00,33.74
Neighbourhood Services,Culture & Sport,Hardwick Park Catering,Supplies and Services,Provisions,20-May-2016,BRAKE BROS LTD,Catering costs - provisions,167.16,27.86,139.30
Neighbourhood Services,Culture & Sport,Hardwick Park Catering,Supplies and Services,Provisions,20-May-2016,BRAKE BROS LTD,Catering costs - provisions,309.86,,309.86
Neighbourhood Services,Culture & Sport,Hardwick Park Catering,Supplies and Services,Provisions,20-May-2016,BRAKE BROS LTD,Catering costs - provisions,-10.10,0.00,-10.10
Neighbourhood Services,Culture & Sport,Gala Theatre Stage School,Supplies and Services,Newspapers Books and Periodicals,20-May-2016,Amazon UK Marketplace,Books-school library,1.18,0.00,1.18
Neighbourhood Services,Culture & Sport,Gala Theatre Stage School,Supplies and Services,Newspapers Books and Periodicals,20-May-2016,Amazon UK Marketplace,Books-school library,1.53,0.00,1.53
Neighbourhood Services,Culture & Sport,Gala Theatre Stage School,Supplies and Services,Newspapers Books and Periodicals,20-May-2016,Amazon UK Marketplace,Books-school library,7.49,0.00,7.49
Neighbourhood Services,Culture & Sport,Gala Theatre Stage School,Supplies and Services,Newspapers Books and Periodicals,20-May-2016,Amazon UK Marketplace,Books-school library,21.99,0.00,21.99
Neighbourhood Services,Culture & Sport,Gala Theatre Stage School,Supplies and Services,Newspapers Books and Periodicals,20-May-2016,Amazon UK Marketplace,Books-school library,2.40,0.00,2.40
Regeneration & Economic Development,Economic Development and Housing,International Relations,Supplies and Services,Miscellaneous Expenses,20-May-2016,Kaltenberg Bajor Kir l,International visits,228.35,0.00,228.35
Neighbourhood Services,Direct Services,Catering - Green Lane Canteen,Supplies and Services,Provisions,20-May-2016,JR HOLLAND FOODSERVICE,Catering costs - provisions,37.44,0.00,37.44
Neighbourhood Services,Direct Services,Catering - Green Lane Canteen,Supplies and Services,Provisions,20-May-2016,JR HOLLAND FOODSERVICE,Catering costs - provisions,9.85,0.00,9.85
Neighbourhood Services,Direct Services,C&G - South Grounds Maintenance,Transport,Running Costs of Vehicles,20-May-2016,SNOWBALLS (RAILWAY,Vehicle running expenses,168.48,28.08,140.40
Neighbourhood Services,Direct Services,Fleet - Meadowfield Fleet,Supplies and Services,Miscellaneous Expenses,20-May-2016,DVSA MOT COMP 2,Other expenses,615.00,0.00,615.00
Assistant Chief Executive,Policy & Communications Division,Corporate News,Supplies and Services,Subscriptions,20-May-2016,HOOTSUITE MEDIA INC.,Subscriptions,4.93,0.00,4.93
Resources,Legal & Democratic Services,EU Referendum,Supplies and Services,Advertising,20-May-2016,FACEBOOK LZGJZ8N4B2,Advertising other than for staff,600.81,0.00,600.81
Resources,Legal & Democratic Services,Head of Legal and Democratic Services,Supplies and Services,Printing Stationery and Gen Off Exps,20-May-2016,PC WORLD ONLINE,Stationery,93.94,15.66,78.28
Neighbourhood Services,Culture & Sport,Sports,Employees,Recruitment Instruction and Training,20-May-2016,TYNE AND WEAR SPORT,Training-all costs,120.00,0.00,120.00
Neighbourhood Services,Direct Services,Catering - Service Direct,Supplies and Services,Provisions,20-May-2016,JR HOLLAND FOODSERVICE,Catering costs - provisions,36.04,0.00,36.04
Neighbourhood Services,Direct Services,Catering - Service Direct,Supplies and Services,Provisions,20-May-2016,JR HOLLAND FOODSERVICE,Catering costs - provisions,9.87,0.00,9.87
Neighbourhood Services,Direct Services,C&G - North Grounds Maintenance,Supplies and Services,Equipment and Materials,20-May-2016,BESCOL,Other consumables,70.01,11.67,58.34
Resources,Financial Services,Purchasing,Supplies and Services,Newspapers Books and Periodicals,20-May-2016,Amazon UK Marketplace,Books-school library,8.98,0.00,8.98
Resources,Financial Services,Purchasing,Supplies and Services,Newspapers Books and Periodicals,20-May-2016,Amazon UK Marketplace,Books-school library,22.94,0.00,22.94
Resources,Financial Services,Purchasing,Supplies and Services,Newspapers Books and Periodicals,20-May-2016,Amazon UK Marketplace,Books-school library,15.63,0.00,15.63
Assistant Chief Executive,Policy & Communications Division,Corporate Policy,Supplies and Services,Clothing Uniforms and Laundry,20-May-2016,ARGOS LTD,Clothing uniforms and laundry,12.99,0.00,12.99
Resources,Financial Services,Purchasing,Supplies and Services,Postages,20-May-2016,POST OFFICE SHOP,Postages,3.00,0.50,2.50
Resources,Financial Services,Purchasing,Supplies and Services,Postages,20-May-2016,POST OFFICE SHOP,Postages,54.99,,54.99
Resources,Legal & Democratic Services,Head of Legal and Democratic Services,Supplies and Services,Printing Stationery and Gen Off Exps,20-May-2016,PC WORLD ONLINE,Stationery,-93.94,-15.66,-78.28
Children and Adult Services,Childrens Services,Middlestone Moor CU,Supplies and Services,Provisions,21-May-2016,TESCO STORES 2371,Catering costs - provisions,111.11,0.00,111.11
Children and Adult Services,Childrens Services,Secure Management,Supplies and Services,Provisions,21-May-2016,TESCO STORES 6329,Catering costs - provisions,113.25,0.00,113.25
Resources,Financial Services,Purchasing,Supplies and Services,Newspapers Books and Periodicals,21-May-2016,Amazon UK Marketplace,Books-school library,4.39,0.00,4.39
Neighbourhood Services,Culture & Sport,Gala Theatre Stage School,Supplies and Services,Newspapers Books and Periodicals,22-May-2016,Amazon UK Marketplace,Books-school library,1.45,0.00,1.45
Neighbourhood Services,Culture & Sport,Gala Theatre Stage School,Supplies and Services,Newspapers Books and Periodicals,22-May-2016,Amazon UK Marketplace,Books-school library,2.68,0.00,2.68
Resources,Resources Management,Resources Management,Supplies and Services,Provisions,22-May-2016,CO-OP GROUP 010830,Catering costs - provisions,19.36,0.00,19.36
Resources,Legal & Democratic Services,EU Referendum,Supplies and Services,Advertising,22-May-2016,FACEBOOK P2DKS8S4B2,Advertising other than for staff,600.20,0.00,600.20
Regeneration & Economic Development,Economic Development and Housing,International Relations,Supplies and Services,Miscellaneous Expenses,23-May-2016,Kaltenberg Bajor Kir l,International visits,6.28,0.00,6.28
Assistant Chief Executive,Policy & Communications Division,Corporate News,Supplies and Services,Subscriptions,23-May-2016,HOOTSUITE MEDIA INC.,Subscriptions,0.14,0.00,0.14
Resources,Financial Services,Purchasing,Supplies and Services,Newspapers Books and Periodicals,23-May-2016,Amazon UK Marketplace,Books-school library,7.22,0.00,7.22
Neighbourhood Services,Culture & Sport,Wharton Park,Supplies and Services,Printing Stationery and Gen Off Exps,23-May-2016,Amazon UK Marketplace,Stationery,1.81,0.00,1.81
Children and Adult Services,Education,Selby Cottage Childcare Centre,Supplies and Services,Provisions,23-May-2016,ASDA HOME SHOPPING,Catering costs - provisions,96.09,0.00,96.09
Children and Adult Services,Education,Selby Cottage Childcare Centre,Supplies and Services,Provisions,23-May-2016,TESCO STORES 2278,Catering costs - provisions,3.60,0.00,3.60
Regeneration & Economic Development,Economic Development and Housing,Business Growth and Innovation General,Third Party Payments,Rendered by Private Contractors,23-May-2016,MAILCHIMP,Payments to sub-contractors,51.56,0.00,51.56
Regeneration & Economic Development,Economic Development and Housing,Business Growth and Innovation General,Supplies and Services,Newspapers Books and Periodicals,23-May-2016,FASTHOSTS INTERNET,Books-school library,13.19,2.20,10.99
Neighbourhood Services,Culture & Sport,Gala Theatre Stage School,Third Party Payments,Rendered by Private Contractors,23-May-2016,PARCELFORCE WORLDWIDE,Payments to sub-contractors,32.03,0.00,32.03
Neighbourhood Services,Culture & Sport,Gala Theatre Stage School,Third Party Payments,Rendered by Private Contractors,23-May-2016,PARCELFORCE WORLDWIDE,Payments to sub-contractors,30.63,0.00,30.63
Neighbourhood Services,Direct Services,C&G - South Grounds Maintenance,Supplies and Services,Equipment and Materials,23-May-2016,MAXWELLS DIY,Other consumables,24.99,4.17,20.82
Neighbourhood Services,Direct Services,Catering - County Hall Restaurant,Supplies and Services,Provisions,23-May-2016,BRAMBLES FOODS LTD,Catering costs - provisions,549.88,0.00,549.88
Neighbourhood Services,Direct Services,Catering - County Hall Restaurant,Supplies and Services,Provisions,23-May-2016,JR HOLLAND FOODSERVICE,Catering costs - provisions,51.63,0.00,51.63
Neighbourhood Services,Direct Services,Catering - County Hall Restaurant,Supplies and Services,Provisions,23-May-2016,JR HOLLAND FOODSERVICE,Catering costs - provisions,13.52,0.00,13.52
Neighbourhood Services,Direct Services,Catering - County Hall Restaurant,Supplies and Services,Provisions,23-May-2016,BRAKE BROS LTD,Catering costs - provisions,324.24,54.04,270.20
Neighbourhood Services,Direct Services,Catering - County Hall Restaurant,Supplies and Services,Provisions,23-May-2016,BRAKE BROS LTD,Catering costs - provisions,297.30,,297.30
Neighbourhood Services,Direct Services,Catering - County Hall Restaurant,Supplies and Services,Provisions,23-May-2016,JR HOLLAND FOODSERVICE,Catering costs - provisions,-11.90,0.00,-11.90
Children and Adult Services,Education,Dean Bank Childcare,Supplies and Services,Provisions,23-May-2016,ASDA HOME SHOPPING,Catering costs - provisions,52.15,0.00,52.15
Children and Adult Services,Education,Dean Bank Childcare,Supplies and Services,Provisions,23-May-2016,ASDA HOME SHOPPING,Catering costs - provisions,-1.00,0.00,-1.00
Children and Adult Services,Education,Dean Bank Childcare,Supplies and Services,Provisions,23-May-2016,ASDA HOME SHOPPING,Catering costs - provisions,-0.19,0.00,-0.19
Children and Adult Services,Childrens Services,High Etherley Satelite Home,Supplies and Services,Miscellaneous Expenses,23-May-2016,DVLA DRIVER ONLINE,Licences,34.00,0.00,34.00
Neighbourhood Services,Culture & Sport,Hardwick Park Catering,Supplies and Services,Provisions,23-May-2016,JR HOLLAND FOODSERVICE,Catering costs - provisions,9.45,0.00,9.45
Neighbourhood Services,Culture & Sport,Hardwick Park Catering,Supplies and Services,Provisions,23-May-2016,BRAKE BROS LTD,Catering costs - provisions,77.16,12.86,64.30
Neighbourhood Services,Culture & Sport,Hardwick Park Catering,Supplies and Services,Provisions,23-May-2016,BRAKE BROS LTD,Catering costs - provisions,58.03,,58.03
Neighbourhood Services,Culture & Sport,Gala Theatre Stage School,Supplies and Services,Newspapers Books and Periodicals,23-May-2016,Amazon UK Marketplace,Books-school library,22.94,0.00,22.94
Neighbourhood Services,Culture & Sport,Gala Theatre Stage School,Supplies and Services,Newspapers Books and Periodicals,23-May-2016,Amazon UK Marketplace,Books-school library,13.99,0.00,13.99
Neighbourhood Services,Direct Services,Catering - Green Lane Canteen,Supplies and Services,Provisions,23-May-2016,BRAMBLES FOODS LTD,Catering costs - provisions,88.09,0.00,88.09
Neighbourhood Services,Direct Services,Catering - Green Lane Canteen,Supplies and Services,Provisions,23-May-2016,BRAKE BROS LTD,Catering costs - provisions,149.18,0.00,149.18
Children and Adult Services,Childrens Services,Bishop Auckland 0 - 5,Supplies and Services,Provisions,23-May-2016,SAINSBURYS SACAT 2199,Catering costs - provisions,3.85,0.00,3.85
Children and Adult Services,Childrens Services,Bishop Auckland Teenage Parent Programme,Supplies and Services,Provisions,23-May-2016,ASDA STORES,Catering costs - provisions,23.60,0.00,23.60
Children and Adult Services,Childrens Services,Bishop Auckland 0 - 5,Supplies and Services,Provisions,23-May-2016,ASDA STORES,Catering costs - provisions,16.93,0.00,16.93
Children and Adult Services,Childrens Services,Bishop Auckland 0 - 5,Supplies and Services,Provisions,23-May-2016,TESCO STORES 6329,Catering costs - provisions,1.12,0.00,1.12
Resources,Corporate Finance,Corporate Procurement,Supplies and Services,Newspapers Books and Periodicals,23-May-2016,Amazon UK Marketplace,Books-school library,75.75,0.00,75.75
Children and Adult Services,Education,EYDCP-Sustainability EDS,Supplies and Services,Newspapers Books and Periodicals,23-May-2016,Amazon UK Marketplace,Newspapers books and periodicals,2.99,0.00,2.99
Resources,Corporate Finance,Corporate Procurement,Supplies and Services,Newspapers Books and Periodicals,23-May-2016,Amazon EU,Books-school library,11.75,0.00,11.75
Regeneration & Economic Development,Economic Development and Housing,Employability - Youth Contract,Transport,Contract Hire,23-May-2016,TRAINLINE,Pupils-transport to play fields etc,11.58,0.00,11.58
Regeneration & Economic Development,Economic Development and Housing,Employability - Youth Contract,Transport,Contract Hire,23-May-2016,TRAINLINE,Pupils-transport to play fields etc,16.68,0.00,16.68
Children and Adult Services,Childrens Services,Coxhoe Satelite Home,Supplies and Services,Provisions,23-May-2016,ALDI,Catering costs - provisions,4.98,0.83,4.15
Children and Adult Services,Childrens Services,Coxhoe Satelite Home,Supplies and Services,Provisions,23-May-2016,ALDI,Catering costs - provisions,71.50,,71.50
Children and Adult Services,Childrens Services,Coxhoe Satelite Home,Supplies and Services,Newspapers Books and Periodicals,23-May-2016,HOME BARGAINS,Books-school library,20.86,3.48,17.38
Children and Adult Services,Childrens Services,Coxhoe Satelite Home,Supplies and Services,Provisions,23-May-2016,TESCO STORES 2371,Catering costs - provisions,16.45,0.00,16.45
Neighbourhood Services,Direct Services,Fleet - Meadowfield Fleet,Transport,Running Costs of Vehicles,23-May-2016,DVLA VEHICLE TAX,Vehicle Excise Duty (VED),652.50,0.00,652.50
Neighbourhood Services,Direct Services,Fleet - Chilton Fleet,Transport,Running Costs of Vehicles,23-May-2016,DVLA VEHICLE TAX,Vehicle Excise Duty (VED),232.50,0.00,232.50
Neighbourhood Services,Direct Services,Fleet - Hackworth Road Fleet,Transport,Running Costs of Vehicles,23-May-2016,DVLA VEHICLE TAX,Vehicle Excise Duty (VED),237.50,0.00,237.50
Neighbourhood Services,Direct Services,Fleet - Morrison Busty Fleet,Transport,Running Costs of Vehicles,23-May-2016,DVLA VEHICLE TAX,Vehicle Excise Duty (VED),232.50,0.00,232.50
Neighbourhood Services,Direct Services,Fleet - Meadowfield Fleet,Transport,Running Costs of Vehicles,23-May-2016,DVLA VEHICLE TAX,Vehicle Excise Duty (VED),652.50,0.00,652.50
Neighbourhood Services,Direct Services,Fleet - Chilton Fleet,Transport,Running Costs of Vehicles,23-May-2016,DVLA VEHICLE TAX,Vehicle Excise Duty (VED),652.50,0.00,652.50
Neighbourhood Services,Direct Services,Fleet - Meadowfield Fleet,Transport,Running Costs of Vehicles,23-May-2016,DVLA VEHICLE TAX,Vehicle Excise Duty (VED),232.50,0.00,232.50
Neighbourhood Services,Direct Services,Fleet - Meadowfield Fleet,Transport,Running Costs of Vehicles,23-May-2016,DVLA VEHICLE TAX,Vehicle Excise Duty (VED),652.50,0.00,652.50
Neighbourhood Services,Direct Services,Fleet - Chilton Fleet,Transport,Running Costs of Vehicles,23-May-2016,DVLA VEHICLE TAX,Vehicle Excise Duty (VED),652.50,0.00,652.50
Neighbourhood Services,Direct Services,Fleet - Meadowfield Fleet,Transport,Running Costs of Vehicles,23-May-2016,DVLA VEHICLE TAX,Vehicle Excise Duty (VED),232.50,0.00,232.50
Neighbourhood Services,Direct Services,Fleet - Meadowfield Fleet,Transport,Running Costs of Vehicles,23-May-2016,DVLA VEHICLE TAX,Vehicle Excise Duty (VED),232.50,0.00,232.50
Neighbourhood Services,Direct Services,Fleet - Chilton Fleet,Transport,Running Costs of Vehicles,23-May-2016,DVLA VEHICLE TAX,Vehicle Excise Duty (VED),232.50,0.00,232.50
Neighbourhood Services,Direct Services,Fleet - Hackworth Road Fleet,Transport,Running Costs of Vehicles,23-May-2016,DVLA VEHICLE TAX,Vehicle Excise Duty (VED),652.50,0.00,652.50
Neighbourhood Services,Direct Services,Fleet - Chilton Fleet,Transport,Running Costs of Vehicles,23-May-2016,DVLA VEHICLE TAX,Vehicle Excise Duty (VED),167.50,0.00,167.50
Neighbourhood Services,Direct Services,Fleet - Meadowfield Fleet,Transport,Running Costs of Vehicles,23-May-2016,DVLA VEHICLE TAX,Vehicle Excise Duty (VED),32.50,0.00,32.50
Neighbourhood Services,Direct Services,Fleet - Chilton Fleet,Transport,Running Costs of Vehicles,23-May-2016,DVLA VEHICLE TAX,Vehicle Excise Duty (VED),652.50,0.00,652.50
Neighbourhood Services,Direct Services,Fleet - Chilton Fleet,Transport,Running Costs of Vehicles,23-May-2016,DVLA VEHICLE TAX,Vehicle Excise Duty (VED),652.50,0.00,652.50
Neighbourhood Services,Direct Services,Fleet - Meadowfield Fleet,Transport,Running Costs of Vehicles,23-May-2016,DVLA VEHICLE TAX,Vehicle Excise Duty (VED),167.50,0.00,167.50
Neighbourhood Services,Direct Services,Fleet - Meadowfield Fleet,Transport,Running Costs of Vehicles,23-May-2016,DVLA VEHICLE TAX,Vehicle Excise Duty (VED),232.50,0.00,232.50
Neighbourhood Services,Direct Services,Fleet - Meadowfield Fleet,Transport,Running Costs of Vehicles,23-May-2016,DVLA VEHICLE TAX,Vehicle Excise Duty (VED),652.50,0.00,652.50
Neighbourhood Services,Direct Services,Fleet - Meadowfield Fleet,Transport,Running Costs of Vehicles,23-May-2016,DVLA VEHICLE TAX,Vehicle Excise Duty (VED),652.50,0.00,652.50
Neighbourhood Services,Direct Services,Fleet - Meadowfield Fleet,Transport,Running Costs of Vehicles,23-May-2016,DVLA VEHICLE TAX,Vehicle Excise Duty (VED),112.50,0.00,112.50
Neighbourhood Services,Direct Services,Fleet - Meadowfield Fleet,Transport,Running Costs of Vehicles,23-May-2016,DVLA VEHICLE TAX,Vehicle Excise Duty (VED),147.50,0.00,147.50
Neighbourhood Services,Direct Services,Fleet - Chilton Fleet,Transport,Running Costs of Vehicles,23-May-2016,DVLA VEHICLE TAX,Vehicle Excise Duty (VED),232.50,0.00,232.50
Neighbourhood Services,Direct Services,Fleet - Meadowfield Fleet,Transport,Running Costs of Vehicles,23-May-2016,DVLA VEHICLE TAX,Vehicle Excise Duty (VED),652.50,0.00,652.50
Neighbourhood Services,Direct Services,Fleet - Chilton Fleet,Transport,Running Costs of Vehicles,23-May-2016,DVLA VEHICLE TAX,Vehicle Excise Duty (VED),232.50,0.00,232.50
Neighbourhood Services,Direct Services,Fleet - Meadowfield Fleet,Transport,Running Costs of Vehicles,23-May-2016,DVLA VEHICLE TAX,Vehicle Excise Duty (VED),232.50,0.00,232.50
Neighbourhood Services,Direct Services,Fleet - Meadowfield Fleet,Transport,Running Costs of Vehicles,23-May-2016,DVLA VEHICLE TAX,Vehicle Excise Duty (VED),232.50,0.00,232.50
Neighbourhood Services,Direct Services,Fleet - Meadowfield Fleet,Transport,Running Costs of Vehicles,23-May-2016,DVLA VEHICLE TAX,Vehicle Excise Duty (VED),167.50,0.00,167.50
Neighbourhood Services,Direct Services,Fleet - Meadowfield Fleet,Transport,Running Costs of Vehicles,23-May-2016,DVLA VEHICLE TAX,Vehicle Excise Duty (VED),112.50,0.00,112.50
Neighbourhood Services,Direct Services,Fleet - Chilton Fleet,Transport,Running Costs of Vehicles,23-May-2016,DVLA VEHICLE TAX,Vehicle Excise Duty (VED),232.50,0.00,232.50
Neighbourhood Services,Direct Services,Fleet - Chilton Fleet,Transport,Running Costs of Vehicles,23-May-2016,DVLA VEHICLE TAX,Vehicle Excise Duty (VED),232.50,0.00,232.50
Neighbourhood Services,Direct Services,Fleet - Hackworth Road Fleet,Transport,Running Costs of Vehicles,23-May-2016,DVLA VEHICLE TAX,Vehicle Excise Duty (VED),232.50,0.00,232.50
Neighbourhood Services,Direct Services,Fleet - Meadowfield Fleet,Transport,Running Costs of Vehicles,23-May-2016,DVLA VEHICLE TAX,Vehicle Excise Duty (VED),167.50,0.00,167.50
Neighbourhood Services,Direct Services,Fleet - Meadowfield Fleet,Transport,Running Costs of Vehicles,23-May-2016,DVLA VEHICLE TAX,Vehicle Excise Duty (VED),167.50,0.00,167.50
Neighbourhood Services,Direct Services,Fleet - Chilton Fleet,Transport,Running Costs of Vehicles,23-May-2016,DVLA VEHICLE TAX,Vehicle Excise Duty (VED),232.50,0.00,232.50
Neighbourhood Services,Direct Services,Fleet - Chilton Fleet,Transport,Running Costs of Vehicles,23-May-2016,DVLA VEHICLE TAX,Vehicle Excise Duty (VED),232.50,0.00,232.50
Neighbourhood Services,Direct Services,Fleet - Chilton Fleet,Transport,Running Costs of Vehicles,23-May-2016,DVLA VEHICLE TAX,Vehicle Excise Duty (VED),652.50,0.00,652.50
Neighbourhood Services,Direct Services,Fleet - Hackworth Road Fleet,Transport,Running Costs of Vehicles,23-May-2016,DVLA VEHICLE TAX,Vehicle Excise Duty (VED),652.50,0.00,652.50
Neighbourhood Services,Direct Services,Fleet - Meadowfield Fleet,Transport,Running Costs of Vehicles,23-May-2016,DVLA VEHICLE TAX,Vehicle Excise Duty (VED),232.50,0.00,232.50
Neighbourhood Services,Direct Services,Fleet - Morrison Busty Fleet,Transport,Running Costs of Vehicles,23-May-2016,DVLA VEHICLE TAX,Vehicle Excise Duty (VED),232.50,0.00,232.50
Neighbourhood Services,Direct Services,Fleet - Meadowfield Fleet,Transport,Running Costs of Vehicles,23-May-2016,DVLA VEHICLE TAX,Vehicle Excise Duty (VED),232.50,0.00,232.50
Neighbourhood Services,Direct Services,Fleet - Meadowfield Fleet,Transport,Running Costs of Vehicles,23-May-2016,DVLA VEHICLE TAX,Vehicle Excise Duty (VED),232.50,0.00,232.50
Neighbourhood Services,Direct Services,Fleet - Chilton Fleet,Transport,Running Costs of Vehicles,23-May-2016,DVLA VEHICLE TAX,Vehicle Excise Duty (VED),652.50,0.00,652.50
Neighbourhood Services,Direct Services,Fleet - Morrison Busty Fleet,Transport,Running Costs of Vehicles,23-May-2016,DVLA VEHICLE TAX,Vehicle Excise Duty (VED),652.50,0.00,652.50
Neighbourhood Services,Direct Services,Fleet - Chilton Fleet,Transport,Running Costs of Vehicles,23-May-2016,DVLA VEHICLE TAX,Vehicle Excise Duty (VED),232.50,0.00,232.50
Neighbourhood Services,Direct Services,Fleet - Meadowfield Fleet,Transport,Running Costs of Vehicles,23-May-2016,DVLA VEHICLE TAX,Vehicle Excise Duty (VED),167.50,0.00,167.50
Neighbourhood Services,Direct Services,Fleet - Meadowfield Fleet,Transport,Running Costs of Vehicles,23-May-2016,DVLA VEHICLE TAX,Vehicle Excise Duty (VED),112.50,0.00,112.50
Neighbourhood Services,Direct Services,Fleet - Morrison Busty Fleet,Transport,Running Costs of Vehicles,23-May-2016,DVLA VEHICLE TAX,Vehicle Excise Duty (VED),167.50,0.00,167.50
Neighbourhood Services,Direct Services,Fleet - Chilton Fleet,Transport,Running Costs of Vehicles,23-May-2016,DVLA VEHICLE TAX,Vehicle Excise Duty (VED),232.50,0.00,232.50
Neighbourhood Services,Direct Services,Fleet - Meadowfield Fleet,Transport,Running Costs of Vehicles,23-May-2016,DVLA VEHICLE TAX,Vehicle Excise Duty (VED),167.50,0.00,167.50
Neighbourhood Services,Direct Services,Fleet - Meadowfield Fleet,Transport,Running Costs of Vehicles,23-May-2016,DVLA VEHICLE TAX,Vehicle Excise Duty (VED),232.50,0.00,232.50
Neighbourhood Services,Direct Services,Fleet - Morrison Busty Fleet,Transport,Running Costs of Vehicles,23-May-2016,DVLA VEHICLE TAX,Vehicle Excise Duty (VED),167.50,0.00,167.50
Neighbourhood Services,Direct Services,Fleet - Meadowfield Fleet,Transport,Running Costs of Vehicles,23-May-2016,DVLA VEHICLE TAX,Vehicle Excise Duty (VED),652.50,0.00,652.50
Neighbourhood Services,Direct Services,Fleet - Chilton Fleet,Transport,Running Costs of Vehicles,23-May-2016,DVLA VEHICLE TAX,Vehicle Excise Duty (VED),652.50,0.00,652.50
Neighbourhood Services,Direct Services,Fleet - Chilton Fleet,Transport,Running Costs of Vehicles,23-May-2016,DVLA VEHICLE TAX,Vehicle Excise Duty (VED),232.50,0.00,232.50
Neighbourhood Services,Direct Services,Fleet - Meadowfield Fleet,Transport,Running Costs of Vehicles,23-May-2016,DVLA VEHICLE TAX,Vehicle Excise Duty (VED),232.50,0.00,232.50
Neighbourhood Services,Direct Services,Fleet - Meadowfield Fleet,Transport,Running Costs of Vehicles,23-May-2016,DVLA VEHICLE TAX,Vehicle Excise Duty (VED),652.50,0.00,652.50
Neighbourhood Services,Culture & Sport,Killhope Lead Mining Centre - LLC,Supplies and Services,Postages,23-May-2016,WWW.ROYALMAIL.COM,Postages,225.00,0.00,225.00
Neighbourhood Services,Direct Services,Fleet - Meadowfield Fleet,Supplies and Services,Grants to Voluntary Organisations,23-May-2016,DAVENTRY HOTEL,Accommodation assistance,87.00,14.50,72.50
Resources,Legal & Democratic Services,Democratic Representation,Supplies and Services,Subscriptions,23-May-2016,WWW.ICO.GOV.UK,Subscriptions,35.00,0.00,35.00
Resources,Legal & Democratic Services,EU Referendum,Supplies and Services,Advertising,23-May-2016,FACEBOOK RNFNR8J4B2,Advertising other than for staff,601.05,0.00,601.05
Resources,Financial Services,Collections,Supplies and Services,Services,23-May-2016,HMCOURTS-SERVICE.G,Court Costs,225.00,0.00,225.00
Neighbourhood Services,Culture & Sport,Bp Auckland Town Hall Cafe,Supplies and Services,Provisions,23-May-2016,BRAMBLES FOODS LTD,Catering costs - provisions,104.45,0.00,104.45
Neighbourhood Services,Direct Services,Catering - Service Direct,Supplies and Services,Provisions,23-May-2016,BRAMBLES FOODS LTD,Catering costs - provisions,75.78,0.00,75.78
Neighbourhood Services,Direct Services,C&G - North Grounds Maintenance,Supplies and Services,Equipment and Materials,23-May-2016,JG PAXTON & SONS LTD,Direct materials,290.06,48.34,241.72
Neighbourhood Services,Direct Services,C&G - North Grounds Maintenance,Supplies and Services,Equipment and Materials,23-May-2016,JG PAXTON & SONS LTD,Direct materials,21.60,3.60,18.00
Regeneration & Economic Development,Economic Development and Housing,Durham Employment & Skills - General,Supplies and Services,Postages,23-May-2016,POST OFFICE COUNTER,Postages,12.80,0.00,12.80
Neighbourhood Services,Culture & Sport,Positive Futures,Supplies and Services,Provisions,23-May-2016,W M MORRISONS,Catering costs - provisions,16.74,0.00,16.74
Children and Adult Services,Childrens Services,Ferryhill 0 - 5,Supplies and Services,Provisions,23-May-2016,ASDA HOME SHOPPING,Catering costs - provisions,54.02,0.00,54.02
Children and Adult Services,Childrens Services,Ferryhill and Newton Aycliffe Locality,Supplies and Services,Provisions,23-May-2016,ASDA HOME SHOPPING,Catering costs - provisions,-1.00,0.00,-1.00
Children and Adult Services,Childrens Services,Ferryhill and Newton Aycliffe Locality,Supplies and Services,Provisions,23-May-2016,ASDA HOME SHOPPING,Catering costs - provisions,-0.19,0.00,-0.19
Resources,Financial Services,Purchasing,Supplies and Services,Newspapers Books and Periodicals,23-May-2016,Amazon UK Marketplace,Books-school library,14.99,0.00,14.99
Neighbourhood Services,Culture & Sport,Wharton Park,Supplies and Services,Printing Stationery and Gen Off Exps,23-May-2016,Amazon UK Marketplace,Stationery,15.48,0.00,15.48
Neighbourhood Services,Culture & Sport,Wharton Park,Supplies and Services,Printing Stationery and Gen Off Exps,23-May-2016,Amazon UK Marketplace,Stationery,15.97,0.00,15.97
Neighbourhood Services,Culture & Sport,Wharton Park,Supplies and Services,Printing Stationery and Gen Off Exps,23-May-2016,Amazon UK Marketplace,Stationery,34.29,0.00,34.29
Neighbourhood Services,Culture & Sport,Woodhouse Close Leisure Complex,Supplies and Services,Provisions,23-May-2016,JR HOLLAND FOODSERVICE,Catering costs - provisions,24.29,0.00,24.29
Neighbourhood Services,Culture & Sport,Woodhouse Close Leisure Complex,Supplies and Services,Provisions,23-May-2016,BRAKE BROS LTD,Catering costs - provisions,79.20,0.00,79.20
Neighbourhood Services,Culture & Sport,Woodhouse Close Leisure Complex,Supplies and Services,Provisions,23-May-2016,BRAKE BROS LTD,Catering costs - provisions,-2.66,0.00,-2.66
Assistant Chief Executive,Policy & Communications Division,Corporate Policy,Supplies and Services,Equipment and Materials,23-May-2016,WILKO DURHAM 426,Equipment-purchase and rental,-12.00,0.00,-12.00
Children and Adult Services,Education,Inspection-HQ,Employees,Recruitment Instruction and Training,23-May-2016,PREMIER INN,Training-all costs,-95.99,0.00,-95.99
Resources,Internal Audit and Insurance,Internal Audit,Supplies and Services,Grants to Voluntary Organisations,23-May-2016,SCARMAN,Accommodation assistance,118.00,19.67,98.33
Children and Adult Services,Head of Adults,Sensory Support - County Wide,Supplies and Services,Equipment and Materials,23-May-2016,DRI VMware,ICT supplies etc,51.04,0.00,51.04
Regeneration & Economic Development,Economic Development and Housing,Business Growth and Innovation General,Third Party Payments,Rendered by Private Contractors,24-May-2016,MAILCHIMP,Payments to sub-contractors,1.42,0.00,1.42
Resources,Financial Services,Purchasing,Supplies and Services,Newspapers Books and Periodicals,24-May-2016,Amazon EU,Books-school library,5.82,0.00,5.82
Children and Adult Services,Childrens Services,Bishop Auckland and Barnard Castle Locality,Supplies and Services,Equipment and Materials,24-May-2016,TESCO DIRECT,Other consumables,147.95,0.00,147.95
Children and Adult Services,Education,School Admissions and Transport,Supplies and Services,Postages,24-May-2016,WWW.ROYALMAIL.COM,Postages,238.00,0.00,238.00
Children and Adult Services,Head of Adults,Spennymoor Pathways,Supplies and Services,Miscellaneous Expenses,24-May-2016,ASDA 4387,Other expenses,18.95,0.00,18.95
Children and Adult Services,Head of Adults,Spennymoor Pathways,Supplies and Services,Miscellaneous Expenses,24-May-2016,ARGOS RETAIL GROUP,Other expenses,48.00,0.00,48.00
Children and Adult Services,Childrens Services,Secure Management,Supplies and Services,Miscellaneous Expenses,24-May-2016,VIVANTAGE,Other expenses,55.96,9.33,46.63
Children and Adult Services,Planning & Service Strategy,Comm Marketing and Information,Supplies and Services,Printing Stationery and Gen Off Exps,24-May-2016,WWW.RYMAN.CO.UK,Stationery,57.99,9.67,48.32
Neighbourhood Services,Direct Services,Catering - County Hall Restaurant,Supplies and Services,Provisions,24-May-2016,JR HOLLAND FOODSERVICE,Catering costs - provisions,85.21,0.00,85.21
Neighbourhood Services,Direct Services,Catering - County Hall Restaurant,Supplies and Services,Provisions,24-May-2016,JR HOLLAND FOODSERVICE,Catering costs - provisions,6.58,0.00,6.58
Neighbourhood Services,Culture & Sport,Gala Theatre - Catering etc,Supplies and Services,Provisions,24-May-2016,JR HOLLAND FOODSERVICE,Catering costs - provisions,20.34,0.00,20.34
Neighbourhood Services,Culture & Sport,Gala Theatre - Catering etc,Supplies and Services,Provisions,24-May-2016,BRAKE BROS LTD,Catering costs - provisions,85.98,14.33,71.65
Neighbourhood Services,Culture & Sport,Gala Theatre - Catering etc,Supplies and Services,Provisions,24-May-2016,BRAKE BROS LTD,Catering costs - provisions,162.57,,162.57
Neighbourhood Services,Culture & Sport,Locality 3 Team Management,Supplies and Services,Provisions,24-May-2016,ASDA SUPERSTORE,Catering costs - provisions,12.06,0.00,12.06
Children and Adult Services,Childrens Services,High Etherley Satelite Home,Supplies and Services,Provisions,24-May-2016,TESCO STORES 6329,Catering costs - provisions,208.60,0.00,208.60
Children and Adult Services,Childrens Services,High Etherley Satelite Home,Supplies and Services,Provisions,24-May-2016,TESCO STORES 6329,Catering costs - provisions,11.48,0.00,11.48
Children and Adult Services,Childrens Services,High Etherley Satelite Home,Premises,Repairs to Grounds,24-May-2016,TESCO STORES 6329,General maintenance,6.50,0.00,6.50
Resources,Legal & Democratic Services,Democratic Representation,Supplies and Services,Equipment and Materials,24-May-2016,DURHAM CATHEDRAL,Other consumables,13.50,0.00,13.50
Children and Adult Services,Childrens Services,Secure Management,Supplies and Services,Miscellaneous Expenses,24-May-2016,Amazon UK Marketplace,Other expenses,5.40,0.00,5.40
Children and Adult Services,Childrens Services,Secure Management,Supplies and Services,Clothing Uniforms and Laundry,24-May-2016,PAYPAL SUPER-SHOP.COM,Clothing uniforms and laundry,80.00,0.00,80.00
Children and Adult Services,Childrens Services,Secure Education,Supplies and Services,Equipment and Materials,24-May-2016,PISWAGCOLIM,ICT supplies etc,93.00,0.00,93.00
Children and Adult Services,Childrens Services,Secure Education,Supplies and Services,Computers and Communications,24-May-2016,THEPIHUT,Computer hardware,144.50,0.00,144.50
Children and Adult Services,Childrens Services,Secure Education,Supplies and Services,Computers and Communications,24-May-2016,PIMORONI,Computer hardware,348.97,58.16,290.81
Children and Adult Services,Childrens Services,Secure Management,Supplies and Services,Furniture,24-May-2016,ARGOS RETAIL GROUP,Furniture repair and replacement,89.97,0.00,89.97
Children and Adult Services,Childrens Services,Secure Management,Supplies and Services,Clothing Uniforms and Laundry,24-May-2016,WWW.TOPSHOP.COM,Clothing uniforms and laundry,62.00,0.00,62.00
Children and Adult Services,Childrens Services,Secure Management,Supplies and Services,Equipment and Materials,24-May-2016,TESCO DIRECT,Equipment-purchase and rental,40.00,0.00,40.00
Neighbourhood Services,Culture & Sport,Hardwick Park Catering,Supplies and Services,Provisions,24-May-2016,FREEMAN CATERING BUTCH,Catering costs - provisions,40.52,0.00,40.52
Neighbourhood Services,Culture & Sport,Hardwick Park Catering,Supplies and Services,Provisions,24-May-2016,FREEMAN CATERING BUTCH,Catering costs - provisions,16.17,0.00,16.17
Neighbourhood Services,Culture & Sport,Hardwick Park Catering,Supplies and Services,Provisions,24-May-2016,JR HOLLAND FOODSERVICE,Catering costs - provisions,68.76,0.00,68.76
Neighbourhood Services,Culture & Sport,Hardwick Park Catering,Supplies and Services,Provisions,24-May-2016,JR HOLLAND FOODSERVICE,Catering costs - provisions,17.27,0.00,17.27
Neighbourhood Services,Culture & Sport,Hardwick Park Catering,Supplies and Services,Provisions,24-May-2016,JR HOLLAND FOODSERVICE,Catering costs - provisions,11.12,0.00,11.12
Neighbourhood Services,Culture & Sport,Hardwick Park Catering,Supplies and Services,Provisions,24-May-2016,JR HOLLAND FOODSERVICE,Catering costs - provisions,6.87,0.00,6.87
Neighbourhood Services,Culture & Sport,Hardwick Park Catering,Supplies and Services,Provisions,24-May-2016,JR HOLLAND FOODSERVICE,Catering costs - provisions,6.14,0.00,6.14
Neighbourhood Services,Culture & Sport,Hardwick Park Catering,Supplies and Services,Provisions,24-May-2016,BRAKE BROS LTD,Catering costs - provisions,513.12,85.52,427.60
Neighbourhood Services,Culture & Sport,Hardwick Park Catering,Supplies and Services,Provisions,24-May-2016,BRAKE BROS LTD,Catering costs - provisions,21.62,,21.62
Neighbourhood Services,Culture & Sport,Hardwick Park Catering,Supplies and Services,Provisions,24-May-2016,BRAKE BROS LTD,Catering costs - provisions,-32.40,0.00,-32.40
Neighbourhood Services,Culture & Sport,Gala Theatre Stage School,Supplies and Services,Newspapers Books and Periodicals,24-May-2016,Amazon UK Marketplace,Books-school library,8.99,0.00,8.99
Neighbourhood Services,Culture & Sport,Gala Theatre Stage School,Supplies and Services,Newspapers Books and Periodicals,24-May-2016,Amazon UK Marketplace,Books-school library,12.48,0.00,12.48
Neighbourhood Services,Culture & Sport,Gala Theatre Stage School,Supplies and Services,Equipment and Materials,24-May-2016,WWW.CKB.UK.COM,Other consumables,24.50,4.08,20.42
Neighbourhood Services,Culture & Sport,Gala Theatre Stage School,Supplies and Services,Printing Stationery and Gen Off Exps,24-May-2016,RYMAN,Stationery,32.98,5.50,27.48
Neighbourhood Services,Direct Services,Catering - Green Lane Canteen,Supplies and Services,Provisions,24-May-2016,FREEMAN CATERING BUTCH,Catering costs - provisions,85.01,0.00,85.01
Neighbourhood Services,Direct Services,Catering - Green Lane Canteen,Supplies and Services,Provisions,24-May-2016,FREEMAN CATERING BUTCH,Catering costs - provisions,60.35,0.00,60.35
Neighbourhood Services,Direct Services,Catering - Green Lane Canteen,Supplies and Services,Provisions,24-May-2016,BRAKE BROS LTD,Catering costs - provisions,10.80,1.80,9.00
Neighbourhood Services,Direct Services,Catering - Green Lane Canteen,Supplies and Services,Provisions,24-May-2016,BRAKE BROS LTD,Catering costs - provisions,215.10,,215.10
Children and Adult Services,Childrens Services,Tow Law CU,Supplies and Services,Clothing Uniforms and Laundry,24-May-2016,STORE TWENTY ONE 0058,Clothing uniforms and laundry,24.80,0.00,24.80
Children and Adult Services,Childrens Services,Tow Law CU,Supplies and Services,Equipment and Materials,24-May-2016,WILKO RETAIL LIMIT,Equipment-purchase and rental,72.16,0.00,72.16
Children and Adult Services,Childrens Services,Tow Law CU,Supplies and Services,Clothing Uniforms and Laundry,24-May-2016,ARGOS RETAIL GROUP,Clothing uniforms and laundry,203.94,0.00,203.94
Children and Adult Services,Education,EYDCP-Sustainability EDS,Supplies and Services,Newspapers Books and Periodicals,24-May-2016,Amazon UK Marketplace,Newspapers books and periodicals,5.44,0.00,5.44
Neighbourhood Services,Direct Services,C&G - South Grounds Maintenance,Supplies and Services,Equipment and Materials,24-May-2016,AYCLIFFE DECORATIV,Equipment-purchase and rental,20.00,3.33,16.67
Regeneration & Economic Development,Economic Development and Housing,Employability - Youth Contract,Transport,Contract Hire,24-May-2016,WWW.SIMPLYGO.COM,Pupils-transport to play fields etc,6.30,0.00,6.30
Neighbourhood Services,Direct Services,Fleet - Morrison Busty Fleet,Transport,Running Costs of Vehicles,24-May-2016,DVLA VEHICLE TAX,Vehicle Excise Duty (VED),167.50,0.00,167.50
Neighbourhood Services,Direct Services,R&R - South Refuse Collection,Supplies and Services,Telephones,24-May-2016,Amazon UK Marketplace,Telephones general-all costs,88.29,0.00,88.29
Resources,Legal & Democratic Services,Litigation Solicitors,Supplies and Services,Services,24-May-2016,DISCLOSURE SCOT,Disclosure & Barring (DBS) Fees,25.00,0.00,25.00
Assistant Chief Executive,Policy & Communications Division,Riep - Modern ways of working,Supplies and Services,Newspapers Books and Periodicals,24-May-2016,BRITISH STANDARDS,Newspapers books and periodicals,90.00,0.00,90.00
Neighbourhood Services,Direct Services,C&G - North Grounds Maintenance,Supplies and Services,Equipment and Materials,24-May-2016,BESCOL,Other consumables,36.00,6.00,30.00
Neighbourhood Services,Direct Services,C&G - North Grounds Maintenance,Supplies and Services,Equipment and Materials,24-May-2016,BESCOL,Other consumables,16.39,2.73,13.66
Neighbourhood Services,Culture & Sport,Bp Auckland Town Hall Cafe,Supplies and Services,Provisions,24-May-2016,JR HOLLAND FOODSERVICE,Catering costs - provisions,18.17,0.00,18.17
Neighbourhood Services,Direct Services,Catering - Service Direct,Supplies and Services,Provisions,24-May-2016,FREEMAN CATERING BUTCH,Catering costs - provisions,55.05,0.00,55.05
Neighbourhood Services,Direct Services,Catering - Service Direct,Supplies and Services,Provisions,24-May-2016,FREEMAN CATERING BUTCH,Catering costs - provisions,51.71,0.00,51.71
Neighbourhood Services,Direct Services,Catering - Service Direct,Supplies and Services,Provisions,24-May-2016,BRAKE BROS LTD,Catering costs - provisions,58.08,0.00,58.08
Children and Adult Services,Childrens Services,Durham and Chester Le Street Locality,Supplies and Services,Provisions,24-May-2016,TESCO STORES 2371,Catering costs - provisions,37.27,0.00,37.27
Children and Adult Services,Childrens Services,Barnard Castle 0 - 5,Supplies and Services,Equipment and Materials,24-May-2016,BAKER ROSS,Other consumables,51.84,0.00,51.84
Resources,Financial Services,Finance - Post Entry Training,Employees,Recruitment Instruction and Training,24-May-2016,WWW.CIPS.ORG,Training-all costs,97.92,0.00,97.92
Children and Adult Services,Head of Adults,OP/PD Durham & CLS,Employees,Recruitment Instruction and Training,24-May-2016,WWW.GOV.UK,Training-all costs,70.00,0.00,70.00
Children and Adult Services,Childrens Services,Secure Management,Supplies and Services,Clothing Uniforms and Laundry,24-May-2016,gethelabel.com,Clothing uniforms and laundry,93.94,0.00,93.94
Children and Adult Services,Head of Adults,Sensory Support - County Wide,Supplies and Services,Equipment and Materials,25-May-2016,DRI VMware,ICT supplies etc,1.40,0.00,1.40
Regeneration & Economic Development,Economic Development and Housing,Business Services General,Supplies and Services,Conference Expenses,25-May-2016,EB DOING BUSINESS IN,Conferencesseminars fees etc,60.00,0.00,60.00
Regeneration & Economic Development,Economic Development and Housing,Syrian Refugee Humanitarian Support,Supplies and Services,Newspapers Books and Periodicals,25-May-2016,Amazon EU,Newspapers books and periodicals,57.96,0.00,57.96
Neighbourhood Services,Direct Services,Catering - County Hall Restaurant,Supplies and Services,Provisions,25-May-2016,JR HOLLAND FOODSERVICE,Catering costs - provisions,161.75,0.00,161.75
Neighbourhood Services,Direct Services,Catering - County Hall Restaurant,Supplies and Services,Provisions,25-May-2016,JR HOLLAND FOODSERVICE,Catering costs - provisions,31.35,0.00,31.35
Neighbourhood Services,Direct Services,Catering - County Hall Restaurant,Supplies and Services,Provisions,25-May-2016,BRAKE BROS LTD,Catering costs - provisions,377.44,0.00,377.44
Regeneration & Economic Development,Spatial Policy Planning Assets & Environment,North Pennines - Bowlees,Supplies and Services,Equipment and Materials,25-May-2016,WWW.LIGHTBULBS-DIRECT.,Direct materials,7.85,1.31,6.54
Neighbourhood Services,Culture & Sport,Office Services,Supplies and Services,Equipment and Materials,25-May-2016,GOOGLE ADWS2420292471,Misc equipment tools and materials,81.85,0.00,81.85
Neighbourhood Services,Direct Services,C&G - North Grounds Maintenance,Supplies and Services,Equipment and Materials,25-May-2016,BESCOL,Other consumables,10.33,1.72,8.61
Children and Adult Services,Childrens Services,Lumley,Supplies and Services,Equipment and Materials,25-May-2016,Amazon UK Marketplace,Equipment-purchase and rental,119.88,0.00,119.88
Children and Adult Services,Childrens Services,Secure Management,Supplies and Services,Provisions,25-May-2016,TESCO STORES 6329,Catering costs - provisions,94.37,0.00,94.37
Children and Adult Services,Childrens Services,Secure Management,Supplies and Services,Clothing Uniforms and Laundry,25-May-2016,FLANNELSFASHION.,Clothing uniforms and laundry,-115.00,0.00,-115.00
Neighbourhood Services,Culture & Sport,Hardwick Park Catering,Supplies and Services,Provisions,25-May-2016,JR HOLLAND FOODSERVICE,Catering costs - provisions,47.65,0.00,47.65
Neighbourhood Services,Culture & Sport,Hardwick Park Catering,Supplies and Services,Provisions,25-May-2016,BRAKE BROS LTD,Catering costs - provisions,41.22,6.87,34.35
Neighbourhood Services,Culture & Sport,Hardwick Park Catering,Supplies and Services,Provisions,25-May-2016,BRAKE BROS LTD,Catering costs - provisions,93.12,,93.12
Neighbourhood Services,Culture & Sport,Hardwick Park Catering,Supplies and Services,Provisions,25-May-2016,BRAKE BROS LTD,Catering costs - provisions,-1.05,0.00,-1.05
Neighbourhood Services,Culture & Sport,Gala Theatre Stage School,Supplies and Services,Newspapers Books and Periodicals,25-May-2016,Amazon UK Marketplace,Books-school library,8.98,0.00,8.98
Neighbourhood Services,Culture & Sport,Gala Theatre Stage School,Supplies and Services,Newspapers Books and Periodicals,25-May-2016,Amazon UK Marketplace,Books-school library,14.52,0.00,14.52
Neighbourhood Services,Direct Services,Catering - Green Lane Canteen,Supplies and Services,Provisions,25-May-2016,JR HOLLAND FOODSERVICE,Catering costs - provisions,34.65,0.00,34.65
Neighbourhood Services,Direct Services,Catering - Green Lane Canteen,Supplies and Services,Provisions,25-May-2016,JR HOLLAND FOODSERVICE,Catering costs - provisions,6.96,0.00,6.96
Children and Adult Services,Childrens Services,Tow Law CU,Supplies and Services,Clothing Uniforms and Laundry,25-May-2016,BEALES DEPARTMENT ST,Clothing uniforms and laundry,7.50,0.00,7.50
Children and Adult Services,Childrens Services,Tow Law CU,Supplies and Services,Equipment and Materials,25-May-2016,B & Q 1120,Equipment-purchase and rental,5.78,0.00,5.78
Children and Adult Services,Childrens Services,Bishop Auckland 0 - 5,Supplies and Services,Provisions,25-May-2016,ASDA STORES,Catering costs - provisions,1.90,0.00,1.90
Children and Adult Services,Childrens Services,Consett and Stanley Locality,Supplies and Services,Equipment and Materials,25-May-2016,WWW.DIGGERLAND.COM,Misc equipment tools and materials,167.88,0.00,167.88
Neighbourhood Services,Culture & Sport,Woodhouse Close Leisure Complex,Supplies and Services,Equipment and Materials,25-May-2016,Amazon UK Marketplace,Other consumables,15.94,0.00,15.94
Neighbourhood Services,Direct Services,C&G - South Grounds Maintenance,Supplies and Services,Equipment and Materials,25-May-2016,SCREWFIX,Equipment-purchase and rental,72.78,12.13,60.65
Neighbourhood Services,Direct Services,C&G - South Grounds Maintenance,Transport,Running Costs of Vehicles,25-May-2016,SNOWBALLS (RAILWAY,Vehicle running expenses,167.67,27.95,139.72
Children and Adult Services,Childrens Services,Seaham Childrens Centre,Supplies and Services,Provisions,25-May-2016,GREGGS - S1736,Catering costs - provisions,30.00,0.00,30.00
Resources,I.C.T. Services,ICT Telephony Recharges,Supplies and Services,Telephones,25-May-2016,Amazon UK Marketplace,Telephones general-all costs,158.40,0.00,158.40
Resources,Legal & Democratic Services,EU Referendum,Supplies and Services,Advertising,25-May-2016,FACEBOOK BH8MR865B2,Advertising other than for staff,600.22,0.00,600.22
Resources,Legal & Democratic Services,Coroner County Durham & Darlington,Supplies and Services,Newspapers Books and Periodicals,25-May-2016,PAYPAL INQUEST,Newspapers books and periodicals,100.00,0.00,100.00
Children and Adult Services,Childrens Services,CDYOS - Support,Supplies and Services,Equipment and Materials,25-May-2016,B&Q DIRECT,Equipment-purchase and rental,140.00,0.00,140.00
Neighbourhood Services,Direct Services,Catering - Service Direct,Supplies and Services,Provisions,25-May-2016,JR HOLLAND FOODSERVICE,Catering costs - provisions,18.39,0.00,18.39
Neighbourhood Services,Direct Services,Catering - Service Direct,Supplies and Services,Provisions,25-May-2016,JR HOLLAND FOODSERVICE,Catering costs - provisions,13.45,0.00,13.45
Neighbourhood Services,Direct Services,Catering - Service Direct,Supplies and Services,Provisions,25-May-2016,BRAKE BROS LTD,Catering costs - provisions,45.42,7.57,37.85
Neighbourhood Services,Direct Services,Catering - Service Direct,Supplies and Services,Provisions,25-May-2016,BRAKE BROS LTD,Catering costs - provisions,72.82,,72.82
Neighbourhood Services,Direct Services,C&G - North Grounds Maintenance,Supplies and Services,Equipment and Materials,25-May-2016,B & Q 1343,Equipment-purchase and rental,32.00,5.33,26.67
Children and Adult Services,Childrens Services,Ferryhill 0 - 5,Supplies and Services,Newspapers Books and Periodicals,25-May-2016,WATERSTONES,Books-school library,34.00,0.00,34.00
Resources,Financial Services,Purchasing,Supplies and Services,Computers and Communications,25-May-2016,ARGOS DIRECT,Computer hardware,27.95,0.00,27.95
Children and Adult Services,Childrens Services,Secure Management,Supplies and Services,Clothing Uniforms and Laundry,25-May-2016,PRETTYLITTLETHING.COM,Clothing uniforms and laundry,-15.00,0.00,-15.00
Resources,Financial Services,Purchasing,Supplies and Services,Clothing Uniforms and Laundry,25-May-2016,ARGOS DIRECT,Clothing uniforms and laundry,57.96,0.00,57.96
Children and Adult Services,Planning & Service Strategy,SF-Rivergreen Durham,Supplies and Services,Clothing Uniforms and Laundry,25-May-2016,PARC ASTERIX VAD,Clothing uniforms and laundry,258.80,0.00,258.80
Children and Adult Services,Planning & Service Strategy,SF-Rivergreen Durham,Supplies and Services,Clothing Uniforms and Laundry,25-May-2016,PARC ASTERIX VAD,Clothing uniforms and laundry,465.84,0.00,465.84
Regeneration & Economic Development,Economic Development and Housing,Business Growth and Innovation General,Supplies and Services,Advertising,26-May-2016,ADROLL,Advertising other than for staff,14.89,0.00,14.89
Resources,Financial Services,SF-Financial Services Team,Supplies and Services,Provisions,26-May-2016,ASDA 4387,Catering costs - provisions,139.95,0.00,139.95
Neighbourhood Services,Direct Services,C&G - South Grounds Maintenance,Supplies and Services,Newspapers Books and Periodicals,26-May-2016,GROUNDSMAN TOOLS AND S,Books-school library,98.00,16.33,81.67
Neighbourhood Services,Direct Services,Catering - County Hall Restaurant,Supplies and Services,Provisions,26-May-2016,JR HOLLAND FOODSERVICE,Catering costs - provisions,72.02,0.00,72.02
Neighbourhood Services,Direct Services,Catering - County Hall Restaurant,Supplies and Services,Provisions,26-May-2016,JR HOLLAND FOODSERVICE,Catering costs - provisions,-4.92,0.00,-4.92
Neighbourhood Services,Culture & Sport,Office Services,Supplies and Services,Advertising,26-May-2016,TWITTER ADVERTISING,Advertising other than for staff,5.00,0.00,5.00
Regeneration & Economic Development,Economic Development and Housing,Employability - Youth Contract,Transport,Public Transport,26-May-2016,GO NORTH EAST - V/T,Staff travelling,4.85,0.00,4.85
Neighbourhood Services,EnvironmentHealth & Consumer Protection,Env HealthConsumer Protection Manag,Supplies and Services,Miscellaneous Expenses,26-May-2016,GRAND PARC PUY,Educational visits,127.88,0.00,127.88
Children and Adult Services,Childrens Services,Secure Management,Supplies and Services,Provisions,26-May-2016,TESCO STORES 6329,Catering costs - provisions,82.43,0.00,82.43
Neighbourhood Services,Direct Services,C&G - North Grounds Maintenance,Supplies and Services,Miscellaneous Expenses,26-May-2016,TOM CONWAY MOTORCYCLES,Other hired and contracted services,49.99,0.00,49.99
Neighbourhood Services,Direct Services,C&G - North Grounds Maintenance,Supplies and Services,Clothing Uniforms and Laundry,26-May-2016,THOMAS OWEN & SONS /N/,Clothing uniforms and laundry,212.44,35.41,177.03
Neighbourhood Services,Direct Services,C&G - North Grounds Maintenance,Supplies and Services,Clothing Uniforms and Laundry,26-May-2016,THOMAS OWEN & SONS /N/,Clothing uniforms and laundry,51.41,8.57,42.84
Neighbourhood Services,Culture & Sport,Gala Theatre Stage School,Supplies and Services,Equipment and Materials,26-May-2016,SCREWFIX DIRECT,Equipment-purchase and rental,125.58,20.93,104.65
Neighbourhood Services,Culture & Sport,Gala Theatre Stage School,Supplies and Services,Equipment and Materials,26-May-2016,SCREWFIX DIRECT,Equipment-purchase and rental,232.95,,232.95
Regeneration & Economic Development,Economic Development and Housing,International Relations,Supplies and Services,Miscellaneous Expenses,26-May-2016,FSDC RESERVATION,International visits,171.27,0.00,171.27
Resources,I.C.T. Services,Business Support,Supplies and Services,Newspapers Books and Periodicals,26-May-2016,WWW.POWERTOLLWAREHOUSE,Books-school library,26.29,4.38,21.91
Neighbourhood Services,Direct Services,Catering - Green Lane Canteen,Supplies and Services,Provisions,26-May-2016,JR HOLLAND FOODSERVICE,Catering costs - provisions,-3.29,0.00,-3.29
Children and Adult Services,Childrens Services,Tow Law CU,Supplies and Services,Provisions,26-May-2016,ICELAND,Catering costs - provisions,81.61,0.00,81.61
Children and Adult Services,Childrens Services,Bishop Auckland 0 - 5,Supplies and Services,Provisions,26-May-2016,ASDA STORES,Catering costs - provisions,10.58,0.00,10.58
Resources,Corporate Finance,Corporate Procurement,Supplies and Services,Newspapers Books and Periodicals,26-May-2016,Amazon UK Marketplace,Books-school library,12.04,0.00,12.04
Resources,Corporate Finance,Corporate Procurement,Supplies and Services,Newspapers Books and Periodicals,26-May-2016,Amazon UK Marketplace,Books-school library,19.80,0.00,19.80
Neighbourhood Services,Culture & Sport,Woodhouse Close Leisure Complex,Supplies and Services,Equipment and Materials,26-May-2016,Amazon UK Marketplace,Other consumables,7.99,0.00,7.99
Resources,Corporate Finance,Corporate Procurement,Supplies and Services,Newspapers Books and Periodicals,26-May-2016,Amazon UK Marketplace,Books-school library,36.00,0.00,36.00
Regeneration & Economic Development,Economic Development and Housing,Employability - Youth Contract,Supplies and Services,Clothing Uniforms and Laundry,26-May-2016,MATALAN,Clothing uniforms and laundry,42.05,0.00,42.05
Children and Adult Services,Education,School Sport,Supplies and Services,Conference Expenses,26-May-2016,IMAGO,Conferencesseminars fees etc,105.25,17.54,87.71
Children and Adult Services,Childrens Services,Consett and Stanley Locality,Supplies and Services,Equipment and Materials,26-May-2016,CURRYS ONLINE,Equipment-purchase and rental,304.98,0.00,304.98
Children and Adult Services,Childrens Services,Consett and Stanley Locality,Supplies and Services,Clothing Uniforms and Laundry,26-May-2016,B&M RETAIL,Clothing uniforms and laundry,109.95,0.00,109.95
Regeneration & Economic Development,Spatial Policy Planning Assets & Environment,North Pennines - Cold Blooded & Spineless,Supplies and Services,Grants to Voluntary Organisations,26-May-2016,YOUTH HOSTEL ASSOC,Accommodation assistance,78.00,13.00,65.00
Resources,Legal & Democratic Services,EU Referendum,Supplies and Services,Advertising,26-May-2016,TWITTER ADVERTISING,Advertising other than for staff,175.00,0.00,175.00
Children and Adult Services,Education,Adult Skills-Main,Supplies and Services,Services,26-May-2016,DISCLOSURE SCOT,Disclosure & Barring (DBS) Fees,25.00,0.00,25.00
Neighbourhood Services,Direct Services,R&R - South Refuse Collection,Supplies and Services,Telephones,26-May-2016,Amazon UK Marketplace,Telephones general-all costs,-59.40,0.00,-59.40
Neighbourhood Services,Direct Services,C&G - North Grounds Maintenance,Supplies and Services,Equipment and Materials,26-May-2016,MKM BUILDING SUPPLIES,Equipment-purchase and rental,155.10,25.85,129.25
Children and Adult Services,Childrens Services,Ferryhill 0 - 5,Supplies and Services,Provisions,26-May-2016,ASDA STORES LTD 4313,Catering costs - provisions,25.00,0.00,25.00
Neighbourhood Services,Culture & Sport,Woodhouse Close Leisure Complex,Supplies and Services,Provisions,26-May-2016,BRAKE BROS LTD,Catering costs - provisions,85.08,14.18,70.90
Neighbourhood Services,Culture & Sport,Woodhouse Close Leisure Complex,Supplies and Services,Provisions,26-May-2016,BRAKE BROS LTD,Catering costs - provisions,140.16,,140.16
Neighbourhood Services,Direct Services,Catering - County Hall Restaurant,Supplies and Services,Provisions,26-May-2016,JR HOLLAND FOODSERVICE,Catering costs - provisions,13.16,0.00,13.16
Neighbourhood Services,Culture & Sport,Gala Theatre - Catering etc,Supplies and Services,Provisions,26-May-2016,JR HOLLAND FOODSERVICE,Catering costs - provisions,68.26,0.00,68.26
Neighbourhood Services,Culture & Sport,Hardwick Park Catering,Supplies and Services,Provisions,26-May-2016,JR HOLLAND FOODSERVICE,Catering costs - provisions,17.87,0.00,17.87
Neighbourhood Services,Culture & Sport,Hardwick Park Catering,Supplies and Services,Provisions,26-May-2016,JR HOLLAND FOODSERVICE,Catering costs - provisions,4.16,0.00,4.16
Regeneration & Economic Development,Economic Development and Housing,International Relations,Transport,Public Transport,26-May-2016,NCP LIMITED,Staff travelling,7.00,0.00,7.00
Neighbourhood Services,Direct Services,Catering - Green Lane Canteen,Supplies and Services,Provisions,26-May-2016,JR HOLLAND FOODSERVICE,Catering costs - provisions,8.21,0.00,8.21
Children and Adult Services,Head of Adults,Intermediate Care Plus - North,Supplies and Services,Postages,26-May-2016,POST OFFICE SHOP,Postages,112.99,0.00,112.99
Regeneration & Economic Development,Economic Development and Housing,GRT Site St Philips Park Coundon Grange,Supplies and Services,Miscellaneous Expenses,26-May-2016,WWW.VOUCHEREXPRESS.CO.,Other expenses,70.00,0.00,70.00
Neighbourhood Services,Culture & Sport,Bp Auckland Town Hall Cafe,Supplies and Services,Provisions,26-May-2016,JR HOLLAND FOODSERVICE,Catering costs - provisions,24.55,0.00,24.55
Regeneration & Economic Development,Economic Development and Housing,Business Growth and Innovation General,Supplies and Services,Advertising,27-May-2016,ADROLL,Advertising other than for staff,0.41,0.00,0.41
Neighbourhood Services,EnvironmentHealth & Consumer Protection,Env HealthConsumer Protection Manag,Supplies and Services,Miscellaneous Expenses,27-May-2016,GRAND PARC PUY,Educational visits,3.52,0.00,3.52
Regeneration & Economic Development,Economic Development and Housing,International Relations,Supplies and Services,Miscellaneous Expenses,27-May-2016,FSDC RESERVATION,International visits,4.71,0.00,4.71
Children and Adult Services,Planning & Service Strategy,SF-Rivergreen Durham,Supplies and Services,Clothing Uniforms and Laundry,27-May-2016,PARC ASTERIX VAD,Clothing uniforms and laundry,7.12,0.00,7.12
Children and Adult Services,Planning & Service Strategy,SF-Rivergreen Durham,Supplies and Services,Clothing Uniforms and Laundry,27-May-2016,PARC ASTERIX VAD,Clothing uniforms and laundry,12.81,0.00,12.81
Neighbourhood Services,Direct Services,C&G - South Street Cleansing,Supplies and Services,Equipment and Materials,27-May-2016,FRED WILLIAMSON,Other consumables,93.26,0.00,93.26
Neighbourhood Services,Direct Services,C&G - South Street Cleansing,Supplies and Services,Equipment and Materials,27-May-2016,SCREWFIX,Equipment-purchase and rental,139.98,23.33,116.65
Neighbourhood Services,Direct Services,C&G - South Street Cleansing,Supplies and Services,Equipment and Materials,27-May-2016,SCREWFIX,Equipment-purchase and rental,19.99,3.33,16.66
Regeneration & Economic Development,Economic Development and Housing,Business Growth and Innovation General,Supplies and Services,Advertising,27-May-2016,TWITTER ADVERTISING,Advertising other than for staff,42.25,0.00,42.25
Neighbourhood Services,Direct Services,Catering - County Hall Restaurant,Supplies and Services,Provisions,27-May-2016,BRAKE BROS LTD,Catering costs - provisions,411.90,68.65,343.25
Neighbourhood Services,Direct Services,Catering - County Hall Restaurant,Supplies and Services,Provisions,27-May-2016,BRAKE BROS LTD,Catering costs - provisions,226.96,,226.96
Neighbourhood Services,Direct Services,Catering - County Hall Restaurant,Supplies and Services,Provisions,27-May-2016,BRAKE BROS LTD,Catering costs - provisions,448.88,0.00,448.88
Neighbourhood Services,Direct Services,Catering - County Hall Restaurant,Supplies and Services,Provisions,27-May-2016,BRAKE BROS LTD,Catering costs - provisions,-81.27,0.00,-81.27
Children and Adult Services,Education,Dean Bank Childcare,Supplies and Services,Provisions,27-May-2016,ASDA HOME SHOPPING,Catering costs - provisions,5.00,0.00,5.00
Neighbourhood Services,Direct Services,C&G - North Grounds Maintenance,Supplies and Services,Provisions,27-May-2016,J VAN VLIET GATESHEAD,Catering costs - provisions,472.40,0.00,472.40
Neighbourhood Services,Direct Services,C&G - North Grounds Maintenance,Supplies and Services,Provisions,27-May-2016,J VAN VLIET GATESHEAD,Catering costs - provisions,472.00,0.00,472.00
Children and Adult Services,Childrens Services,Secure Management,Supplies and Services,Provisions,27-May-2016,TESCO STORES 6329,Catering costs - provisions,95.93,0.00,95.93
Neighbourhood Services,Culture & Sport,Hardwick Park Catering,Supplies and Services,Provisions,27-May-2016,BRAKE BROS LTD,Catering costs - provisions,407.04,67.84,339.20
Neighbourhood Services,Culture & Sport,Hardwick Park Catering,Supplies and Services,Provisions,27-May-2016,BRAKE BROS LTD,Catering costs - provisions,502.92,,502.92
Neighbourhood Services,Culture & Sport,Hardwick Park Catering,Supplies and Services,Provisions,27-May-2016,BRAKE BROS LTD,Catering costs - provisions,95.40,15.90,79.50
Neighbourhood Services,Culture & Sport,Hardwick Park Catering,Supplies and Services,Provisions,27-May-2016,BRAKE BROS LTD,Catering costs - provisions,159.08,,159.08
Resources,I.C.T. Services,Operations - System & Repairs Trading,Supplies and Services,Computers and Communications,27-May-2016,Amazon EU,Computer hardware,35.06,0.00,35.06
Children and Adult Services,Childrens Services,Bishop Auckland 0 - 5,Supplies and Services,Provisions,27-May-2016,ASDA STORES,Catering costs - provisions,13.00,0.00,13.00
Resources,Corporate Finance,Corporate Procurement,Supplies and Services,Newspapers Books and Periodicals,27-May-2016,Amazon UK Marketplace,Books-school library,9.72,0.00,9.72
Resources,Financial Services,Finance - Post Entry Training,Employees,Recruitment Instruction and Training,27-May-2016,WWW.CIPS.ORG,Training-all costs,97.92,0.00,97.92
Neighbourhood Services,Direct Services,C&G - South Grounds Maintenance,Supplies and Services,Equipment and Materials,27-May-2016,TUDOR ENVIRONMENTAL,Equipment-purchase and rental,33.60,5.60,28.00
Resources,Legal & Democratic Services,EU Referendum,Supplies and Services,Advertising,27-May-2016,TWITTER ADVERTISING,Advertising other than for staff,27.60,0.00,27.60
Neighbourhood Services,Culture & Sport,Events,Supplies and Services,Miscellaneous Expenses,27-May-2016,B & Q 1343,Other expenses,80.00,0.00,80.00
Neighbourhood Services,Culture & Sport,Sports,Employees,Recruitment Instruction and Training,27-May-2016,TYNE AND WEAR SPORT,Training-all costs,30.00,0.00,30.00
Neighbourhood Services,Culture & Sport,Woodhouse Close Leisure Complex,Supplies and Services,Provisions,27-May-2016,BRAKE BROS LTD,Catering costs - provisions,101.79,0.00,101.79
Children and Adult Services,Planning & Service Strategy,SF-Rivergreen Durham,Transport,Public Transport,27-May-2016,EUROTUNNEL PRESALE,Staff travelling,406.00,0.00,406.00
Children and Adult Services,Planning & Service Strategy,SF-Rivergreen Durham,Transport,Public Transport,27-May-2016,EUROTUNNEL PRESALE,Staff travelling,406.00,0.00,406.00
Children and Adult Services,Planning & Service Strategy,SF-Rivergreen Durham,Transport,Public Transport,27-May-2016,EUROTUNNEL PRESALE,Staff travelling,919.00,0.00,919.00
Children and Adult Services,Planning & Service Strategy,SF-Rivergreen Durham,Transport,Public Transport,27-May-2016,EUROTUNNEL PRESALE,Staff travelling,919.00,0.00,919.00
Children and Adult Services,Planning & Service Strategy,SF-Rivergreen Durham,Supplies and Services,Clothing Uniforms and Laundry,27-May-2016,PARC ASTERIX VAD,Clothing uniforms and laundry,621.79,0.00,621.79
Resources,Financial Services,Purchasing,Supplies and Services,Postages,27-May-2016,POST OFFICE SHOP,Postages,57.99,0.00,57.99
Regeneration & Economic Development,Economic Development and Housing,Business Growth and Innovation General,Supplies and Services,Equipment and Materials,28-May-2016,AUDIENSE SOCIALBRO,Other consumables,29.48,4.91,24.57
Regeneration & Economic Development,Economic Development and Housing,Business Growth and Innovation General,Supplies and Services,Computers and Communications,28-May-2016,FONTS.COM,Computer hardware,9.60,1.60,8.00
Neighbourhood Services,Culture & Sport,Local Delivery-Libraries,Supplies and Services,Newspapers Books and Periodicals,28-May-2016,Amazon EU,Books-school library,10.98,0.00,10.98
Neighbourhood Services,Culture & Sport,Local Delivery-Libraries,Supplies and Services,Newspapers Books and Periodicals,28-May-2016,Amazon EU,Books-school library,8.65,0.00,8.65
Children and Adult Services,Childrens Services,Secure Management,Supplies and Services,Provisions,28-May-2016,TESCO STORES 6329,Catering costs - provisions,76.49,0.00,76.49
Neighbourhood Services,Culture & Sport,Gala Theatre Stage School,Supplies and Services,Subscriptions,28-May-2016,EURO COSTUMES AND PART,Subscriptions,18.94,0.00,18.94
Children and Adult Services,Childrens Services,Tow Law CU,Supplies and Services,Clothing Uniforms and Laundry,28-May-2016,ARGOS RETAIL GROUP,Clothing uniforms and laundry,132.90,0.00,132.90
Children and Adult Services,Childrens Services,New Lea Childrens Home,Supplies and Services,Provisions,28-May-2016,ASDA HOME SHOPPING,Catering costs - provisions,0.56,0.00,0.56
Children and Adult Services,Childrens Services,New Lea Childrens Home,Supplies and Services,Provisions,28-May-2016,ASDA HOME SHOPPING,Catering costs - provisions,419.95,0.00,419.95
Children and Adult Services,Childrens Services,Secure Management,Supplies and Services,Provisions,29-May-2016,TESCO DELIVERY SAVER2,Catering costs - provisions,6.00,0.00,6.00
Children and Adult Services,Childrens Services,One Point - Central,Supplies and Services,Clothing Uniforms and Laundry,29-May-2016,WWW.COTSWOLDOUTDOOR.CO,Clothing uniforms and laundry,"1,400.00",0.00,1400.00
Children and Adult Services,Childrens Services,Secure Management,Supplies and Services,Clothing Uniforms and Laundry,29-May-2016,BOOHOO.COM,Clothing uniforms and laundry,-25.00,0.00,-25.00
Neighbourhood Services,Culture & Sport,Office Services,Supplies and Services,Advertising,30-May-2016,FACEBOOK QX3MP967F2,Advertising other than for staff,20.05,0.00,20.05
Children and Adult Services,Planning & Service Strategy,SF-Rivergreen Durham,Supplies and Services,Clothing Uniforms and Laundry,31-May-2016,PARC ASTERIX VAD,Clothing uniforms and laundry,17.10,0.00,17.10
Children and Adult Services,Education,Shildon Childcare,Supplies and Services,Provisions,31-May-2016,ASDA HOME SHOPPING,Catering costs - provisions,-0.52,0.00,-0.52
Children and Adult Services,Head of Adults,Spennymoor Pathways,Supplies and Services,Miscellaneous Expenses,31-May-2016,ASDA 4387,Other expenses,-12.00,0.00,-12.00
Children and Adult Services,Childrens Services,Secure Management,Supplies and Services,Clothing Uniforms and Laundry,31-May-2016,WWW.FOOTLOCKER.EU,Clothing uniforms and laundry,-129.99,0.00,-129.99
Resources,Resources Management,Resources Management,Supplies and Services,Provisions,31-May-2016,CO-OP GROUP 310016,Catering costs - provisions,2.00,0.00,2.00
Children and Adult Services,Childrens Services,TTF-Attachment and Results,Supplies and Services,Equipment and Materials,31-May-2016,ASDA 4387,Other consumables,-50.00,0.00,-50.00
Neighbourhood Services,Technical Services,Strategic Highways - Asset Management,Supplies and Services,Advertising,31-May-2016,STATIONERY OFFICE BOOK,Advertising other than for staff,24.72,0.00,24.72
